Body Name,Body,Service Area Catergorisation,Service Division Catergorisation,Responsible Unit,Expenses Type,Detailed Expenses Type,Expenses Code,Date,Transaction Number,Amount,Capital / Revenue,Supplier Name,Supplier ID
North East Lincolnshire Council,http://statistics.data.gov.uk/id/local-authority/00FC,Cap People And Communities,Cap Vulnerable Young People,Aiming High For Disabled Child,Cap Land/Build-Build Enh Wrk,Cap Land/Build-Build Enh Wrk,YA102,31/10/2012,154173,"16,354.40",Capital,E S RUDKIN LTD,100632
North East Lincolnshire Council,http://statistics.data.gov.uk/id/local-authority/00FC,Cap People And Communities,Cap Adult Social Care,Ctp Funded Health Schemes,Cap Land/Build-Build Enh Wrk,Cap Land/Build-Build Enh Wrk,YA102,31/10/2012,153634,"1,323.64",Capital,MANTA SHOPFITTERS LTD,102230
North East Lincolnshire Council,http://statistics.data.gov.uk/id/local-authority/00FC,Cap People And Communities,Cap Adult Social Care,Ctp Funded Health Schemes,Cap Land/Build-Build Enh Wrk,Cap Land/Build-Build Enh Wrk,YA102,24/10/2012,152392,-297.64,Capital,MANTA SHOPFITTERS LTD,102230
North East Lincolnshire Council,http://statistics.data.gov.uk/id/local-authority/00FC,Cap People And Communities,Cap Adult Social Care,Ctp Funded Health Schemes,Cap Land/Build-Build Enh Wrk,Cap Land/Build-Build Enh Wrk,YA102,31/10/2012,154014,"35,237.64",Capital,MANTA SHOPFITTERS LTD,102230
North East Lincolnshire Council,http://statistics.data.gov.uk/id/local-authority/00FC,Cap People And Communities,Cap Adult Social Care,Queen Street Upgrade,Cap Land/Build-Build Enh Wrk,Cap Land/Build-Build Enh Wrk,YA102,11/10/2012,149042,"45,523.43",Capital,ISG REGIONS LTD,108070
North East Lincolnshire Council,http://statistics.data.gov.uk/id/local-authority/00FC,Cap Resources,Cap Commission & Inform System,Agile Working - Civic Pilot,Cap Land/Build-Build Enh Wrk,Cap Land/Build-Build Enh Wrk,YA102,29/10/2012,153553,735.00,Capital,HUMBERSIDE SUNBLINDS LTD,100851
North East Lincolnshire Council,http://statistics.data.gov.uk/id/local-authority/00FC,Cap Resources,Cap Commission & Inform System,Frontier Isms Project,Cap Veh Plt Eqp-Purchase,Cap Veh Plt Eqp-Purchase,YB101,16/10/2012,149284,"1,785.70",Capital,BADENOCH & CLARK,101427
North East Lincolnshire Council,http://statistics.data.gov.uk/id/local-authority/00FC,Cap Resources,Cap Commission & Inform System,Frontier Isms Project,Cap Veh Plt Eqp-Purchase,Cap Veh Plt Eqp-Purchase,YB101,16/10/2012,147735,"1,785.70",Capital,BADENOCH & CLARK,101427
North East Lincolnshire Council,http://statistics.data.gov.uk/id/local-authority/00FC,Cap Resources,Cap Commission & Inform System,Frontier Isms Project,Cap Veh Plt Eqp-Purchase,Cap Veh Plt Eqp-Purchase,YB101,30/10/2012,153027,"1,785.70",Capital,BADENOCH & CLARK,101427
North East Lincolnshire Council,http://statistics.data.gov.uk/id/local-authority/00FC,Cap Resources,Cap Commission & Inform System,Frontier Isms Project,Cap Veh Plt Eqp-Purchase,Cap Veh Plt Eqp-Purchase,YB101,19/10/2012,151533,"1,785.70",Capital,BADENOCH & CLARK,101427
North East Lincolnshire Council,http://statistics.data.gov.uk/id/local-authority/00FC,Cap Resources,Cap Commission & Inform System,Ict Strategy,Cap Veh Plt Eqp-Purchase,Cap Veh Plt Eqp-Purchase,YB101,31/10/2012,154284,457.70,Capital,SPECIALIST COMPUTER CENTRES PLC,110715
North East Lincolnshire Council,http://statistics.data.gov.uk/id/local-authority/00FC,Cap Resources,Cap Commission & Inform System,Ict Strategy,Cap Veh Plt Eqp-Purchase,Cap Veh Plt Eqp-Purchase,YB101,31/10/2012,154283,502.32,Capital,COMPUTACENTER UK LTD,101303
North East Lincolnshire Council,http://statistics.data.gov.uk/id/local-authority/00FC,Cap Resources,Cap Commission & Inform System,Ict Strategy,Cap Veh Plt Eqp-Purchase,Cap Veh Plt Eqp-Purchase,YB101,03/10/2012,147254,586.04,Capital,COMPUTACENTER UK LTD,101303
North East Lincolnshire Council,http://statistics.data.gov.uk/id/local-authority/00FC,Cap Resources,Cap Commission & Inform System,Ict Strategy,Cap Veh Plt Eqp-Purchase,Cap Veh Plt Eqp-Purchase,YB101,31/10/2012,154284,"1,818.84",Capital,SPECIALIST COMPUTER CENTRES PLC,110715
North East Lincolnshire Council,http://statistics.data.gov.uk/id/local-authority/00FC,Cap Resources,Cap Finance And Assets,Property Planned Repairs,Cap Land/Build-Build Enh Wrk,Cap Land/Build-Build Enh Wrk,YA102,15/10/2012,149183,"1,118.00",Capital,HAITH'S HEATING LTD,101342
North East Lincolnshire Council,http://statistics.data.gov.uk/id/local-authority/00FC,Cap Resources,Cap Finance And Assets,Property Planned Repairs,Cap Land/Build-Build Enh Wrk,Cap Land/Build-Build Enh Wrk,YA102,31/10/2012,153637,731.00,Capital,UNIBUILD BUILDING CONT LTD,101469
North East Lincolnshire Council,http://statistics.data.gov.uk/id/local-authority/00FC,Cap Resources,Cap Finance And Assets,Property Planned Repairs,Cap Land/Build-Build Enh Wrk,Cap Land/Build-Build Enh Wrk,YA102,31/10/2012,154128,"15,402.57",Capital,UNIBUILD BUILDING CONT LTD,101469
North East Lincolnshire Council,http://statistics.data.gov.uk/id/local-authority/00FC,Cap Resources,Cap Finance And Assets,Property Planned Repairs,Cap Land/Build-Build Enh Wrk,Cap Land/Build-Build Enh Wrk,YA102,18/10/2012,150774,350.00,Capital,BRIAN TYNAN LTD,104834
North East Lincolnshire Council,http://statistics.data.gov.uk/id/local-authority/00FC,Cap Resources,Cap Finance And Assets,Peakes Lane Changing Rooms,Cap Auc-Build Enh Wrk,Cap Auc-Build Enh Wrk,YF102,10/10/2012,146051,"5,010.76",Capital,THE GELDER GROUP,103601
North East Lincolnshire Council,http://statistics.data.gov.uk/id/local-authority/00FC,Cap Economy Env And Housing,Cap Neighbourhood Services,Cremator Replacement,Cap Land/Build-Build Enh Wrk,Cap Land/Build-Build Enh Wrk,YA102,11/10/2012,149037,"63,287.30",Capital,KMS BUILDING PLUMBING & ELECTRICS LTD,110995
North East Lincolnshire Council,http://statistics.data.gov.uk/id/local-authority/00FC,Cap Economy Env And Housing,Cap Neighbourhood Services,Waste Recycling Obc Capital,Cap Land/Build-Build Enh Wrk,Cap Land/Build-Build Enh Wrk,YA102,30/10/2012,149378,"2,180.00",Capital,MGB,101544
North East Lincolnshire Council,http://statistics.data.gov.uk/id/local-authority/00FC,Cap Economy Env And Housing,Cap Neighbourhood Services,Waste Recycling Obc Capital,Cap Land/Build-Build Enh Wrk,Cap Land/Build-Build Enh Wrk,YA102,30/10/2012,149377,"5,085.00",Capital,MGB,101544
North East Lincolnshire Council,http://statistics.data.gov.uk/id/local-authority/00FC,Cap Economy Env And Housing,Cap Neighbourhood Services,Waste Recycling Obc Capital,Cap Land/Build-Build Enh Wrk,Cap Land/Build-Build Enh Wrk,YA102,30/10/2012,150675,"14,651.00",Capital,EGBERT H TAYLOR & CO LTD,100625
North East Lincolnshire Council,http://statistics.data.gov.uk/id/local-authority/00FC,Cap Economy Env And Housing,Cap Development,Hps-Disabled Fac. Grants,Cap Grants To O/Side Sources,Cap Grants To O/Side Sources,YJ101,04/10/2012,147413,310.76,Capital,MEARS LTD,102433
North East Lincolnshire Council,http://statistics.data.gov.uk/id/local-authority/00FC,Cap Economy Env And Housing,Cap Development,Hps-Disabled Fac. Grants,Cap Grants To O/Side Sources,Cap Grants To O/Side Sources,YJ101,10/10/2012,147411,365.04,Capital,MEARS LTD,102433
North East Lincolnshire Council,http://statistics.data.gov.uk/id/local-authority/00FC,Cap Economy Env And Housing,Cap Development,Hps-Disabled Fac. Grants,Cap Grants To O/Side Sources,Cap Grants To O/Side Sources,YJ101,04/10/2012,147649,375.00,Capital,STEVE BENNETT ARCHITECTURAL DESIGN,103819
North East Lincolnshire Council,http://statistics.data.gov.uk/id/local-authority/00FC,Cap Economy Env And Housing,Cap Development,Hps-Disabled Fac. Grants,Cap Grants To O/Side Sources,Cap Grants To O/Side Sources,YJ101,02/10/2012,146067,387.25,Capital,MEARS LTD,102433
North East Lincolnshire Council,http://statistics.data.gov.uk/id/local-authority/00FC,Cap Economy Env And Housing,Cap Development,Hps-Disabled Fac. Grants,Cap Grants To O/Side Sources,Cap Grants To O/Side Sources,YJ101,04/10/2012,147410,506.69,Capital,MEARS LTD,102433
North East Lincolnshire Council,http://statistics.data.gov.uk/id/local-authority/00FC,Cap Economy Env And Housing,Cap Development,Hps-Disabled Fac. Grants,Cap Grants To O/Side Sources,Cap Grants To O/Side Sources,YJ101,29/10/2012,152209,518.88,Capital,E J PARMENTER,100924
North East Lincolnshire Council,http://statistics.data.gov.uk/id/local-authority/00FC,Cap Economy Env And Housing,Cap Development,Hps-Disabled Fac. Grants,Cap Grants To O/Side Sources,Cap Grants To O/Side Sources,YJ101,23/10/2012,151790,527.04,Capital,M D BUILDING,103356
North East Lincolnshire Council,http://statistics.data.gov.uk/id/local-authority/00FC,Cap Economy Env And Housing,Cap Development,Hps-Disabled Fac. Grants,Cap Grants To O/Side Sources,Cap Grants To O/Side Sources,YJ101,02/10/2012,146066,677.66,Capital,M D BUILDING,103356
North East Lincolnshire Council,http://statistics.data.gov.uk/id/local-authority/00FC,Cap Economy Env And Housing,Cap Development,Hps-Disabled Fac. Grants,Cap Grants To O/Side Sources,Cap Grants To O/Side Sources,YJ101,04/10/2012,147408,810.77,Capital,LINCS PLUMBING & HEATING CO,102584
North East Lincolnshire Council,http://statistics.data.gov.uk/id/local-authority/00FC,Cap Economy Env And Housing,Cap Development,Hps-Disabled Fac. Grants,Cap Grants To O/Side Sources,Cap Grants To O/Side Sources,YJ101,23/10/2012,151788,"1,807.46",Capital,MEARS LTD,102433
North East Lincolnshire Council,http://statistics.data.gov.uk/id/local-authority/00FC,Cap Economy Env And Housing,Cap Development,Hps-Disabled Fac. Grants,Cap Grants To O/Side Sources,Cap Grants To O/Side Sources,YJ101,04/10/2012,147650,"2,025.00",Capital,HANDICARE ACCESSIIBILITY LTD,102647
North East Lincolnshire Council,http://statistics.data.gov.uk/id/local-authority/00FC,Cap Economy Env And Housing,Cap Development,Hps-Disabled Fac. Grants,Cap Grants To O/Side Sources,Cap Grants To O/Side Sources,YJ101,30/10/2012,154005,"2,030.00",Capital,HANDICARE ACCESSIIBILITY LTD,102647
North East Lincolnshire Council,http://statistics.data.gov.uk/id/local-authority/00FC,Cap Economy Env And Housing,Cap Development,Hps-Disabled Fac. Grants,Cap Grants To O/Side Sources,Cap Grants To O/Side Sources,YJ101,19/10/2012,145301,"2,057.00",Capital,HANDICARE ACCESSIIBILITY LTD,102647
North East Lincolnshire Council,http://statistics.data.gov.uk/id/local-authority/00FC,Cap Economy Env And Housing,Cap Development,Hps-Disabled Fac. Grants,Cap Grants To O/Side Sources,Cap Grants To O/Side Sources,YJ101,04/10/2012,147413,"3,237.11",Capital,MEARS LTD,102433
North East Lincolnshire Council,http://statistics.data.gov.uk/id/local-authority/00FC,Cap Economy Env And Housing,Cap Development,Hps-Disabled Fac. Grants,Cap Grants To O/Side Sources,Cap Grants To O/Side Sources,YJ101,10/10/2012,147411,"3,802.55",Capital,MEARS LTD,102433
North East Lincolnshire Council,http://statistics.data.gov.uk/id/local-authority/00FC,Cap Economy Env And Housing,Cap Development,Hps-Disabled Fac. Grants,Cap Grants To O/Side Sources,Cap Grants To O/Side Sources,YJ101,02/10/2012,146067,"4,033.85",Capital,MEARS LTD,102433
North East Lincolnshire Council,http://statistics.data.gov.uk/id/local-authority/00FC,Cap Economy Env And Housing,Cap Development,Hps-Disabled Fac. Grants,Cap Grants To O/Side Sources,Cap Grants To O/Side Sources,YJ101,05/10/2012,147392,"4,661.22",Capital,MEARS LTD,102433
North East Lincolnshire Council,http://statistics.data.gov.uk/id/local-authority/00FC,Cap Economy Env And Housing,Cap Development,Hps-Disabled Fac. Grants,Cap Grants To O/Side Sources,Cap Grants To O/Side Sources,YJ101,24/10/2012,146112,"4,769.01",Capital,MEARS LTD,102433
North East Lincolnshire Council,http://statistics.data.gov.uk/id/local-authority/00FC,Cap Economy Env And Housing,Cap Development,Hps-Disabled Fac. Grants,Cap Grants To O/Side Sources,Cap Grants To O/Side Sources,YJ101,16/10/2012,145855,"4,809.00",Capital,DOLPHIN MOBILITY EAST MIDLANDS LTD,101317
North East Lincolnshire Council,http://statistics.data.gov.uk/id/local-authority/00FC,Cap Economy Env And Housing,Cap Development,Hps-Disabled Fac. Grants,Cap Grants To O/Side Sources,Cap Grants To O/Side Sources,YJ101,04/10/2012,147653,"5,049.00",Capital,HANDICARE ACCESSIIBILITY LTD,102647
North East Lincolnshire Council,http://statistics.data.gov.uk/id/local-authority/00FC,Cap Economy Env And Housing,Cap Development,Hps-Disabled Fac. Grants,Cap Grants To O/Side Sources,Cap Grants To O/Side Sources,YJ101,04/10/2012,147410,"5,278.03",Capital,MEARS LTD,102433
North East Lincolnshire Council,http://statistics.data.gov.uk/id/local-authority/00FC,Cap Economy Env And Housing,Cap Development,Hps-Disabled Fac. Grants,Cap Grants To O/Side Sources,Cap Grants To O/Side Sources,YJ101,29/10/2012,152209,"5,405.00",Capital,E J PARMENTER,100924
North East Lincolnshire Council,http://statistics.data.gov.uk/id/local-authority/00FC,Cap Economy Env And Housing,Cap Development,Hps-Disabled Fac. Grants,Cap Grants To O/Side Sources,Cap Grants To O/Side Sources,YJ101,23/10/2012,151790,"5,490.00",Capital,M D BUILDING,103356
North East Lincolnshire Council,http://statistics.data.gov.uk/id/local-authority/00FC,Cap Economy Env And Housing,Cap Development,Hps-Disabled Fac. Grants,Cap Grants To O/Side Sources,Cap Grants To O/Side Sources,YJ101,04/10/2012,147408,"6,891.00",Capital,LINCS PLUMBING & HEATING CO,102584
North East Lincolnshire Council,http://statistics.data.gov.uk/id/local-authority/00FC,Cap Economy Env And Housing,Cap Development,Hps-Disabled Fac. Grants,Cap Grants To O/Side Sources,Cap Grants To O/Side Sources,YJ101,02/10/2012,146066,"7,059.00",Capital,M D BUILDING,103356
North East Lincolnshire Council,http://statistics.data.gov.uk/id/local-authority/00FC,Cap Economy Env And Housing,Cap Development,Hps-Disabled Fac. Grants,Cap Grants To O/Side Sources,Cap Grants To O/Side Sources,YJ101,26/10/2012,153311,"10,052.28",Capital,JAMES BRATTON & CO LTD,100714
North East Lincolnshire Council,http://statistics.data.gov.uk/id/local-authority/00FC,Cap Economy Env And Housing,Cap Development,Hps-Disabled Fac. Grants,Cap Grants To O/Side Sources,Cap Grants To O/Side Sources,YJ101,18/10/2012,147652,"13,316.00",Capital,VIC HANSEN BUILDING & JOINERY LTD,103981
North East Lincolnshire Council,http://statistics.data.gov.uk/id/local-authority/00FC,Cap Economy Env And Housing,Cap Development,Hps-Disabled Fac. Grants,Cap Grants To O/Side Sources,Cap Grants To O/Side Sources,YJ101,04/10/2012,147648,299.80,Capital,STEVE BENNETT ARCHITECTURAL DESIGN,103819
North East Lincolnshire Council,http://statistics.data.gov.uk/id/local-authority/00FC,Cap Economy Env And Housing,Cap Development,Hps-Disabled Fac. Grants,Cap Grants To O/Side Sources,Cap Grants To O/Side Sources,YJ101,04/10/2012,147647,420.00,Capital,STEVE BENNETT ARCHITECTURAL DESIGN,103819
North East Lincolnshire Council,http://statistics.data.gov.uk/id/local-authority/00FC,Cap Economy Env And Housing,Cap Development,Hps-Disabled Fac. Grants,Cap Grants To O/Side Sources,Cap Grants To O/Side Sources,YJ101,04/10/2012,146245,420.00,Capital,STEVE BENNETT ARCHITECTURAL DESIGN,103819
North East Lincolnshire Council,http://statistics.data.gov.uk/id/local-authority/00FC,Cap Economy Env And Housing,Cap Development,Local Transport Plan,Cap Infrastr-Build Enh Wrk,Cap Infrastr-Build Enh Wrk,YC102,03/10/2012,110152,300.00,Capital,REDACTED PERSONAL INFORMATION,REDACTED PERSONAL INFORMATION
North East Lincolnshire Council,http://statistics.data.gov.uk/id/local-authority/00FC,Cap Economy Env And Housing,Cap Development,Local Transport Plan,Cap Land/Build-Build Enh Wrk,Cap Land/Build-Build Enh Wrk,YA102,26/10/2012,153326,493.41,Capital,GRIMSBY & SCUNTHORPE MEDIA GROUP LTD,101827
North East Lincolnshire Council,http://statistics.data.gov.uk/id/local-authority/00FC,Cap Economy Env And Housing,Cap Development,Local Transport Plan,Cap Infrastr-Build Enh Wrk,Cap Infrastr-Build Enh Wrk,YC102,17/10/2012,149341,805.00,Capital,BUTTON PLANT & CONSTRUCTION LTD,100710
North East Lincolnshire Council,http://statistics.data.gov.uk/id/local-authority/00FC,Cap Economy Env And Housing,Cap Development,Local Transport Plan,Cap Land/Build-Build Enh Wrk,Cap Land/Build-Build Enh Wrk,YA102,24/10/2012,152023,"2,791.00",Capital,FIRST/KEOLIS TRANSPENNINE LTD,101572
North East Lincolnshire Council,http://statistics.data.gov.uk/id/local-authority/00FC,Cap Economy Env And Housing,Cap Development,Local Transport Plan,Cap Infrastr-Build Enh Wrk,Cap Infrastr-Build Enh Wrk,YC102,12/10/2012,149599,"1,616.94",Capital,J MCCANN & CO LTD,100841
North East Lincolnshire Council,http://statistics.data.gov.uk/id/local-authority/00FC,Cap Economy Env And Housing,Cap Development,Local Transport Plan,Cap Infrastr-Build Enh Wrk,Cap Infrastr-Build Enh Wrk,YC102,30/10/2012,149459,"2,580.00",Capital,GROVER LEWIS ASSOCIATES LTD,111852
North East Lincolnshire Council,http://statistics.data.gov.uk/id/local-authority/00FC,Cap Economy Env And Housing,Cap Development,Local Transport Plan,Cap Infrastr-Build Enh Wrk,Cap Infrastr-Build Enh Wrk,YC102,12/10/2012,149599,"14,321.96",Capital,J MCCANN & CO LTD,100841
North East Lincolnshire Council,http://statistics.data.gov.uk/id/local-authority/00FC,Cap Economy Env And Housing,Cap Development,Freeman Street Regeneration,Cap Land/Build-Build Enh Wrk,Cap Land/Build-Build Enh Wrk,YA102,04/10/2012,147340,"5,525.00",Capital,CLUGSTON SURVEY SERVICES,105668
North East Lincolnshire Council,http://statistics.data.gov.uk/id/local-authority/00FC,Cap Economy Env And Housing,Cap Development,East Marsh Renewal,Cap Land/Build-Build Enh Wrk,Cap Land/Build-Build Enh Wrk,YA102,30/10/2012,153479,937.50,Capital,ARCUS CONSULTING LLP,112099
North East Lincolnshire Council,http://statistics.data.gov.uk/id/local-authority/00FC,Cap Economy Env And Housing,Cap Development,East Marsh Renewal,Cap Grants To O/Side Sources,Cap Grants To O/Side Sources,YJ101,25/10/2012,151816,397.20,Capital,GRIMSBY & SCUNTHORPE MEDIA GROUP LTD,101827
North East Lincolnshire Council,http://statistics.data.gov.uk/id/local-authority/00FC,Cap Economy Env And Housing,Cap Development,East Marsh Renewal,Cap Land/Build-Build Enh Wrk,Cap Land/Build-Build Enh Wrk,YA102,30/10/2012,153478,"1,237.50",Capital,ARCUS CONSULTING LLP,112099
North East Lincolnshire Council,http://statistics.data.gov.uk/id/local-authority/00FC,Cap Economy Env And Housing,Cap Development,Housing Assistance,Cap Grants To O/Side Sources,Cap Grants To O/Side Sources,YJ101,24/10/2012,152165,251.96,Capital,M J QUICKFALL,102499
North East Lincolnshire Council,http://statistics.data.gov.uk/id/local-authority/00FC,Cap Economy Env And Housing,Cap Development,Housing Assistance,Cap Grants To O/Side Sources,Cap Grants To O/Side Sources,YJ101,29/10/2012,152211,275.83,Capital,M J QUICKFALL,102499
North East Lincolnshire Council,http://statistics.data.gov.uk/id/local-authority/00FC,Cap Economy Env And Housing,Cap Development,Housing Assistance,Cap Grants To O/Side Sources,Cap Grants To O/Side Sources,YJ101,02/10/2012,146064,287.04,Capital,BC ELECTRIC LTD,108240
North East Lincolnshire Council,http://statistics.data.gov.uk/id/local-authority/00FC,Cap Economy Env And Housing,Cap Development,Housing Assistance,Cap Grants To O/Side Sources,Cap Grants To O/Side Sources,YJ101,29/10/2012,152208,287.67,Capital,M J QUICKFALL,102499
North East Lincolnshire Council,http://statistics.data.gov.uk/id/local-authority/00FC,Cap Economy Env And Housing,Cap Development,Housing Assistance,Cap Grants To O/Side Sources,Cap Grants To O/Side Sources,YJ101,02/10/2012,146073,338.88,Capital,BRITISH DAMP PROOFING,111834
North East Lincolnshire Council,http://statistics.data.gov.uk/id/local-authority/00FC,Cap Economy Env And Housing,Cap Development,Housing Assistance,Cap Grants To O/Side Sources,Cap Grants To O/Side Sources,YJ101,30/10/2012,154062,489.14,Capital,M J QUICKFALL,102499
North East Lincolnshire Council,http://statistics.data.gov.uk/id/local-authority/00FC,Cap Economy Env And Housing,Cap Development,Housing Assistance,Cap Grants To O/Side Sources,Cap Grants To O/Side Sources,YJ101,24/10/2012,152215,578.78,Capital,MAYNE GAS HEATING LTD,101861
North East Lincolnshire Council,http://statistics.data.gov.uk/id/local-authority/00FC,Cap Economy Env And Housing,Cap Development,Housing Assistance,Cap Grants To O/Side Sources,Cap Grants To O/Side Sources,YJ101,02/10/2012,146072,850.00,Capital,BRITISH DAMP PROOFING,111834
North East Lincolnshire Council,http://statistics.data.gov.uk/id/local-authority/00FC,Cap Economy Env And Housing,Cap Development,Housing Assistance,Cap Grants To O/Side Sources,Cap Grants To O/Side Sources,YJ101,24/10/2012,151979,"1,690.00",Capital,DEAN WILLETT & SONS,101982
North East Lincolnshire Council,http://statistics.data.gov.uk/id/local-authority/00FC,Cap Economy Env And Housing,Cap Development,Housing Assistance,Cap Grants To O/Side Sources,Cap Grants To O/Side Sources,YJ101,22/10/2012,146101,"1,974.92",Capital,WIL-LEC ELECTRICAL CONTRACTORS LTD,101370
North East Lincolnshire Council,http://statistics.data.gov.uk/id/local-authority/00FC,Cap Economy Env And Housing,Cap Development,Housing Assistance,Cap Grants To O/Side Sources,Cap Grants To O/Side Sources,YJ101,24/10/2012,152165,"2,624.60",Capital,M J QUICKFALL,102499
North East Lincolnshire Council,http://statistics.data.gov.uk/id/local-authority/00FC,Cap Economy Env And Housing,Cap Development,Housing Assistance,Cap Grants To O/Side Sources,Cap Grants To O/Side Sources,YJ101,02/10/2012,146073,"2,680.00",Capital,BRITISH DAMP PROOFING,111834
North East Lincolnshire Council,http://statistics.data.gov.uk/id/local-authority/00FC,Cap Economy Env And Housing,Cap Development,Housing Assistance,Cap Grants To O/Side Sources,Cap Grants To O/Side Sources,YJ101,29/10/2012,152211,"2,873.20",Capital,M J QUICKFALL,102499
North East Lincolnshire Council,http://statistics.data.gov.uk/id/local-authority/00FC,Cap Economy Env And Housing,Cap Development,Housing Assistance,Cap Grants To O/Side Sources,Cap Grants To O/Side Sources,YJ101,02/10/2012,146064,"2,990.00",Capital,BC ELECTRIC LTD,108240
North East Lincolnshire Council,http://statistics.data.gov.uk/id/local-authority/00FC,Cap Economy Env And Housing,Cap Development,Housing Assistance,Cap Grants To O/Side Sources,Cap Grants To O/Side Sources,YJ101,29/10/2012,152208,"2,996.60",Capital,M J QUICKFALL,102499
North East Lincolnshire Council,http://statistics.data.gov.uk/id/local-authority/00FC,Cap Economy Env And Housing,Cap Development,Housing Assistance,Cap Grants To O/Side Sources,Cap Grants To O/Side Sources,YJ101,30/10/2012,154062,"5,095.20",Capital,M J QUICKFALL,102499
North East Lincolnshire Council,http://statistics.data.gov.uk/id/local-authority/00FC,Cap Economy Env And Housing,Cap Development,Housing Assistance,Cap Grants To O/Side Sources,Cap Grants To O/Side Sources,YJ101,24/10/2012,152215,"6,029.00",Capital,MAYNE GAS HEATING LTD,101861
North East Lincolnshire Council,http://statistics.data.gov.uk/id/local-authority/00FC,Cap Economy Env And Housing,Cap Development,Housing Assistance,Cap Grants To O/Side Sources,Cap Grants To O/Side Sources,YJ101,15/10/2012,146771,-5.00,Capital,THE HOME IMPROVEMENT AGENCY,102222
North East Lincolnshire Council,http://statistics.data.gov.uk/id/local-authority/00FC,Cap Economy Env And Housing,Cap Development,Highway Infrastructure Imp,Cap Infrastr-Build Enh Wrk,Cap Infrastr-Build Enh Wrk,YC102,18/10/2012,151266,"-11,996.85",Capital,CLARK CONSTRUCTION,101752
North East Lincolnshire Council,http://statistics.data.gov.uk/id/local-authority/00FC,Cap Economy Env And Housing,Cap Development,Local Sustainable Trans Fund,Cap Infrastr-Prof Fees,Cap Infrastr-Prof Fees,YC103,17/10/2012,149273,"2,875.00",Capital,CLUGSTON SURVEY SERVICES,105668
North East Lincolnshire Council,http://statistics.data.gov.uk/id/local-authority/00FC,Cap Economy Env And Housing,Cap Development,Local Sustainable Trans Fund,Cap Grants To O/Side Sources,Cap Grants To O/Side Sources,YJ101,26/10/2012,152076,"10,000.00",Capital,HUMBER & WOLDS RURAL COMM COUN,101169
North East Lincolnshire Council,http://statistics.data.gov.uk/id/local-authority/00FC,Cap Economy Env And Housing,Cap Culture Leisure And Sport,Bradley Playing Fields,Cap Land/Build-Build Enh Wrk,Cap Land/Build-Build Enh Wrk,YA102,03/10/2012,147360,"4,706.60",Capital,C R REYNOLDS (CONSTRUCTION) LTD,103021
North East Lincolnshire Council,http://statistics.data.gov.uk/id/local-authority/00FC,Cap Economy Env And Housing,Cap Culture Leisure And Sport,Leisure/Library - Library,Cap Land/Build-Build Enh Wrk,Cap Land/Build-Build Enh Wrk,YA102,18/10/2012,150764,400.00,Capital,BUILDING SERVICES COMMISSIONING LTD,112066
North East Lincolnshire Council,http://statistics.data.gov.uk/id/local-authority/00FC,Cap Economy Env And Housing,Cap Culture Leisure And Sport,Leisure/Library - Library,Cap Land/Build-Build Enh Wrk,Cap Land/Build-Build Enh Wrk,YA102,25/10/2012,152685,"1,195.00",Capital,CLUGSTON SURVEY SERVICES,105668
North East Lincolnshire Council,http://statistics.data.gov.uk/id/local-authority/00FC,Cap Economy Env And Housing,Cap Culture Leisure And Sport,Leisure/Library - Library,Cap Land/Build-Build Enh Wrk,Cap Land/Build-Build Enh Wrk,YA102,18/10/2012,150778,"1,843.00",Capital,W R CULLUM,100811
North East Lincolnshire Council,http://statistics.data.gov.uk/id/local-authority/00FC,Cap Governance And Trans,Cap Transformation Project,Change Programme,Cap Intangible Assets,Cap Intangible Assets,YH101,18/10/2012,149435,"1,500.00",Capital,CLEAR ADVANTAGE,109851
North East Lincolnshire Council,http://statistics.data.gov.uk/id/local-authority/00FC,Cap Governance And Trans,Cap Transformation Project,Change Programme,Cap Intangible Assets,Cap Intangible Assets,YH101,30/10/2012,153897,"4,833.00",Capital,CEDAR OPEN ACCOUNTS,101614
North East Lincolnshire Council,http://statistics.data.gov.uk/id/local-authority/00FC,Cap Governance And Trans,Cap Transformation Project,Change Programme,Cap Intangible Assets,Cap Intangible Assets,YH101,03/10/2012,147292,REDACTED COMMERCIALLY SENSITIVE,Capital,MIDLAND SOFTWARE LTD,102633
North East Lincolnshire Council,http://statistics.data.gov.uk/id/local-authority/00FC,Cap Governance And Trans,Cap Transformation Project,Change Programme,Cap Intangible Assets,Cap Intangible Assets,YH101,31/10/2012,153810,REDACTED COMMERCIALLY SENSITIVE,Capital,MIDLAND SOFTWARE LTD,102633
North East Lincolnshire Council,http://statistics.data.gov.uk/id/local-authority/00FC,Cap Governance And Trans,Cap Transformation Project,Change Programme,Cap Intangible Assets,Cap Intangible Assets,YH101,03/10/2012,147289,REDACTED COMMERCIALLY SENSITIVE,Capital,MIDLAND SOFTWARE LTD,102633
North East Lincolnshire Council,http://statistics.data.gov.uk/id/local-authority/00FC,Chief Executive,Chief Executive,Chief Exec & Support,Contributions To Provisions,Contributions - Third Sector,LK102,31/10/2012,154257,300.00,Revenue,VOLUNTARY ACTION NORTH EAST LINCOLNSHIRE,103631
North East Lincolnshire Council,http://statistics.data.gov.uk/id/local-authority/00FC,Chief Executive,Chief Executive,Chief Exec & Support,Contributions To Provisions,Contributions - Communities,LK101,16/10/2012,149397,310.00,Revenue,TRADITIONAL GATES,108564
North East Lincolnshire Council,http://statistics.data.gov.uk/id/local-authority/00FC,Chief Executive,Chief Executive,Chief Exec & Support,Contributions To Provisions,Contributions - Third Sector,LK102,12/10/2012,149578,500.00,Revenue,GRIMSBY & DISTRICT ARCHIVE CLUB,109360
North East Lincolnshire Council,http://statistics.data.gov.uk/id/local-authority/00FC,Chief Executive,Chief Executive,Chief Exec & Support,Contributions To Provisions,Contributions - Third Sector,LK102,23/10/2012,151629,500.00,Revenue,SCARTHO NURSERY SCHOOL,105398
North East Lincolnshire Council,http://statistics.data.gov.uk/id/local-authority/00FC,Chief Executive,Chief Executive,Chief Exec & Support,Contributions To Provisions,Contributions - Third Sector,LK102,10/10/2012,148038,600.00,Revenue,QUEEN MARY AVENUE INFANTS,100935
North East Lincolnshire Council,http://statistics.data.gov.uk/id/local-authority/00FC,Chief Executive,Chief Executive,Chief Exec & Support,Contributions To Provisions,Contributions - Communities,LK101,11/10/2012,149091,250.00,Revenue,ROYAL NATIONAL MISSION TO DEEP SEA FISHERMEN,111924
North East Lincolnshire Council,http://statistics.data.gov.uk/id/local-authority/00FC,Other Corporate Budgets,Other Corporate Budgets,Appropriations,Indirect Employee Expenses,Pension P/Ment Pension Inc Act,EB105,16/10/2012,149461,944.50,Revenue,LINCOLNSHIRE COUNTY COUNCIL,100389
North East Lincolnshire Council,http://statistics.data.gov.uk/id/local-authority/00FC,Other Corporate Budgets,Other Corporate Budgets,Appropriations,Indirect Employee Expenses,Pension P/Ment Pension Inc Act,EB105,18/10/2012,150603,"5,242.06",Revenue,LINCOLNSHIRE COUNTY COUNCIL,100389
North East Lincolnshire Council,http://statistics.data.gov.uk/id/local-authority/00FC,Other Corporate Budgets,Other Corporate Budgets,Appropriations,Indirect Employee Expenses,Ex B/Ferry Bc & Hcc Unfund Pen,EB107,03/10/2012,147319,"7,483.60",Revenue,WEST YORKSHIRE PENSION FUND,101014
North East Lincolnshire Council,http://statistics.data.gov.uk/id/local-authority/00FC,People And Communities,Childrens Hlth & Family Supp,Integrated Youth Services,Print Stationery / Gen Off Exp,Advertising,LD104,18/10/2012,150866,310.00,Revenue,GRIMSBY & SCUNTHORPE MEDIA GROUP LTD,101827
North East Lincolnshire Council,http://statistics.data.gov.uk/id/local-authority/00FC,People And Communities,Childrens Hlth & Family Supp,Integrated Youth Services,Catering,Catering Costs,LB102,29/10/2012,150873,860.00,Revenue,LADIES IN WAITING,102340
North East Lincolnshire Council,http://statistics.data.gov.uk/id/local-authority/00FC,People And Communities,Childrens Hlth & Family Supp,Integrated Youth Services,Catering,Catering Costs,LB102,24/10/2012,150875,"1,500.00",Revenue,LADIES IN WAITING,102340
North East Lincolnshire Council,http://statistics.data.gov.uk/id/local-authority/00FC,People And Communities,Childrens Hlth & Family Supp,Integrated Youth Services,Rents,Room Hire,GC103,18/10/2012,150705,"1,751.00",Revenue,ATG VENUES UK LTD,102453
North East Lincolnshire Council,http://statistics.data.gov.uk/id/local-authority/00FC,People And Communities,Childrens Hlth & Family Supp,Integrated Youth Services,Indirect Employee Expenses,Staff Training,EB122,30/10/2012,153800,"2,400.00",Revenue,THE GRIMSBY INSTITUTE OF FURTHER,102742
North East Lincolnshire Council,http://statistics.data.gov.uk/id/local-authority/00FC,People And Communities,Childrens Hlth & Family Supp,Integrated Youth Services,Rep Alterations Maint Building,Buildings - Repairs And Maint,GA102,11/10/2012,149403,"10,045.75",Revenue,E S RUDKIN LTD,100632
North East Lincolnshire Council,http://statistics.data.gov.uk/id/local-authority/00FC,People And Communities,Childrens Hlth & Family Supp,Integrated Youth Services,Miscellaneous Expenses,Activities - Service Users,LL114,30/10/2012,153788,"11,000.00",Revenue,GET HOOKED ON POSITIVE ACTIVITIES,111758
North East Lincolnshire Council,http://statistics.data.gov.uk/id/local-authority/00FC,People And Communities,Childrens Hlth & Family Supp,Integrated Youth Services,Rep Alterations Maint Building,Buildings - Repairs And Maint,GA102,11/10/2012,149437,"17,871.60",Revenue,E S RUDKIN LTD,100632
North East Lincolnshire Council,http://statistics.data.gov.uk/id/local-authority/00FC,People And Communities,Childrens Hlth & Family Supp,Integrated Youth Services,Catering,Provisions,LB101,22/10/2012,151205,910.00,Revenue,VALLIN CATERING,100567
North East Lincolnshire Council,http://statistics.data.gov.uk/id/local-authority/00FC,People And Communities,Childrens Hlth & Family Supp,Integrated Youth Services,Communications And Computing,Computer H/Ware - Maintenance,LF106,11/10/2012,148848,354.00,Revenue,PLEXUS NETWORKING LIMITED,111975
North East Lincolnshire Council,http://statistics.data.gov.uk/id/local-authority/00FC,People And Communities,Childrens Hlth & Family Supp,Integrated Youth Services,Rep Alterations Maint Building,Buildings - Repairs And Maint,GA102,31/10/2012,153635,"6,471.10",Revenue,MANTA SHOPFITTERS LTD,102230
North East Lincolnshire Council,http://statistics.data.gov.uk/id/local-authority/00FC,People And Communities,Childrens Hlth & Family Supp,Integrated Youth Services,Miscellaneous Expenses,Activities - Service Users,LL114,02/10/2012,146729,400.64,Revenue,NEL AWARD,111858
North East Lincolnshire Council,http://statistics.data.gov.uk/id/local-authority/00FC,People And Communities,Childrens Hlth & Family Supp,Integrated Youth Services,Cleaning And Domestic Supplies,Cleaning - Consumables,GH103,04/10/2012,145284,-24.50,Revenue,EAST RIDING OF YORKSHIRE COUNCIL,100654
North East Lincolnshire Council,http://statistics.data.gov.uk/id/local-authority/00FC,People And Communities,Childrens Hlth & Family Supp,Integrated Youth Services,Miscellaneous Expenses,Activities - Service Users,LL114,12/10/2012,149248,306.00,Revenue,PARK RETAIL LTD - LOVE2REWARD,111869
North East Lincolnshire Council,http://statistics.data.gov.uk/id/local-authority/00FC,People And Communities,Childrens Hlth & Family Supp,Integrated Youth Services,Print Stationery / Gen Off Exp,Printing And Stationery,LD103,16/10/2012,148222,391.54,Revenue,LYRECO UK LIMITED,101120
North East Lincolnshire Council,http://statistics.data.gov.uk/id/local-authority/00FC,People And Communities,Childrens Hlth & Family Supp,Integrated Youth Services,Public Transport,Public Transport - Serv User,JD102,18/10/2012,150504,680.40,Revenue,COXONS CARS LIMITED,100578
North East Lincolnshire Council,http://statistics.data.gov.uk/id/local-authority/00FC,People And Communities,Childrens Hlth & Family Supp,Integrated Youth Services,Miscellaneous Expenses,Activities - Service Users,LL114,17/10/2012,149994,"2,940.00",Revenue,PARK RETAIL LTD - LOVE2REWARD,111869
North East Lincolnshire Council,http://statistics.data.gov.uk/id/local-authority/00FC,People And Communities,Childrens Hlth & Family Supp,Childrens Health Provision,Rents,Rent,GC101,10/10/2012,148094,715.00,Revenue,GRIMSBY CENTRAL HALL TRUST,100882
North East Lincolnshire Council,http://statistics.data.gov.uk/id/local-authority/00FC,People And Communities,Childrens Hlth & Family Supp,Childrens Health Provision,Private Contractors,Third Party Prov - Private,PH101,16/10/2012,148332,"1,025.00",Revenue,N LINCS & GOOLE HOSPITALS NHS,111074
North East Lincolnshire Council,http://statistics.data.gov.uk/id/local-authority/00FC,People And Communities,Childrens Hlth & Family Supp,Childrens Health Provision,Private Contractors,Third Party Prov - Private,PH101,24/10/2012,152052,"193,485.00",Revenue,LINCS PARTNERSHIP NHS FOUNDATION TRUST,105021
North East Lincolnshire Council,http://statistics.data.gov.uk/id/local-authority/00FC,People And Communities,Childrens Hlth & Family Supp,Childrens Centre Development,Cleaning And Domestic Supplies,Cleaning - Services,GH102,17/10/2012,148516,-19.05,Revenue,FUTURE CLEANING SERVICES LTD,102557
North East Lincolnshire Council,http://statistics.data.gov.uk/id/local-authority/00FC,People And Communities,Childrens Hlth & Family Supp,Childrens Centre Development,Water Services,Water,GE101,16/10/2012,149893,269.29,Revenue,ANGLIAN WATER,100508
North East Lincolnshire Council,http://statistics.data.gov.uk/id/local-authority/00FC,People And Communities,Childrens Hlth & Family Supp,Childrens Centre Development,Cleaning And Domestic Supplies,Refuse Collection,GH104,22/10/2012,150999,318.24,Revenue,BELL WASTE CONTROL,101433
North East Lincolnshire Council,http://statistics.data.gov.uk/id/local-authority/00FC,People And Communities,Childrens Hlth & Family Supp,Childrens Centre Development,Cleaning And Domestic Supplies,Cleaning - Services,GH102,22/10/2012,151185,541.00,Revenue,EASY CLEAN MARSHCHAPEL LTD,104531
North East Lincolnshire Council,http://statistics.data.gov.uk/id/local-authority/00FC,People And Communities,Childrens Hlth & Family Supp,Childrens Centre Development,Rep Alterations Maint Building,Buildings - Repairs And Maint,GA102,25/10/2012,152565,628.00,Revenue,ARK JOINERY AND BUILDING MAINTENANCE LTD,101126
North East Lincolnshire Council,http://statistics.data.gov.uk/id/local-authority/00FC,People And Communities,Childrens Hlth & Family Supp,Childrens Centre Development,Equip / Furniture / Materials,Newspapers/Periodicals,LA122,30/10/2012,150927,-15.42,Revenue,MADELEINE LINDLEY LIMITED,100961
North East Lincolnshire Council,http://statistics.data.gov.uk/id/local-authority/00FC,People And Communities,Childrens Hlth & Family Supp,Childrens Centre Development,Print Stationery / Gen Off Exp,Printing And Stationery,LD103,18/10/2012,148145,-0.48,Revenue,LYRECO UK LIMITED,101120
North East Lincolnshire Council,http://statistics.data.gov.uk/id/local-authority/00FC,People And Communities,Childrens Hlth & Family Supp,Childrens Centre Development,Other Agencies,Child Care Payments,PJ104,26/10/2012,153006,258.73,Revenue,FOR UNDER FIVES LTD,100647
North East Lincolnshire Council,http://statistics.data.gov.uk/id/local-authority/00FC,People And Communities,Childrens Hlth & Family Supp,Childrens Centre Development,Other Agencies,Child Care Payments,PJ104,25/10/2012,153005,342.74,Revenue,FOR UNDER FIVES LTD,103903
North East Lincolnshire Council,http://statistics.data.gov.uk/id/local-authority/00FC,People And Communities,Childrens Hlth & Family Supp,Childrens Centre Development,Rep Alterations Maint Building,Internal Decoration,GA119,03/10/2012,147327,364.64,Revenue,LUDAFLORS,100547
North East Lincolnshire Council,http://statistics.data.gov.uk/id/local-authority/00FC,People And Communities,Childrens Hlth & Family Supp,Childrens Centre Development,Other Agencies,Child Care Payments,PJ104,29/10/2012,153877,477.14,Revenue,FOR UNDER FIVES LTD,103903
North East Lincolnshire Council,http://statistics.data.gov.uk/id/local-authority/00FC,People And Communities,Childrens Hlth & Family Supp,Childrens Centre Development,Equip / Furniture / Materials,Non-Teaching Resources,LA118,10/10/2012,137455,582.49,Revenue,DEMCO EUROPE LIMITED,108317
North East Lincolnshire Council,http://statistics.data.gov.uk/id/local-authority/00FC,People And Communities,Childrens Hlth & Family Supp,Childrens Centre Development,Rep Alterations Maint Building,Internal Decoration,GA119,16/10/2012,148174,743.00,Revenue,ARK JOINERY AND BUILDING MAINTENANCE LTD,101126
North East Lincolnshire Council,http://statistics.data.gov.uk/id/local-authority/00FC,People And Communities,Childrens Hlth & Family Supp,Childrens Centre Development,Equip / Furniture / Materials,Non-Teaching Resources,LA118,16/10/2012,149625,"1,500.00",Revenue,NEWBY LEISURE LTD,101227
North East Lincolnshire Council,http://statistics.data.gov.uk/id/local-authority/00FC,People And Communities,Childrens Hlth & Family Supp,Childrens Centre Development,Equip / Furniture / Materials,Non-Teaching Resources,LA118,16/10/2012,149399,"1,980.00",Revenue,NEWBY LEISURE LTD,101227
North East Lincolnshire Council,http://statistics.data.gov.uk/id/local-authority/00FC,People And Communities,Childrens Hlth & Family Supp,Childrens Centre Development,Rep Alterations Maint Building,Internal Decoration,GA119,17/10/2012,139977,251.80,Revenue,FINDEL EDUCATION LIMITED,101237
North East Lincolnshire Council,http://statistics.data.gov.uk/id/local-authority/00FC,People And Communities,Childrens Hlth & Family Supp,Childrens Centre Development,Rep Alterations Maint Building,Internal Decoration,GA119,16/10/2012,149259,275.00,Revenue,EARLY EXCELLENCE LTD,101179
North East Lincolnshire Council,http://statistics.data.gov.uk/id/local-authority/00FC,People And Communities,Childrens Hlth & Family Supp,Childrens Centre Development,Clothes Uniforms And Laundry,Uniforms,LC102,30/10/2012,153533,-120.50,Revenue,FIRST CORPORATE CLOTHING LTD,102799
North East Lincolnshire Council,http://statistics.data.gov.uk/id/local-authority/00FC,People And Communities,Childrens Hlth & Family Supp,Childrens Centre Development,Direct Employee Expenses,Agency Staff,EA105,15/10/2012,149685,286.92,Revenue,MATRIX SCM LTD,108117
North East Lincolnshire Council,http://statistics.data.gov.uk/id/local-authority/00FC,People And Communities,Childrens Hlth & Family Supp,Childrens Centre Development,Catering,Provisions,LB101,18/10/2012,150670,500.00,Revenue,TESCO STORES LIMITED,102576
North East Lincolnshire Council,http://statistics.data.gov.uk/id/local-authority/00FC,People And Communities,Childrens Hlth & Family Supp,Childrens Centre Development,Communications And Computing,Postage,LF111,16/10/2012,148365,500.00,Revenue,LYRECO UK LIMITED,101120
North East Lincolnshire Council,http://statistics.data.gov.uk/id/local-authority/00FC,People And Communities,Childrens Hlth & Family Supp,Childrens Centre Development,Equip / Furniture / Materials,Furniture - Purchase,LA105,16/10/2012,149329,874.00,Revenue,COMMUNITY PRODUCTS (UK) LTD,101007
North East Lincolnshire Council,http://statistics.data.gov.uk/id/local-authority/00FC,People And Communities,Childrens Hlth & Family Supp,Childrens Centre Development,Other Agencies,Educational Visits,PJ152,03/10/2012,147239,REDACTED COMMERCIALLY SENSITIVE,Revenue,AMVALE LIMITED,101030
North East Lincolnshire Council,http://statistics.data.gov.uk/id/local-authority/00FC,People And Communities,Childrens Hlth & Family Supp,Childrens Centre Development,Other Agencies,Child Care Payments,PJ104,05/10/2012,147744,696.60,Revenue,FOR UNDER FIVES LTD,100647
North East Lincolnshire Council,http://statistics.data.gov.uk/id/local-authority/00FC,People And Communities,Childrens Hlth & Family Supp,Childrens Centre Development,Other Agencies,Child Care Payments,PJ104,05/10/2012,147734,774.00,Revenue,FOR UNDER FIVES LTD,101795
North East Lincolnshire Council,http://statistics.data.gov.uk/id/local-authority/00FC,People And Communities,Childrens Hlth & Family Supp,Childrens Centre Development,Other Agencies,Child Care Payments,PJ104,05/10/2012,147740,774.00,Revenue,FOR UNDER FIVES LTD,101795
North East Lincolnshire Council,http://statistics.data.gov.uk/id/local-authority/00FC,People And Communities,Childrens Hlth & Family Supp,Childrens Centre Development,Equip / Furniture / Materials,Furniture - Purchase,LA105,17/10/2012,148364,367.00,Revenue,LYRECO UK LIMITED,101120
North East Lincolnshire Council,http://statistics.data.gov.uk/id/local-authority/00FC,People And Communities,Childrens Hlth & Family Supp,Childrens Centre Development,Other Agencies,Child Care Payments,PJ104,04/10/2012,139455,"1,699.32",Revenue,PRE SCHOOL LEARNING ALLIANCE,101437
North East Lincolnshire Council,http://statistics.data.gov.uk/id/local-authority/00FC,People And Communities,Childrens Hlth & Family Supp,Childrens Centre Development,Equip / Furniture / Materials,Furniture - Purchase,LA105,17/10/2012,147664,-46.00,Revenue,SYLVESTER-KEAL LTD,100593
North East Lincolnshire Council,http://statistics.data.gov.uk/id/local-authority/00FC,People And Communities,Childrens Hlth & Family Supp,Childrens Centre Development,Equip / Furniture / Materials,Furniture - Purchase,LA105,17/10/2012,138576,295.00,Revenue,SYLVESTER-KEAL LTD,100593
North East Lincolnshire Council,http://statistics.data.gov.uk/id/local-authority/00FC,People And Communities,Childrens Hlth & Family Supp,Childrens Centre Development,Equip / Furniture / Materials,Non-Teaching Resources,LA118,26/10/2012,152997,600.00,Revenue,TESCO STORES LIMITED,102576
North East Lincolnshire Council,http://statistics.data.gov.uk/id/local-authority/00FC,People And Communities,Childrens Hlth & Family Supp,Childrens Centre Development,Equip / Furniture / Materials,Equipment - Purchase,LA101,25/10/2012,152578,799.60,Revenue,MOISERS(GRIMSBY)LTD,100746
North East Lincolnshire Council,http://statistics.data.gov.uk/id/local-authority/00FC,People And Communities,Childrens Hlth & Family Supp,Childrens Centre Development,Other Agencies,Child Care Payments,PJ104,10/10/2012,148170,"1,098.83",Revenue,FIRST STEPS GRIMSBY LIMITED,101411
North East Lincolnshire Council,http://statistics.data.gov.uk/id/local-authority/00FC,People And Communities,Childrens Hlth & Family Supp,Childrens Centre Development,Communications And Computing,Computer H/Ware - Purchases,LF105,18/10/2012,148774,"1,254.52",Revenue,COMPUTACENTER UK LTD,101303
North East Lincolnshire Council,http://statistics.data.gov.uk/id/local-authority/00FC,People And Communities,Childrens Hlth & Family Supp,Childrens Centre Development,Other Agencies,Child Care Payments,PJ104,24/10/2012,152442,"1,372.50",Revenue,FIRST STEPS GRIMSBY LIMITED,101411
North East Lincolnshire Council,http://statistics.data.gov.uk/id/local-authority/00FC,People And Communities,Childrens Hlth & Family Supp,Childrens Centre Development,Direct Employee Expenses,Agency Staff,EA105,04/10/2012,146773,312.67,Revenue,MATRIX SCM LTD,108117
North East Lincolnshire Council,http://statistics.data.gov.uk/id/local-authority/00FC,People And Communities,Childrens Hlth & Family Supp,Childrens Centre Development,Direct Employee Expenses,Agency Staff,EA105,09/10/2012,148458,312.67,Revenue,MATRIX SCM LTD,108117
North East Lincolnshire Council,http://statistics.data.gov.uk/id/local-authority/00FC,People And Communities,Childrens Hlth & Family Supp,Childrens Centre Development,Contributions To Provisions,Contributions - Other,LK103,16/10/2012,148531,320.00,Revenue,CHRISSIE HARDIE COUNSELLING SERVICES,106702
North East Lincolnshire Council,http://statistics.data.gov.uk/id/local-authority/00FC,People And Communities,Childrens Hlth & Family Supp,Childrens Centre Development,Direct Employee Expenses,Agency Staff,EA105,17/10/2012,150430,341.12,Revenue,MATRIX SCM LTD,108117
North East Lincolnshire Council,http://statistics.data.gov.uk/id/local-authority/00FC,People And Communities,Childrens Hlth & Family Supp,Childrens Centre Development,Direct Employee Expenses,Agency Staff,EA105,24/10/2012,152377,426.40,Revenue,MATRIX SCM LTD,108117
North East Lincolnshire Council,http://statistics.data.gov.uk/id/local-authority/00FC,People And Communities,Childrens Hlth & Family Supp,Childrens Centre Development,Direct Employee Expenses,Agency Staff,EA105,15/10/2012,149685,665.24,Revenue,MATRIX SCM LTD,108117
North East Lincolnshire Council,http://statistics.data.gov.uk/id/local-authority/00FC,People And Communities,Childrens Hlth & Family Supp,Childrens Centre Development,Other Agencies,Child Care Payments,PJ104,16/10/2012,149637,817.48,Revenue,FOR UNDER FIVES,101931
North East Lincolnshire Council,http://statistics.data.gov.uk/id/local-authority/00FC,People And Communities,Childrens Hlth & Family Supp,Childrens Centre Development,Other Agencies,Child Care Payments,PJ104,30/10/2012,153894,875.44,Revenue,FOR UNDER FIVES,101931
North East Lincolnshire Council,http://statistics.data.gov.uk/id/local-authority/00FC,People And Communities,Childrens Hlth & Family Supp,Childrens Centre Development,Other Agencies,Child Care Payments,PJ104,30/10/2012,153896,890.74,Revenue,FOR UNDER FIVES,101931
North East Lincolnshire Council,http://statistics.data.gov.uk/id/local-authority/00FC,People And Communities,Childrens Hlth & Family Supp,Childrens Centre Development,Equip / Furniture / Materials,Non-Teaching Resources,LA118,16/10/2012,149626,"1,295.00",Revenue,NEWBY LEISURE LTD,101227
North East Lincolnshire Council,http://statistics.data.gov.uk/id/local-authority/00FC,People And Communities,Childrens Hlth & Family Supp,Childrens Centre Development,Other Agencies,Child Care Payments,PJ104,30/10/2012,154076,"2,902.50",Revenue,FOR UNDER FIVES LTD,100647
North East Lincolnshire Council,http://statistics.data.gov.uk/id/local-authority/00FC,People And Communities,Childrens Hlth & Family Supp,Childrens Centre Development,Private Contractors,Third Party Prov - Private,PH101,18/10/2012,151189,"1,663.00",Revenue,N LINCS & GOOLE HOSPITALS NHS,111074
North East Lincolnshire Council,http://statistics.data.gov.uk/id/local-authority/00FC,People And Communities,Childrens Hlth & Family Supp,Childrens Centre Development,Private Contractors,Third Party Prov - Private,PH101,22/10/2012,151033,"2,100.00",Revenue,PRE SCHOOL LEARNING ALLIANCE,101437
North East Lincolnshire Council,http://statistics.data.gov.uk/id/local-authority/00FC,People And Communities,Childrens Hlth & Family Supp,Childrens Centre Development,Private Contractors,Third Party Prov - Private,PH101,18/10/2012,151200,"2,450.00",Revenue,GUTHERSON RESEARCH LTD,108410
North East Lincolnshire Council,http://statistics.data.gov.uk/id/local-authority/00FC,People And Communities,Childrens Hlth & Family Supp,Childrens Centre Development,Private Contractors,Third Party Prov - Private,PH101,18/10/2012,151032,"21,125.00",Revenue,PRE SCHOOL LEARNING ALLIANCE,101437
North East Lincolnshire Council,http://statistics.data.gov.uk/id/local-authority/00FC,People And Communities,Childrens Hlth & Family Supp,Childrens Centre Development,Private Contractors,Third Party Prov - Private,PH101,18/10/2012,151031,"21,250.00",Revenue,PRE SCHOOL LEARNING ALLIANCE,101437
North East Lincolnshire Council,http://statistics.data.gov.uk/id/local-authority/00FC,People And Communities,Childrens Hlth & Family Supp,Childrens Centre Development,Equip / Furniture / Materials,Newspapers/Periodicals,LA122,04/10/2012,147371,-3.96,Revenue,PETTY CASH,REDACTED
North East Lincolnshire Council,http://statistics.data.gov.uk/id/local-authority/00FC,People And Communities,Childrens Hlth & Family Supp,Childrens Centre Development,Other Agencies,Further Ed Emp & Training,PJ130,31/10/2012,154644,360.00,Revenue,FAMILY LINKS,101506
North East Lincolnshire Council,http://statistics.data.gov.uk/id/local-authority/00FC,People And Communities,Childrens Hlth & Family Supp,Childrens Centre Development,Other Agencies,Further Ed Emp & Training,PJ130,26/10/2012,153001,376.00,Revenue,SOVEREIGN TRAINING,105613
North East Lincolnshire Council,http://statistics.data.gov.uk/id/local-authority/00FC,People And Communities,Childrens Hlth & Family Supp,Childrens Centre Development,Equip / Furniture / Materials,Furniture - Purchase,LA105,19/10/2012,149973,450.00,Revenue,IT SERVICES (GRIMSBY) LTD,101060
North East Lincolnshire Council,http://statistics.data.gov.uk/id/local-authority/00FC,People And Communities,Childrens Hlth & Family Supp,Childrens Centre Development,Direct Employee Expenses,Agency Staff,EA105,30/10/2012,153477,529.00,Revenue,FUTURE CLEANING SERVICES LTD,102557
North East Lincolnshire Council,http://statistics.data.gov.uk/id/local-authority/00FC,People And Communities,Childrens Hlth & Family Supp,Childrens Centre Development,Other Agencies,Child Care Payments,PJ104,18/10/2012,150727,635.93,Revenue,SECOND AVENUE RESOURCE CENTRE LIMITED,100648
North East Lincolnshire Council,http://statistics.data.gov.uk/id/local-authority/00FC,People And Communities,Childrens Hlth & Family Supp,Childrens Centre Development,Cleaning And Domestic Supplies,Refuse Collection,GH104,16/10/2012,148534,352.04,Revenue,BELL WASTE CONTROL,101433
North East Lincolnshire Council,http://statistics.data.gov.uk/id/local-authority/00FC,People And Communities,Childrens Hlth & Family Supp,Childrens Centre Development,Cleaning And Domestic Supplies,Cleaning - Services,GH102,26/10/2012,152993,919.91,Revenue,PHS GROUP LTD,100554
North East Lincolnshire Council,http://statistics.data.gov.uk/id/local-authority/00FC,People And Communities,Childrens Hlth & Family Supp,Childrens Centre Development,Energy Costs,Gas,GB101,04/10/2012,147668,-21.91,Revenue,BRITISH GAS TRADING LTD,101507
North East Lincolnshire Council,http://statistics.data.gov.uk/id/local-authority/00FC,People And Communities,Childrens Hlth & Family Supp,Childrens Centre Development,Cleaning And Domestic Supplies,Cleaning - Services,GH102,16/10/2012,147703,280.00,Revenue,EASY CLEAN MARSHCHAPEL LTD,104531
North East Lincolnshire Council,http://statistics.data.gov.uk/id/local-authority/00FC,People And Communities,Childrens Hlth & Family Supp,Childrens Centre Development,Energy Costs,Heating Fuel,GB103,25/10/2012,152455,"1,205.84",Revenue,WATSON PETROLEUM LTD,101348
North East Lincolnshire Council,http://statistics.data.gov.uk/id/local-authority/00FC,People And Communities,Childrens Hlth & Family Supp,Childrens Centre Development,Water Services,Water,GE101,17/10/2012,149630,273.30,Revenue,ANGLIAN WATER,100508
North East Lincolnshire Council,http://statistics.data.gov.uk/id/local-authority/00FC,People And Communities,Childrens Hlth & Family Supp,Childrens Centre Development,Water Services,Water,GE101,17/10/2012,149630,409.96,Revenue,ANGLIAN WATER,100508
North East Lincolnshire Council,http://statistics.data.gov.uk/id/local-authority/00FC,People And Communities,Childrens Hlth & Family Supp,Childrens Centre Development,Cleaning And Domestic Supplies,Cleaning - Services,GH102,03/10/2012,147295,690.08,Revenue,FUTURE CLEANING SERVICES LTD,102557
North East Lincolnshire Council,http://statistics.data.gov.uk/id/local-authority/00FC,People And Communities,Childrens Hlth & Family Supp,Childrens Centre Development,Energy Costs,Gas,GB101,15/10/2012,149619,"1,175.93",Revenue,BRITISH GAS TRADING LTD,101507
North East Lincolnshire Council,http://statistics.data.gov.uk/id/local-authority/00FC,People And Communities,Childrens Hlth & Family Supp,Childrens Centre Development,Energy Costs,Gas,GB101,15/10/2012,149620,"3,433.81",Revenue,BRITISH GAS TRADING LTD,101507
North East Lincolnshire Council,http://statistics.data.gov.uk/id/local-authority/00FC,People And Communities,Childrens Hlth & Family Supp,Childrens Centre Development,Rep Alterations Maint Building,Buildings - Repairs And Maint,GA102,15/10/2012,149197,291.08,Revenue,HAITH'S HEATING LTD,101342
North East Lincolnshire Council,http://statistics.data.gov.uk/id/local-authority/00FC,People And Communities,Childrens Hlth & Family Supp,Childrens Centre Development,Cleaning And Domestic Supplies,Refuse Collection,GH104,18/10/2012,151002,318.24,Revenue,BELL WASTE CONTROL,101433
North East Lincolnshire Council,http://statistics.data.gov.uk/id/local-authority/00FC,People And Communities,Childrens Hlth & Family Supp,Childrens Centre Development,Rep Alterations Maint Building,Buildings - Repairs And Maint,GA102,05/10/2012,147795,860.00,Revenue,FUTURE CLEANING SERVICES LTD,102557
North East Lincolnshire Council,http://statistics.data.gov.uk/id/local-authority/00FC,People And Communities,Childrens Hlth & Family Supp,Childrens Centre Development,Rep Alterations Maint Building,Buildings - Repairs And Maint,GA102,02/10/2012,146531,293.00,Revenue,JOHN DASS ELECTRICAL CONTRACTORS LTD,111850
North East Lincolnshire Council,http://statistics.data.gov.uk/id/local-authority/00FC,People And Communities,Childrens Hlth & Family Supp,Childrens Centre Development,Rep Alterations Maint Building,Buildings - Repairs And Maint,GA102,02/10/2012,146712,741.00,Revenue,FRED MARGARSON LTD,100592
North East Lincolnshire Council,http://statistics.data.gov.uk/id/local-authority/00FC,People And Communities,Childrens Hlth & Family Supp,Childrens Centre Development,Energy Costs,Gas,GB101,04/10/2012,147658,-35.57,Revenue,BRITISH GAS TRADING LTD,101507
North East Lincolnshire Council,http://statistics.data.gov.uk/id/local-authority/00FC,People And Communities,Childrens Hlth & Family Supp,Childrens Centre Development,Cleaning And Domestic Supplies,Cleaning - Services,GH102,30/10/2012,153893,270.00,Revenue,BEST VALUE PEST CONTROL,101194
North East Lincolnshire Council,http://statistics.data.gov.uk/id/local-authority/00FC,People And Communities,Childrens Hlth & Family Supp,Childrens Centre Development,Energy Costs,Electricity,GB102,30/10/2012,153865,290.59,Revenue,NPOWER LIMITED,101414
North East Lincolnshire Council,http://statistics.data.gov.uk/id/local-authority/00FC,People And Communities,Childrens Hlth & Family Supp,Childrens Centre Development,Other Agencies,Child Care Payments,PJ104,16/10/2012,149340,"1,190.00",Revenue,CHAPPILLS DAY NURSERY,100998
North East Lincolnshire Council,http://statistics.data.gov.uk/id/local-authority/00FC,People And Communities,Childrens Hlth & Family Supp,Childrens Centre Development,Private Contractors,Third Party Prov - Private,PH101,19/10/2012,151213,325.00,Revenue,GRIMSBY CENTRAL HALL TRUST,100882
North East Lincolnshire Council,http://statistics.data.gov.uk/id/local-authority/00FC,People And Communities,Childrens Hlth & Family Supp,Childrens Centre Development,Private Contractors,Third Party Prov - Private,PH101,26/10/2012,153065,557.54,Revenue,RUSTYS CYCLES LTD,112015
North East Lincolnshire Council,http://statistics.data.gov.uk/id/local-authority/00FC,People And Communities,Childrens Hlth & Family Supp,Childrens Centre Development,Private Contractors,Third Party Prov - Private,PH101,19/10/2012,150596,"2,462.90",Revenue,JC COOK LTD,106127
North East Lincolnshire Council,http://statistics.data.gov.uk/id/local-authority/00FC,People And Communities,Childrens Hlth & Family Supp,Childrens Centre Development,Private Contractors,Third Party Prov - Private,PH101,26/10/2012,151188,"3,282.75",Revenue,THE RICKTER COMPANY,105465
North East Lincolnshire Council,http://statistics.data.gov.uk/id/local-authority/00FC,People And Communities,Childrens Hlth & Family Supp,Integ Local Service Delivery,Car Allowances,Travel - Employees,JF101,09/10/2012,147814,259.75,Revenue,NYS CORPORATE,102444
North East Lincolnshire Council,http://statistics.data.gov.uk/id/local-authority/00FC,People And Communities,Childrens Hlth & Family Supp,Integ Local Service Delivery,Private Contractors,Third Party Prov - Private,PH101,30/10/2012,153312,"5,686.49",Revenue,HUMBERSIDE POLICE AUTHORITY,100762
North East Lincolnshire Council,http://statistics.data.gov.uk/id/local-authority/00FC,People And Communities,Childrens Hlth & Family Supp,Integ Local Service Delivery,Private Contractors,Third Party Prov - Private,PH101,19/10/2012,151540,"8,595.00",Revenue,N LINCS & GOOLE HOSPITALS NHS,111074
North East Lincolnshire Council,http://statistics.data.gov.uk/id/local-authority/00FC,People And Communities,Childrens Hlth & Family Supp,Integ Local Service Delivery,Private Contractors,Third Party Prov - Private,PH101,10/10/2012,147857,"8,595.00",Revenue,NORTHERN LINCOLNSHIRE & GOOLE HOSPITALS,101242
North East Lincolnshire Council,http://statistics.data.gov.uk/id/local-authority/00FC,People And Communities,Childrens Hlth & Family Supp,Integ Local Service Delivery,Private Contractors,Third Party Prov - Private,PH101,19/10/2012,151212,"18,333.33",Revenue,BARNARDO SERVICES LTD,100782
North East Lincolnshire Council,http://statistics.data.gov.uk/id/local-authority/00FC,People And Communities,Childrens Hlth & Family Supp,Integ Local Service Delivery,Private Contractors,Third Party Prov - Private,PH101,10/10/2012,147805,"25,000.00",Revenue,BARNARDO SERVICES LTD,100782
North East Lincolnshire Council,http://statistics.data.gov.uk/id/local-authority/00FC,People And Communities,Childrens Hlth & Family Supp,Palliative / Complex Care,Private Contractors,Third Party Prov - Private,PH101,24/10/2012,152228,301.77,Revenue,ARCADIA RECRUITMENT LIMITED,100425
North East Lincolnshire Council,http://statistics.data.gov.uk/id/local-authority/00FC,People And Communities,Childrens Hlth & Family Supp,Palliative / Complex Care,Private Contractors,Third Party Prov - Private,PH101,24/10/2012,152229,301.77,Revenue,ARCADIA RECRUITMENT LIMITED,100425
North East Lincolnshire Council,http://statistics.data.gov.uk/id/local-authority/00FC,People And Communities,Childrens Hlth & Family Supp,Palliative / Complex Care,Miscellaneous Expenses,Other Expenses General,LL119,04/10/2012,147678,304.00,Revenue,VIRGIN MEDIA,107612
North East Lincolnshire Council,http://statistics.data.gov.uk/id/local-authority/00FC,People And Communities,Childrens Hlth & Family Supp,Palliative / Complex Care,Private Contractors,Third Party Prov - Private,PH101,18/10/2012,149993,"1,800.00",Revenue,REDACTED PERSONAL INFORMATION,REDACTED PERSONAL INFORMATION
North East Lincolnshire Council,http://statistics.data.gov.uk/id/local-authority/00FC,People And Communities,Childrens Hlth & Family Supp,Palliative / Complex Care,Private Contractors,Third Party Prov - Private,PH101,24/10/2012,152230,"4,196.80",Revenue,EAST MIDLANDS CROSSROADS,102400
North East Lincolnshire Council,http://statistics.data.gov.uk/id/local-authority/00FC,People And Communities,Childrens Hlth & Family Supp,Palliative / Complex Care,Private Contractors,Third Party Prov - Private,PH101,16/10/2012,149450,"6,206.52",Revenue,INDEPENDENT COMMUNITY CARE MANAGEMENT LTD,105477
North East Lincolnshire Council,http://statistics.data.gov.uk/id/local-authority/00FC,People And Communities,Improved Health,Env Commerce Food & Health,Indirect Employee Expenses,Frs17 Pensions,EB101,23/10/2012,150883,250.00,Revenue,THOMPSONS SOLICITORS,101854
North East Lincolnshire Council,http://statistics.data.gov.uk/id/local-authority/00FC,People And Communities,Improved Health,Env Commerce Food & Health,Direct Employee Expenses,Pay,EA101,03/10/2012,110142,REDACTED PERSONAL INFORMATION,Revenue,REDACTED PERSONAL INFORMATION,REDACTED PERSONAL INFORMATION
North East Lincolnshire Council,http://statistics.data.gov.uk/id/local-authority/00FC,People And Communities,Improved Health,Env Commerce Food & Health,Car Allowances,Travel - Employees,JF101,17/10/2012,149617,-51.26,Revenue,NYS CORPORATE,102444
North East Lincolnshire Council,http://statistics.data.gov.uk/id/local-authority/00FC,People And Communities,Improved Health,Env Commerce Food & Health,Car Allowances,Travel - Employees,JF101,18/10/2012,149655,-33.80,Revenue,NYS CORPORATE,102444
North East Lincolnshire Council,http://statistics.data.gov.uk/id/local-authority/00FC,People And Communities,Improved Health,Env Commerce Food & Health,Direct Employee Expenses,Agency Staff,EA105,26/10/2012,153292,718.88,Revenue,OSBORNE RICHARDSON,101354
North East Lincolnshire Council,http://statistics.data.gov.uk/id/local-authority/00FC,People And Communities,Improved Health,Env Commerce Food & Health,Miscellaneous Expenses,Environmental/Health Analysis,LL120,05/10/2012,145461,720.00,Revenue,WAKEFIELD MD COUNCIL,100967
North East Lincolnshire Council,http://statistics.data.gov.uk/id/local-authority/00FC,People And Communities,Improved Health,Env Commerce Food & Health,Miscellaneous Expenses,Environmental/Health Analysis,LL120,31/10/2012,154303,840.00,Revenue,FERA,106144
North East Lincolnshire Council,http://statistics.data.gov.uk/id/local-authority/00FC,People And Communities,Improved Health,Env Commerce Food & Health,Direct Employee Expenses,Agency Staff,EA105,04/10/2012,145002,958.50,Revenue,OSBORNE RICHARDSON,101354
North East Lincolnshire Council,http://statistics.data.gov.uk/id/local-authority/00FC,People And Communities,Improved Health,Env Commerce Food & Health,Direct Employee Expenses,Agency Staff,EA105,18/10/2012,149390,958.50,Revenue,OSBORNE RICHARDSON,101354
North East Lincolnshire Council,http://statistics.data.gov.uk/id/local-authority/00FC,People And Communities,Improved Health,Env Commerce Food & Health,Direct Employee Expenses,Agency Staff,EA105,31/10/2012,154301,958.50,Revenue,OSBORNE RICHARDSON,101354
North East Lincolnshire Council,http://statistics.data.gov.uk/id/local-authority/00FC,People And Communities,Improved Health,Env Commerce Food & Health,Equip / Furniture / Materials,Equipment - Purchase,LA101,05/10/2012,147673,"1,850.00",Revenue,PRECINTIA UK LTD,111517
North East Lincolnshire Council,http://statistics.data.gov.uk/id/local-authority/00FC,People And Communities,Improved Health,Licensing,Grants And Subscriptions,Subscriptions,LJ101,03/10/2012,147282,250.00,Revenue,INSTITUTE OF LICENSING,108785
North East Lincolnshire Council,http://statistics.data.gov.uk/id/local-authority/00FC,People And Communities,Improved Health,Licensing,Consultancy,Consultancy,PL101,25/10/2012,152532,351.25,Revenue,COOK TIMSON & BETT  MS R C V S,105324
North East Lincolnshire Council,http://statistics.data.gov.uk/id/local-authority/00FC,People And Communities,Improved Health,Licensing,Indirect Employee Expenses,Staff Training,EB122,03/10/2012,147306,990.00,Revenue,INSTITUTE OF LICENSING (EVENTS) LTD,109054
North East Lincolnshire Council,http://statistics.data.gov.uk/id/local-authority/00FC,People And Communities,Improved Health,Licensing,Equip / Furniture / Materials,Goods For Resale,LA123,18/10/2012,149646,608.72,Revenue,VIP SYSTEM LTD,101697
North East Lincolnshire Council,http://statistics.data.gov.uk/id/local-authority/00FC,People And Communities,Improved Health,Trading Standards,Miscellaneous Expenses,Environmental/Health Analysis,LL120,04/10/2012,147385,355.31,Revenue,PETTY CASH,REDACTED
North East Lincolnshire Council,http://statistics.data.gov.uk/id/local-authority/00FC,People And Communities,Improved Health,Trading Standards,Direct Employee Expenses,Agency Staff,EA105,03/10/2012,147270,960.00,Revenue,KENYON BLOCK CONSULTANTS,101878
North East Lincolnshire Council,http://statistics.data.gov.uk/id/local-authority/00FC,People And Communities,Improved Health,Trading Standards,Direct Employee Expenses,Agency Staff,EA105,05/10/2012,147748,"1,120.00",Revenue,KENYON BLOCK CONSULTANTS,101878
North East Lincolnshire Council,http://statistics.data.gov.uk/id/local-authority/00FC,People And Communities,Improved Health,Trading Standards,Direct Employee Expenses,Agency Staff,EA105,25/10/2012,149810,"1,120.00",Revenue,KENYON BLOCK CONSULTANTS,101878
North East Lincolnshire Council,http://statistics.data.gov.uk/id/local-authority/00FC,People And Communities,Improved Health,Trading Standards,Direct Employee Expenses,Agency Staff,EA105,16/10/2012,149811,"1,352.88",Revenue,KENYON BLOCK CONSULTANTS,101878
North East Lincolnshire Council,http://statistics.data.gov.uk/id/local-authority/00FC,People And Communities,Improved Health,Trading Standards,Communications And Computing,Computer S/Ware - Licences,LF103,16/10/2012,148338,"4,785.00",Revenue,LEXISNEXIS UK,101447
North East Lincolnshire Council,http://statistics.data.gov.uk/id/local-authority/00FC,People And Communities,Improved Health,Supporting People,Other Agencies,Third Pp - Block Subsidy,PJ102,16/10/2012,149957,REDACTED COMMERCIALLY SENSITIVE,Revenue,HANOVER HOUSING ASSOCIATION,100307
North East Lincolnshire Council,http://statistics.data.gov.uk/id/local-authority/00FC,People And Communities,Improved Health,Supporting People,Other Agencies,Third Pp - Block Subsidy,PJ102,16/10/2012,149963,REDACTED COMMERCIALLY SENSITIVE,Revenue,ABBEYFIELD,100331
North East Lincolnshire Council,http://statistics.data.gov.uk/id/local-authority/00FC,People And Communities,Improved Health,Supporting People,Other Agencies,Third Pp - Block Subsidy,PJ102,16/10/2012,149962,REDACTED COMMERCIALLY SENSITIVE,Revenue,ANCHOR TRUST,100327
North East Lincolnshire Council,http://statistics.data.gov.uk/id/local-authority/00FC,People And Communities,Improved Health,Supporting People,Other Agencies,Third Pp - Block Subsidy,PJ102,16/10/2012,149960,REDACTED COMMERCIALLY SENSITIVE,Revenue,HOUSING 21,100320
North East Lincolnshire Council,http://statistics.data.gov.uk/id/local-authority/00FC,People And Communities,Improved Health,Supporting People,Other Agencies,Third Pp - Block Subsidy,PJ102,16/10/2012,149958,REDACTED COMMERCIALLY SENSITIVE,Revenue,HUMBERCARE LTD,100311
North East Lincolnshire Council,http://statistics.data.gov.uk/id/local-authority/00FC,People And Communities,Improved Health,Supporting People,Other Agencies,Third Pp - Block Gross,PJ103,26/10/2012,153335,REDACTED COMMERCIALLY SENSITIVE,Revenue,YORK HOUSING ASSOCIATION LTD,100341
North East Lincolnshire Council,http://statistics.data.gov.uk/id/local-authority/00FC,People And Communities,Improved Health,Supporting People,Other Agencies,Third Pp - Block Subsidy,PJ102,16/10/2012,149968,REDACTED COMMERCIALLY SENSITIVE,Revenue,CREATIVE SUPPORT LTD,107198
North East Lincolnshire Council,http://statistics.data.gov.uk/id/local-authority/00FC,People And Communities,Improved Health,Supporting People,Other Agencies,Third Pp - Block Subsidy,PJ102,16/10/2012,149966,REDACTED COMMERCIALLY SENSITIVE,Revenue,OPEN DOOR (HEALTH) LTD,103147
North East Lincolnshire Council,http://statistics.data.gov.uk/id/local-authority/00FC,People And Communities,Improved Health,Supporting People,Other Agencies,Third Pp - Block Gross,PJ103,26/10/2012,153337,REDACTED COMMERCIALLY SENSITIVE,Revenue,SANCTUARY HOUSING ASSOCIATION,103289
North East Lincolnshire Council,http://statistics.data.gov.uk/id/local-authority/00FC,People And Communities,Improved Health,Supporting People,Other Agencies,Third Pp - Block Gross,PJ103,26/10/2012,153333,REDACTED COMMERCIALLY SENSITIVE,Revenue,CARE,100314
North East Lincolnshire Council,http://statistics.data.gov.uk/id/local-authority/00FC,People And Communities,Improved Health,Supporting People,Other Agencies,Third Pp - Block Subsidy,PJ102,16/10/2012,149959,REDACTED COMMERCIALLY SENSITIVE,Revenue,HICA,100319
North East Lincolnshire Council,http://statistics.data.gov.uk/id/local-authority/00FC,People And Communities,Improved Health,Supporting People,Other Agencies,Third Pp - Block Gross,PJ103,26/10/2012,153332,REDACTED COMMERCIALLY SENSITIVE,Revenue,HUMBERCARE LTD,100311
North East Lincolnshire Council,http://statistics.data.gov.uk/id/local-authority/00FC,People And Communities,Improved Health,Supporting People,Other Agencies,Third Pp - Block Subsidy,PJ102,16/10/2012,149967,REDACTED COMMERCIALLY SENSITIVE,Revenue,NAVIGO HEALTH AND SOCIAL CARE CIC,104262
North East Lincolnshire Council,http://statistics.data.gov.uk/id/local-authority/00FC,People And Communities,Improved Health,Supporting People,Other Agencies,Third Pp - Block Gross,PJ103,26/10/2012,153334,REDACTED COMMERCIALLY SENSITIVE,Revenue,WOMENS AID,100326
North East Lincolnshire Council,http://statistics.data.gov.uk/id/local-authority/00FC,People And Communities,Improved Health,Supporting People,Other Agencies,Third Pp - Block Gross,PJ103,26/10/2012,153330,REDACTED COMMERCIALLY SENSITIVE,Revenue,THE SALVATION ARMY,100309
North East Lincolnshire Council,http://statistics.data.gov.uk/id/local-authority/00FC,People And Communities,Improved Health,Supporting People,Other Agencies,Third Pp - Block Gross,PJ103,26/10/2012,153331,REDACTED COMMERCIALLY SENSITIVE,Revenue,DOORSTEP,100310
North East Lincolnshire Council,http://statistics.data.gov.uk/id/local-authority/00FC,People And Communities,Improved Health,Supporting People,Other Agencies,Third Pp - Block Gross,PJ103,26/10/2012,153336,REDACTED COMMERCIALLY SENSITIVE,Revenue,LONGHURST AND HAVELOK HOMES LTD,100342
North East Lincolnshire Council,http://statistics.data.gov.uk/id/local-authority/00FC,People And Communities,Improved Health,Supporting People,Other Agencies,Third Pp - Block Gross,PJ103,26/10/2012,153329,REDACTED COMMERCIALLY SENSITIVE,Revenue,GRIMSBY AND CLEETHORPES YMCA,100305
North East Lincolnshire Council,http://statistics.data.gov.uk/id/local-authority/00FC,People And Communities,Improved Health,Supporting People,Other Agencies,Third Pp - Block Subsidy,PJ102,16/10/2012,149961,REDACTED COMMERCIALLY SENSITIVE,Revenue,HOUSING & SUPPORT SOLUTIONS,100321
North East Lincolnshire Council,http://statistics.data.gov.uk/id/local-authority/00FC,People And Communities,Improved Health,Supporting People,Other Agencies,Third Pp - Block Subsidy,PJ102,16/10/2012,149965,REDACTED COMMERCIALLY SENSITIVE,Revenue,LONGHURST AND HAVELOK HOMES LTD,100342
North East Lincolnshire Council,http://statistics.data.gov.uk/id/local-authority/00FC,People And Communities,Improved Health,Health Promotion,Catering,Catering Costs,LB102,18/10/2012,149941,300.00,Revenue,THE CULTURE HOUSE,102644
North East Lincolnshire Council,http://statistics.data.gov.uk/id/local-authority/00FC,People And Communities,Improved Health,Health Promotion,Contributions To Provisions,Contributions - Other,LK103,05/10/2012,148162,500.00,Revenue,CARE PLUS GROUP,106467
North East Lincolnshire Council,http://statistics.data.gov.uk/id/local-authority/00FC,People And Communities,Improved Health,Health Promotion,Contributions To Provisions,Contributions - Other,LK103,16/10/2012,149410,550.00,Revenue,RELAX KIDS LIMITED,111745
North East Lincolnshire Council,http://statistics.data.gov.uk/id/local-authority/00FC,People And Communities,Improved Health,Health Promotion,Miscellaneous Expenses,Other Supplies & Services,LL110,05/10/2012,147783,"1,250.00",Revenue,TICE SEMINARS LTD T/A THE PACIFIC INSTITUTE,101034
North East Lincolnshire Council,http://statistics.data.gov.uk/id/local-authority/00FC,People And Communities,Improved Health,Health Promotion,Contributions To Provisions,Contributions - Other,LK103,09/10/2012,148322,"2,900.00",Revenue,WALKWELL,111931
North East Lincolnshire Council,http://statistics.data.gov.uk/id/local-authority/00FC,People And Communities,Improved Health,Health Trainers,Equip / Furniture / Materials,Equipment - Purchase,LA101,31/10/2012,153797,-1.69,Revenue,PETTY CASH,REDACTED
North East Lincolnshire Council,http://statistics.data.gov.uk/id/local-authority/00FC,People And Communities,Improved Health,Health Trainers,Catering,Provisions,LB101,30/10/2012,153782,409.12,Revenue,CARE PLUS GROUP,106467
North East Lincolnshire Council,http://statistics.data.gov.uk/id/local-authority/00FC,People And Communities,Improved Health,Health Trainers,Catering,Provisions,LB101,10/10/2012,148078,511.40,Revenue,CARE PLUS GROUP,106467
North East Lincolnshire Council,http://statistics.data.gov.uk/id/local-authority/00FC,People And Communities,Improved Health,Health Trainers,Rents,Rent,GC101,09/10/2012,148088,560.00,Revenue,THE GRIMSBY INSTITUTE OF FURTHER,102742
North East Lincolnshire Council,http://statistics.data.gov.uk/id/local-authority/00FC,People And Communities,Improved Health,Health Trainers,Print Stationery / Gen Off Exp,Publicity,LD105,24/10/2012,145066,"1,039.00",Revenue,ALTERNATIVE BIKE COMPANY,110680
North East Lincolnshire Council,http://statistics.data.gov.uk/id/local-authority/00FC,People And Communities,Improved Health,Health Trainers,Communications And Computing,Telephones,LF112,26/10/2012,152940,"2,015.00",Revenue,VODAFONE LIMITED,101324
North East Lincolnshire Council,http://statistics.data.gov.uk/id/local-authority/00FC,People And Communities,Improved Health,Health Trainers,Contributions To Provisions,Contributions - Other,LK103,30/10/2012,153672,"19,774.00",Revenue,NORTH EAST LINCOLNSHIRE PRIMARY CARE TRUST,100337
North East Lincolnshire Council,http://statistics.data.gov.uk/id/local-authority/00FC,People And Communities,Improved Health,Public Health Nelc,Miscellaneous Expenses,Other Expenses General,LL119,25/10/2012,151923,"4,500.00",Revenue,VOLUNTARY ACTION NORTH EAST LINCOLNSHIRE,103631
North East Lincolnshire Council,http://statistics.data.gov.uk/id/local-authority/00FC,People And Communities,Improved Health,Smoking Cessation,Miscellaneous Expenses,Medical Supplies And Services,LL109,31/10/2012,154534,260.16,Revenue,PERIVILLE CHEMIST,103910
North East Lincolnshire Council,http://statistics.data.gov.uk/id/local-authority/00FC,People And Communities,Improved Health,Smoking Cessation,Miscellaneous Expenses,Medical Supplies And Services,LL109,31/10/2012,154542,263.60,Revenue,PERIVILLE CHEMIST,103960
North East Lincolnshire Council,http://statistics.data.gov.uk/id/local-authority/00FC,People And Communities,Improved Health,Smoking Cessation,Print Stationery / Gen Off Exp,Printing And Stationery,LD103,17/10/2012,145020,315.00,Revenue,LEE CREATIVE MARKETING LTD,104460
North East Lincolnshire Council,http://statistics.data.gov.uk/id/local-authority/00FC,People And Communities,Improved Health,Smoking Cessation,Rents,Room Hire,GC103,18/10/2012,150831,352.00,Revenue,ST JAMES CHURCHWARDENS MAIN ACCOUNT,106502
North East Lincolnshire Council,http://statistics.data.gov.uk/id/local-authority/00FC,People And Communities,Improved Health,Smoking Cessation,Print Stationery / Gen Off Exp,Printing And Stationery,LD103,16/10/2012,145022,357.00,Revenue,LEE CREATIVE MARKETING LTD,104460
North East Lincolnshire Council,http://statistics.data.gov.uk/id/local-authority/00FC,People And Communities,Improved Health,Smoking Cessation,Miscellaneous Expenses,Medical Supplies And Services,LL109,31/10/2012,154555,415.51,Revenue,LLOYDS PHARMACY,104027
North East Lincolnshire Council,http://statistics.data.gov.uk/id/local-authority/00FC,People And Communities,Improved Health,Smoking Cessation,Miscellaneous Expenses,Medical Supplies And Services,LL109,31/10/2012,154537,432.97,Revenue,BOOTS THE CHEMIST,103919
North East Lincolnshire Council,http://statistics.data.gov.uk/id/local-authority/00FC,People And Communities,Improved Health,Smoking Cessation,Print Stationery / Gen Off Exp,Printing And Stationery,LD103,17/10/2012,145020,440.00,Revenue,LEE CREATIVE MARKETING LTD,104460
North East Lincolnshire Council,http://statistics.data.gov.uk/id/local-authority/00FC,People And Communities,Improved Health,Smoking Cessation,Miscellaneous Expenses,Medical Supplies And Services,LL109,31/10/2012,154562,445.39,Revenue,COHENS CHEMIST,108177
North East Lincolnshire Council,http://statistics.data.gov.uk/id/local-authority/00FC,People And Communities,Improved Health,Smoking Cessation,Miscellaneous Expenses,Medical Supplies And Services,LL109,31/10/2012,154559,455.36,Revenue,BOOTS THE CHEMIST,106166
North East Lincolnshire Council,http://statistics.data.gov.uk/id/local-authority/00FC,People And Communities,Improved Health,Smoking Cessation,Miscellaneous Expenses,Medical Supplies And Services,LL109,31/10/2012,154563,494.52,Revenue,COHENS CHEMIST,108177
North East Lincolnshire Council,http://statistics.data.gov.uk/id/local-authority/00FC,People And Communities,Improved Health,Smoking Cessation,Miscellaneous Expenses,Medical Supplies And Services,LL109,31/10/2012,154538,525.54,Revenue,BOOTS THE CHEMIST,103919
North East Lincolnshire Council,http://statistics.data.gov.uk/id/local-authority/00FC,People And Communities,Improved Health,Smoking Cessation,Print Stationery / Gen Off Exp,Printing And Stationery,LD103,17/10/2012,145016,535.50,Revenue,LEE CREATIVE MARKETING LTD,104460
North East Lincolnshire Council,http://statistics.data.gov.uk/id/local-authority/00FC,People And Communities,Improved Health,Smoking Cessation,Miscellaneous Expenses,Medical Supplies And Services,LL109,31/10/2012,154539,565.96,Revenue,BOOTS THE CHEMIST,103922
North East Lincolnshire Council,http://statistics.data.gov.uk/id/local-authority/00FC,People And Communities,Improved Health,Smoking Cessation,Miscellaneous Expenses,Medical Supplies And Services,LL109,31/10/2012,154544,783.65,Revenue,ASDA PHARMACY,104011
North East Lincolnshire Council,http://statistics.data.gov.uk/id/local-authority/00FC,People And Communities,Improved Health,Smoking Cessation,Print Stationery / Gen Off Exp,Printing And Stationery,LD103,30/10/2012,152979,973.00,Revenue,LEE CREATIVE MARKETING LTD,104460
North East Lincolnshire Council,http://statistics.data.gov.uk/id/local-authority/00FC,People And Communities,Improved Health,Smoking Cessation,Miscellaneous Expenses,Medical Supplies And Services,LL109,31/10/2012,154560,"1,012.04",Revenue,LLOYDS PHARMACY,106385
North East Lincolnshire Council,http://statistics.data.gov.uk/id/local-authority/00FC,People And Communities,Improved Health,Smoking Cessation,Print Stationery / Gen Off Exp,Advertising,LD104,30/10/2012,150639,"1,202.27",Revenue,LINCS FM GROUP LTD,101523
North East Lincolnshire Council,http://statistics.data.gov.uk/id/local-authority/00FC,People And Communities,Improved Health,Smoking Cessation,Miscellaneous Expenses,Medical Supplies And Services,LL109,31/10/2012,154532,"1,246.56",Revenue,BIRMINGHAM CHEMIST,103907
North East Lincolnshire Council,http://statistics.data.gov.uk/id/local-authority/00FC,People And Communities,Improved Health,Smoking Cessation,Print Stationery / Gen Off Exp,Advertising,LD104,18/10/2012,150751,"1,799.70",Revenue,SUE LAWSON PROMOTIONS,112065
North East Lincolnshire Council,http://statistics.data.gov.uk/id/local-authority/00FC,People And Communities,Improved Health,Smoking Cessation,Print Stationery / Gen Off Exp,Advertising,LD104,18/10/2012,150750,"2,884.80",Revenue,SUE LAWSON PROMOTIONS,112065
North East Lincolnshire Council,http://statistics.data.gov.uk/id/local-authority/00FC,People And Communities,Improved Health,Smoking Cessation,Rents,Room Hire,GC103,17/10/2012,147328,272.00,Revenue,ASHBY COMMUNITY ASSOCIATION,103002
North East Lincolnshire Council,http://statistics.data.gov.uk/id/local-authority/00FC,People And Communities,Improved Health,Smoking Cessation,Miscellaneous Expenses,Medical Supplies And Services,LL109,31/10/2012,154548,373.63,Revenue,SEDGEMILL LTD,104018
North East Lincolnshire Council,http://statistics.data.gov.uk/id/local-authority/00FC,People And Communities,Improved Health,Smoking Cessation,Miscellaneous Expenses,Medical Supplies And Services,LL109,31/10/2012,154545,487.48,Revenue,H I WELDRICK LTD,104015
North East Lincolnshire Council,http://statistics.data.gov.uk/id/local-authority/00FC,People And Communities,Improved Health,Improved Health Operational,Equip / Furniture / Materials,Health & Safety Supplies,LA116,18/10/2012,145733,-250.00,Revenue,SILVALEA,101260
North East Lincolnshire Council,http://statistics.data.gov.uk/id/local-authority/00FC,People And Communities,Improved Health,Improved Health Operational,Equip / Furniture / Materials,Health & Safety Supplies,LA116,24/10/2012,152141,-237.00,Revenue,ARJO MED AB LTD,103268
North East Lincolnshire Council,http://statistics.data.gov.uk/id/local-authority/00FC,People And Communities,Improved Health,Improved Health Operational,Equip / Furniture / Materials,Health & Safety Supplies,LA116,17/10/2012,144304,-202.80,Revenue,WESTHOLME,100608
North East Lincolnshire Council,http://statistics.data.gov.uk/id/local-authority/00FC,People And Communities,Improved Health,Improved Health Operational,Equip / Furniture / Materials,Health & Safety Supplies,LA116,16/10/2012,146776,-171.52,Revenue,PICKERINGS EUROPE LIMITED,100897
North East Lincolnshire Council,http://statistics.data.gov.uk/id/local-authority/00FC,People And Communities,Improved Health,Improved Health Operational,Equip / Furniture / Materials,Health & Safety Supplies,LA116,24/10/2012,152141,-10.00,Revenue,ARJO MED AB LTD,103268
North East Lincolnshire Council,http://statistics.data.gov.uk/id/local-authority/00FC,People And Communities,Improved Health,Improved Health Operational,Equip / Furniture / Materials,Health & Safety Supplies,LA116,24/10/2012,151799,263.16,Revenue,PICKERINGS EUROPE LIMITED,100897
North East Lincolnshire Council,http://statistics.data.gov.uk/id/local-authority/00FC,People And Communities,Improved Health,Improved Health Operational,Equip / Furniture / Materials,Health & Safety Supplies,LA116,26/10/2012,152977,264.99,Revenue,NOTTINGHAM REHAB LIMITED,101715
North East Lincolnshire Council,http://statistics.data.gov.uk/id/local-authority/00FC,People And Communities,Improved Health,Improved Health Operational,Equip / Furniture / Materials,Health & Safety Supplies,LA116,26/10/2012,153079,283.50,Revenue,DRIVE MEDICAL,101627
North East Lincolnshire Council,http://statistics.data.gov.uk/id/local-authority/00FC,People And Communities,Improved Health,Improved Health Operational,Equip / Furniture / Materials,Health & Safety Supplies,LA116,24/10/2012,152063,287.99,Revenue,PICKERINGS EUROPE LIMITED,100897
North East Lincolnshire Council,http://statistics.data.gov.uk/id/local-authority/00FC,People And Communities,Improved Health,Improved Health Operational,Equip / Furniture / Materials,Health & Safety Supplies,LA116,16/10/2012,148499,295.00,Revenue,OTS LTD (OT STORES),109953
North East Lincolnshire Council,http://statistics.data.gov.uk/id/local-authority/00FC,People And Communities,Improved Health,Improved Health Operational,Equip / Furniture / Materials,Health & Safety Supplies,LA116,05/10/2012,147749,304.20,Revenue,SUNRISE MEDICAL LTD,100990
North East Lincolnshire Council,http://statistics.data.gov.uk/id/local-authority/00FC,People And Communities,Improved Health,Improved Health Operational,Equip / Furniture / Materials,Health & Safety Supplies,LA116,16/10/2012,149411,314.16,Revenue,SUNRISE MEDICAL LTD,100990
North East Lincolnshire Council,http://statistics.data.gov.uk/id/local-authority/00FC,People And Communities,Improved Health,Improved Health Operational,Equip / Furniture / Materials,Health & Safety Supplies,LA116,16/10/2012,148499,314.95,Revenue,OTS LTD (OT STORES),109953
North East Lincolnshire Council,http://statistics.data.gov.uk/id/local-authority/00FC,People And Communities,Improved Health,Improved Health Operational,Equip / Furniture / Materials,Health & Safety Supplies,LA116,24/10/2012,152119,320.00,Revenue,LINDALE HEALTHCARE,102517
North East Lincolnshire Council,http://statistics.data.gov.uk/id/local-authority/00FC,People And Communities,Improved Health,Improved Health Operational,Equip / Furniture / Materials,Health & Safety Supplies,LA116,17/10/2012,133331,334.14,Revenue,CEFNDY HEALTHCARE,103209
North East Lincolnshire Council,http://statistics.data.gov.uk/id/local-authority/00FC,People And Communities,Improved Health,Improved Health Operational,Equip / Furniture / Materials,Health & Safety Supplies,LA116,03/10/2012,134732,336.50,Revenue,SILVALEA,101260
North East Lincolnshire Council,http://statistics.data.gov.uk/id/local-authority/00FC,People And Communities,Improved Health,Improved Health Operational,Equip / Furniture / Materials,Health & Safety Supplies,LA116,30/10/2012,153289,340.68,Revenue,KEY MOBILITY,101985
North East Lincolnshire Council,http://statistics.data.gov.uk/id/local-authority/00FC,People And Communities,Improved Health,Improved Health Operational,Equip / Furniture / Materials,Health & Safety Supplies,LA116,10/10/2012,148884,341.28,Revenue,PATTERSON MEDICAL LTD,104008
North East Lincolnshire Council,http://statistics.data.gov.uk/id/local-authority/00FC,People And Communities,Improved Health,Improved Health Operational,Equip / Furniture / Materials,Health & Safety Supplies,LA116,03/10/2012,146760,350.88,Revenue,PICKERINGS EUROPE LIMITED,100897
North East Lincolnshire Council,http://statistics.data.gov.uk/id/local-authority/00FC,People And Communities,Improved Health,Improved Health Operational,Equip / Furniture / Materials,Health & Safety Supplies,LA116,18/10/2012,150730,374.00,Revenue,AIDAPT BATHROOMS LTD,101164
North East Lincolnshire Council,http://statistics.data.gov.uk/id/local-authority/00FC,People And Communities,Improved Health,Improved Health Operational,Equip / Furniture / Materials,Health & Safety Supplies,LA116,26/10/2012,153080,378.00,Revenue,DRIVE MEDICAL,101627
North East Lincolnshire Council,http://statistics.data.gov.uk/id/local-authority/00FC,People And Communities,Improved Health,Improved Health Operational,Equip / Furniture / Materials,Health & Safety Supplies,LA116,30/10/2012,153521,380.25,Revenue,SUNRISE MEDICAL LTD,100990
North East Lincolnshire Council,http://statistics.data.gov.uk/id/local-authority/00FC,People And Communities,Improved Health,Improved Health Operational,Equip / Furniture / Materials,Health & Safety Supplies,LA116,03/10/2012,134732,383.50,Revenue,SILVALEA,101260
North East Lincolnshire Council,http://statistics.data.gov.uk/id/local-authority/00FC,People And Communities,Improved Health,Improved Health Operational,Equip / Furniture / Materials,Health & Safety Supplies,LA116,26/10/2012,153081,390.00,Revenue,DRIVE MEDICAL,101627
North East Lincolnshire Council,http://statistics.data.gov.uk/id/local-authority/00FC,People And Communities,Improved Health,Improved Health Operational,Equip / Furniture / Materials,Health & Safety Supplies,LA116,17/10/2012,149923,390.00,Revenue,DRIVE MEDICAL,101627
North East Lincolnshire Council,http://statistics.data.gov.uk/id/local-authority/00FC,People And Communities,Improved Health,Improved Health Operational,Equip / Furniture / Materials,Health & Safety Supplies,LA116,16/10/2012,149806,394.50,Revenue,DRIVE MEDICAL,101627
North East Lincolnshire Council,http://statistics.data.gov.uk/id/local-authority/00FC,People And Communities,Improved Health,Improved Health Operational,Equip / Furniture / Materials,Health & Safety Supplies,LA116,26/10/2012,153064,396.00,Revenue,ULTIMATE CARE GROUP LTD,103469
North East Lincolnshire Council,http://statistics.data.gov.uk/id/local-authority/00FC,People And Communities,Improved Health,Improved Health Operational,Equip / Furniture / Materials,Health & Safety Supplies,LA116,18/10/2012,149808,407.40,Revenue,NOTTINGHAM REHAB LIMITED,101715
North East Lincolnshire Council,http://statistics.data.gov.uk/id/local-authority/00FC,People And Communities,Improved Health,Improved Health Operational,Equip / Furniture / Materials,Health & Safety Supplies,LA116,18/10/2012,149808,417.00,Revenue,NOTTINGHAM REHAB LIMITED,101715
North East Lincolnshire Council,http://statistics.data.gov.uk/id/local-authority/00FC,People And Communities,Improved Health,Improved Health Operational,Equip / Furniture / Materials,Health & Safety Supplies,LA116,03/10/2012,147222,437.44,Revenue,NORTHGATE VEHICLE HIRE LTD,109432
North East Lincolnshire Council,http://statistics.data.gov.uk/id/local-authority/00FC,People And Communities,Improved Health,Improved Health Operational,Equip / Furniture / Materials,Health & Safety Supplies,LA116,03/10/2012,147221,456.68,Revenue,NORTHGATE VEHICLE HIRE LTD,109432
North East Lincolnshire Council,http://statistics.data.gov.uk/id/local-authority/00FC,People And Communities,Improved Health,Improved Health Operational,Equip / Furniture / Materials,Health & Safety Supplies,LA116,03/10/2012,135718,585.00,Revenue,WINDMILL SPECIAL NEEDS,102467
North East Lincolnshire Council,http://statistics.data.gov.uk/id/local-authority/00FC,People And Communities,Improved Health,Improved Health Operational,Equip / Furniture / Materials,Health & Safety Supplies,LA116,16/10/2012,149338,"1,039.50",Revenue,CEFNDY HEALTHCARE,103209
North East Lincolnshire Council,http://statistics.data.gov.uk/id/local-authority/00FC,People And Communities,Improved Health,Improved Health Operational,Equip / Furniture / Materials,Health & Safety Supplies,LA116,24/10/2012,152029,"1,083.00",Revenue,AQUAJOY BATHLIFTS LTD,101315
North East Lincolnshire Council,http://statistics.data.gov.uk/id/local-authority/00FC,People And Communities,Improved Health,Improved Health Operational,Equip / Furniture / Materials,Health & Safety Supplies,LA116,31/10/2012,154632,"1,112.00",Revenue,JENX LTD,100833
North East Lincolnshire Council,http://statistics.data.gov.uk/id/local-authority/00FC,People And Communities,Improved Health,Improved Health Operational,Equip / Furniture / Materials,Health & Safety Supplies,LA116,05/10/2012,147440,"1,407.00",Revenue,JENX LTD,100833
North East Lincolnshire Council,http://statistics.data.gov.uk/id/local-authority/00FC,People And Communities,Improved Health,Improved Health Operational,Equip / Furniture / Materials,Health & Safety Supplies,LA116,25/10/2012,152469,"3,797.96",Revenue,DIRECT HEALTHCARE,102678
North East Lincolnshire Council,http://statistics.data.gov.uk/id/local-authority/00FC,People And Communities,Improved Health,Improved Health Operational,Equip / Furniture / Materials,Health & Safety Supplies,LA116,25/10/2012,152436,"4,233.00",Revenue,NEXUS DMS LTD,105336
North East Lincolnshire Council,http://statistics.data.gov.uk/id/local-authority/00FC,People And Communities,Improved Health,Improved Health Operational,Health Authorities,Third Pp - Health Auth,PD101,18/10/2012,150785,"7,000.00",Revenue,VOLUNTARY ACTION NORTH EAST LINCOLNSHIRE,103631
North East Lincolnshire Council,http://statistics.data.gov.uk/id/local-authority/00FC,People And Communities,Vulnerable Young People,Additional & Enhanced Needs,Consultancy,Consultancy,PL101,16/10/2012,147248,655.03,Revenue,GLENN ALLGOOD,109255
North East Lincolnshire Council,http://statistics.data.gov.uk/id/local-authority/00FC,People And Communities,Vulnerable Young People,Additional & Enhanced Needs,Consultancy,Consultancy,PL101,26/10/2012,153050,"1,939.03",Revenue,GLENN ALLGOOD,109255
North East Lincolnshire Council,http://statistics.data.gov.uk/id/local-authority/00FC,People And Communities,Vulnerable Young People,Additional & Enhanced Needs,Other Local Authorities,Third Pp - Other Local Auth,PC101,24/10/2012,152142,483.70,Revenue,KEYS 7KS,109509
North East Lincolnshire Council,http://statistics.data.gov.uk/id/local-authority/00FC,People And Communities,Vulnerable Young People,Additional & Enhanced Needs,Private Contractors,Third Party Prov - Private,PH101,17/10/2012,147250,"2,660.00",Revenue,DKM ASSESSMENT & VERIFICATION LTD,101643
North East Lincolnshire Council,http://statistics.data.gov.uk/id/local-authority/00FC,People And Communities,Vulnerable Young People,Additional & Enhanced Needs,Private Contractors,Third Party Prov - Private,PH101,11/10/2012,148805,"2,970.00",Revenue,REFLEXION CARE GROUP LIMITED,106975
North East Lincolnshire Council,http://statistics.data.gov.uk/id/local-authority/00FC,People And Communities,Vulnerable Young People,Additional & Enhanced Needs,Other Local Authorities,Third Pp - Other Local Auth,PC101,16/10/2012,149438,"3,000.00",Revenue,QUALITY TIME CARE LTD,102519
North East Lincolnshire Council,http://statistics.data.gov.uk/id/local-authority/00FC,People And Communities,Vulnerable Young People,Additional & Enhanced Needs,Private Contractors,Third Party Prov - Private,PH101,31/10/2012,154278,"3,069.00",Revenue,REFLEXION CARE GROUP LIMITED,106975
North East Lincolnshire Council,http://statistics.data.gov.uk/id/local-authority/00FC,People And Communities,Vulnerable Young People,Additional & Enhanced Needs,Other Local Authorities,Third Pp - Other Local Auth,PC101,03/10/2012,142819,"6,832.34",Revenue,NEW OPTIONS LTD,105590
North East Lincolnshire Council,http://statistics.data.gov.uk/id/local-authority/00FC,People And Communities,Vulnerable Young People,Additional & Enhanced Needs,Other Local Authorities,Third Pp - Other Local Auth,PC101,03/10/2012,142820,"7,651.80",Revenue,NEW OPTIONS LTD,105590
North East Lincolnshire Council,http://statistics.data.gov.uk/id/local-authority/00FC,People And Communities,Vulnerable Young People,Additional & Enhanced Needs,Other Local Authorities,Third Pp - Other Local Auth,PC101,17/10/2012,147250,"7,980.00",Revenue,DKM ASSESSMENT & VERIFICATION LTD,101643
North East Lincolnshire Council,http://statistics.data.gov.uk/id/local-authority/00FC,People And Communities,Vulnerable Young People,Additional & Enhanced Needs,Private Contractors,Third Party Prov - Private,PH101,16/10/2012,149438,"8,957.01",Revenue,QUALITY TIME CARE LTD,102519
North East Lincolnshire Council,http://statistics.data.gov.uk/id/local-authority/00FC,People And Communities,Vulnerable Young People,Additional & Enhanced Needs,Other Local Authorities,Third Pp - Other Local Auth,PC101,16/10/2012,149440,"9,109.78",Revenue,NEW OPTIONS LTD,105590
North East Lincolnshire Council,http://statistics.data.gov.uk/id/local-authority/00FC,People And Communities,Vulnerable Young People,Additional & Enhanced Needs,Other Local Authorities,Third Pp - Other Local Auth,PC101,16/10/2012,149441,"10,202.40",Revenue,NEW OPTIONS LTD,105590
North East Lincolnshire Council,http://statistics.data.gov.uk/id/local-authority/00FC,People And Communities,Vulnerable Young People,Additional & Enhanced Needs,Other Local Authorities,Third Pp - Other Local Auth,PC101,16/10/2012,149279,"12,565.50",Revenue,NORTH LINCOLNSHIRE COUNCIL,101186
North East Lincolnshire Council,http://statistics.data.gov.uk/id/local-authority/00FC,People And Communities,Vulnerable Young People,Additional & Enhanced Needs,Private Contractors,Third Party Prov - Private,PH101,17/10/2012,147249,"12,880.00",Revenue,DKM ASSESSMENT & VERIFICATION LTD,101643
North East Lincolnshire Council,http://statistics.data.gov.uk/id/local-authority/00FC,People And Communities,Vulnerable Young People,Additional & Enhanced Needs,Private Contractors,Third Party Prov - Private,PH101,11/10/2012,148805,"13,980.20",Revenue,REFLEXION CARE GROUP LIMITED,106975
North East Lincolnshire Council,http://statistics.data.gov.uk/id/local-authority/00FC,People And Communities,Vulnerable Young People,Additional & Enhanced Needs,Private Contractors,Third Party Prov - Private,PH101,31/10/2012,154278,"14,446.20",Revenue,REFLEXION CARE GROUP LIMITED,106975
North East Lincolnshire Council,http://statistics.data.gov.uk/id/local-authority/00FC,People And Communities,Vulnerable Young People,Additional & Enhanced Needs,Other Local Authorities,Third Pp - Other Local Auth,PC101,03/10/2012,147246,"38,822.82",Revenue,KINGSTON UPON HULL CITY COUNCIL,100541
North East Lincolnshire Council,http://statistics.data.gov.uk/id/local-authority/00FC,People And Communities,Vulnerable Young People,Additional & Enhanced Needs,Other Local Authorities,Third Pp - Other Local Auth,PC101,16/10/2012,149280,"51,300.67",Revenue,KISIMUL SCHOOL,100406
North East Lincolnshire Council,http://statistics.data.gov.uk/id/local-authority/00FC,People And Communities,Vulnerable Young People,Additional & Enhanced Needs,Catering,Provisions,LB101,18/10/2012,145028,-57.27,Revenue,W M MORRISON SUPERMARKETS PLC,100919
North East Lincolnshire Council,http://statistics.data.gov.uk/id/local-authority/00FC,People And Communities,Vulnerable Young People,Additional & Enhanced Needs,Direct Employee Expenses,Agency Staff,EA105,31/10/2012,154273,444.40,Revenue,RANDSTAD EDUCATION LTD,102465
North East Lincolnshire Council,http://statistics.data.gov.uk/id/local-authority/00FC,People And Communities,Vulnerable Young People,Additional & Enhanced Needs,Direct Employee Expenses,Agency Staff,EA105,16/10/2012,149257,555.50,Revenue,RANDSTAD EDUCATION LTD,102465
North East Lincolnshire Council,http://statistics.data.gov.uk/id/local-authority/00FC,People And Communities,Vulnerable Young People,Additional & Enhanced Needs,Direct Employee Expenses,Agency Staff,EA105,17/10/2012,149276,555.50,Revenue,RANDSTAD EDUCATION LTD,102465
North East Lincolnshire Council,http://statistics.data.gov.uk/id/local-authority/00FC,People And Communities,Vulnerable Young People,Additional & Enhanced Needs,Direct Employee Expenses,Agency Staff,EA105,17/10/2012,149442,555.50,Revenue,RANDSTAD EDUCATION LTD,102465
North East Lincolnshire Council,http://statistics.data.gov.uk/id/local-authority/00FC,People And Communities,Vulnerable Young People,Additional & Enhanced Needs,Direct Employee Expenses,Agency Staff,EA105,31/10/2012,154276,555.50,Revenue,RANDSTAD EDUCATION LTD,102465
North East Lincolnshire Council,http://statistics.data.gov.uk/id/local-authority/00FC,People And Communities,Vulnerable Young People,Additional & Enhanced Needs,Direct Employee Expenses,Agency Staff,EA105,31/10/2012,154277,555.50,Revenue,RANDSTAD EDUCATION LTD,102465
North East Lincolnshire Council,http://statistics.data.gov.uk/id/local-authority/00FC,People And Communities,Vulnerable Young People,Additional & Enhanced Needs,Direct Employee Expenses,Agency Staff,EA105,16/10/2012,148530,555.50,Revenue,RANDSTAD EDUCATION LTD,102465
North East Lincolnshire Council,http://statistics.data.gov.uk/id/local-authority/00FC,People And Communities,Vulnerable Young People,Additional & Enhanced Needs,Direct Employee Expenses,Agency Staff,EA105,31/10/2012,154274,555.50,Revenue,RANDSTAD EDUCATION LTD,102465
North East Lincolnshire Council,http://statistics.data.gov.uk/id/local-authority/00FC,People And Communities,Vulnerable Young People,Additional & Enhanced Needs,Direct Employee Expenses,Agency Staff,EA105,16/10/2012,149252,555.50,Revenue,RANDSTAD EDUCATION LTD,102465
North East Lincolnshire Council,http://statistics.data.gov.uk/id/local-authority/00FC,People And Communities,Vulnerable Young People,Additional & Enhanced Needs,Direct Employee Expenses,Agency Staff,EA105,17/10/2012,149278,555.50,Revenue,RANDSTAD EDUCATION LTD,102465
North East Lincolnshire Council,http://statistics.data.gov.uk/id/local-authority/00FC,People And Communities,Vulnerable Young People,Additional & Enhanced Needs,Direct Employee Expenses,Agency Staff,EA105,17/10/2012,149443,555.50,Revenue,RANDSTAD EDUCATION LTD,102465
North East Lincolnshire Council,http://statistics.data.gov.uk/id/local-authority/00FC,People And Communities,Vulnerable Young People,Additional & Enhanced Needs,Contributions To Provisions,Contributions - Other,LK103,03/10/2012,147245,835.16,Revenue,KEYS 7KS,109509
North East Lincolnshire Council,http://statistics.data.gov.uk/id/local-authority/00FC,People And Communities,Vulnerable Young People,Additional & Enhanced Needs,Contributions To Provisions,Contributions - Other,LK103,24/10/2012,152142,"1,239.60",Revenue,KEYS 7KS,109509
North East Lincolnshire Council,http://statistics.data.gov.uk/id/local-authority/00FC,People And Communities,Vulnerable Young People,Additional & Enhanced Needs,Direct Employee Expenses,Agency Staff,EA105,16/10/2012,149281,"1,615.00",Revenue,DKM ASSESSMENT & VERIFICATION LTD,101643
North East Lincolnshire Council,http://statistics.data.gov.uk/id/local-authority/00FC,People And Communities,Vulnerable Young People,Additional & Enhanced Needs,Direct Employee Expenses,Agency Staff,EA105,03/10/2012,147241,"2,375.00",Revenue,TEACHING PERSONNEL LTD,101305
North East Lincolnshire Council,http://statistics.data.gov.uk/id/local-authority/00FC,People And Communities,Vulnerable Young People,Additional & Enhanced Needs,Contributions To Provisions,Contributions - Other,LK103,26/10/2012,153051,"1,234.99",Revenue,KEYS 7KS,109509
North East Lincolnshire Council,http://statistics.data.gov.uk/id/local-authority/00FC,People And Communities,Vulnerable Young People,Additional & Enhanced Needs,Contributions To Provisions,Contributions - Other,LK103,16/10/2012,148803,380.00,Revenue,DKM ASSESSMENT & VERIFICATION LTD,101643
North East Lincolnshire Council,http://statistics.data.gov.uk/id/local-authority/00FC,People And Communities,Vulnerable Young People,Additional & Enhanced Needs,Contributions To Provisions,Contributions - Other,LK103,10/10/2012,148768,950.00,Revenue,DKM ASSESSMENT & VERIFICATION LTD,101643
North East Lincolnshire Council,http://statistics.data.gov.uk/id/local-authority/00FC,People And Communities,Vulnerable Young People,Additional & Enhanced Needs,Contributions To Provisions,Contributions - Other,LK103,24/10/2012,152142,967.40,Revenue,KEYS 7KS,109509
North East Lincolnshire Council,http://statistics.data.gov.uk/id/local-authority/00FC,People And Communities,Vulnerable Young People,Additional & Enhanced Needs,Consultancy,Consultancy,PL101,11/10/2012,148846,"1,501.82",Revenue,SUE SMITH,102975
North East Lincolnshire Council,http://statistics.data.gov.uk/id/local-authority/00FC,People And Communities,Vulnerable Young People,Child Care Performance & Ict,Communications And Computing,Computer S/Ware - Licences,LF103,03/10/2012,146300,295.00,Revenue,Q3 INTERNET SERVICES LTD,111586
North East Lincolnshire Council,http://statistics.data.gov.uk/id/local-authority/00FC,People And Communities,Vulnerable Young People,School Access Governor Student,Contract Hire-Operating Leases,Vehicles - Contract Hire,JC101,30/10/2012,154066,REDACTED COMMERCIALLY SENSITIVE,Revenue,LINKS TAXIS,100546
North East Lincolnshire Council,http://statistics.data.gov.uk/id/local-authority/00FC,People And Communities,Vulnerable Young People,School Access Governor Student,Contract Hire-Operating Leases,Vehicles - Contract Hire,JC101,16/10/2012,149641,REDACTED COMMERCIALLY SENSITIVE,Revenue,COXONS CARS LIMITED,100578
North East Lincolnshire Council,http://statistics.data.gov.uk/id/local-authority/00FC,People And Communities,Vulnerable Young People,School Access Governor Student,Contract Hire-Operating Leases,Vehicles - Contract Hire,JC101,30/10/2012,154108,REDACTED COMMERCIALLY SENSITIVE,Revenue,LINKS TAXIS,100546
North East Lincolnshire Council,http://statistics.data.gov.uk/id/local-authority/00FC,People And Communities,Vulnerable Young People,School Access Governor Student,Contract Hire-Operating Leases,Vehicles - Contract Hire,JC101,18/10/2012,150653,REDACTED COMMERCIALLY SENSITIVE,Revenue,MINICABS CLEETHORPES (LINCS) LTD,102124
North East Lincolnshire Council,http://statistics.data.gov.uk/id/local-authority/00FC,People And Communities,Vulnerable Young People,School Access Governor Student,Contract Hire-Operating Leases,Vehicles - Contract Hire,JC101,25/10/2012,152560,REDACTED COMMERCIALLY SENSITIVE,Revenue,AA RADIO CARS LTD,101222
North East Lincolnshire Council,http://statistics.data.gov.uk/id/local-authority/00FC,People And Communities,Vulnerable Young People,School Access Governor Student,Contract Hire-Operating Leases,Vehicles - Contract Hire,JC101,30/10/2012,153886,REDACTED COMMERCIALLY SENSITIVE,Revenue,LINKS TAXIS,100546
North East Lincolnshire Council,http://statistics.data.gov.uk/id/local-authority/00FC,People And Communities,Vulnerable Young People,School Access Governor Student,Contract Hire-Operating Leases,Vehicles - Contract Hire,JC101,25/10/2012,152561,REDACTED COMMERCIALLY SENSITIVE,Revenue,AA RADIO CARS LTD,101222
North East Lincolnshire Council,http://statistics.data.gov.uk/id/local-authority/00FC,People And Communities,Vulnerable Young People,School Access Governor Student,Contract Hire-Operating Leases,Vehicles - Contract Hire,JC101,16/10/2012,149360,REDACTED COMMERCIALLY SENSITIVE,Revenue,WHEELCHAIR FRIENDLY TAXI SERVICE,101915
North East Lincolnshire Council,http://statistics.data.gov.uk/id/local-authority/00FC,People And Communities,Vulnerable Young People,School Access Governor Student,Contract Hire-Operating Leases,Vehicles - Contract Hire,JC101,30/10/2012,154104,REDACTED COMMERCIALLY SENSITIVE,Revenue,LINKS TAXIS,100546
North East Lincolnshire Council,http://statistics.data.gov.uk/id/local-authority/00FC,People And Communities,Vulnerable Young People,School Access Governor Student,Contract Hire-Operating Leases,Vehicles - Contract Hire,JC101,25/10/2012,152559,REDACTED COMMERCIALLY SENSITIVE,Revenue,AA RADIO CARS LTD,101222
North East Lincolnshire Council,http://statistics.data.gov.uk/id/local-authority/00FC,People And Communities,Vulnerable Young People,School Access Governor Student,Contract Hire-Operating Leases,Vehicles - Contract Hire,JC101,30/10/2012,154109,REDACTED COMMERCIALLY SENSITIVE,Revenue,LINKS TAXIS,100546
North East Lincolnshire Council,http://statistics.data.gov.uk/id/local-authority/00FC,People And Communities,Vulnerable Young People,School Access Governor Student,Contract Hire-Operating Leases,Vehicles - Contract Hire,JC101,25/10/2012,152439,REDACTED COMMERCIALLY SENSITIVE,Revenue,LINKS TAXIS,100546
North East Lincolnshire Council,http://statistics.data.gov.uk/id/local-authority/00FC,People And Communities,Vulnerable Young People,School Access Governor Student,Contract Hire-Operating Leases,Vehicles - Contract Hire,JC101,18/10/2012,150654,REDACTED COMMERCIALLY SENSITIVE,Revenue,MINICABS CLEETHORPES (LINCS) LTD,102124
North East Lincolnshire Council,http://statistics.data.gov.uk/id/local-authority/00FC,People And Communities,Vulnerable Young People,School Access Governor Student,Contract Hire-Operating Leases,Vehicles - Contract Hire,JC101,16/10/2012,149650,REDACTED COMMERCIALLY SENSITIVE,Revenue,COXONS CARS LIMITED,100578
North East Lincolnshire Council,http://statistics.data.gov.uk/id/local-authority/00FC,People And Communities,Vulnerable Young People,School Access Governor Student,Contract Hire-Operating Leases,Vehicles - Contract Hire,JC101,31/10/2012,154609,REDACTED COMMERCIALLY SENSITIVE,Revenue,REVELLS TAXIS (ED/SOC SERV),100559
North East Lincolnshire Council,http://statistics.data.gov.uk/id/local-authority/00FC,People And Communities,Vulnerable Young People,School Access Governor Student,Contract Hire-Operating Leases,Vehicles - Contract Hire,JC101,25/10/2012,152438,REDACTED COMMERCIALLY SENSITIVE,Revenue,LINKS TAXIS,100546
North East Lincolnshire Council,http://statistics.data.gov.uk/id/local-authority/00FC,People And Communities,Vulnerable Young People,School Access Governor Student,Private Contractors,Concessionary Fares,PH104,31/10/2012,154610,REDACTED COMMERCIALLY SENSITIVE,Revenue,STAGECOACH SERVICES,101404
North East Lincolnshire Council,http://statistics.data.gov.uk/id/local-authority/00FC,People And Communities,Vulnerable Young People,School Access Governor Student,Contract Hire-Operating Leases,Vehicles - Contract Hire,JC101,24/10/2012,152269,REDACTED COMMERCIALLY SENSITIVE,Revenue,LINKS TAXIS,100546
North East Lincolnshire Council,http://statistics.data.gov.uk/id/local-authority/00FC,People And Communities,Vulnerable Young People,School Access Governor Student,Contract Hire-Operating Leases,Vehicles - Contract Hire,JC101,24/10/2012,152266,REDACTED COMMERCIALLY SENSITIVE,Revenue,LINKS TAXIS,100546
North East Lincolnshire Council,http://statistics.data.gov.uk/id/local-authority/00FC,People And Communities,Vulnerable Young People,School Access Governor Student,Contract Hire-Operating Leases,Vehicles - Contract Hire,JC101,24/10/2012,152247,REDACTED COMMERCIALLY SENSITIVE,Revenue,LINKS TAXIS,100546
North East Lincolnshire Council,http://statistics.data.gov.uk/id/local-authority/00FC,People And Communities,Vulnerable Young People,School Access Governor Student,Contract Hire-Operating Leases,Vehicles - Contract Hire,JC101,31/10/2012,154614,REDACTED COMMERCIALLY SENSITIVE,Revenue,REVELLS TAXIS (ED/SOC SERV),100559
North East Lincolnshire Council,http://statistics.data.gov.uk/id/local-authority/00FC,People And Communities,Vulnerable Young People,School Access Governor Student,Contract Hire-Operating Leases,Vehicles - Contract Hire,JC101,16/10/2012,149884,REDACTED COMMERCIALLY SENSITIVE,Revenue,MINICABS CLEETHORPES (LINCS) LTD,102124
North East Lincolnshire Council,http://statistics.data.gov.uk/id/local-authority/00FC,People And Communities,Vulnerable Young People,School Access Governor Student,Contract Hire-Operating Leases,Vehicles - Contract Hire,JC101,25/10/2012,152418,REDACTED COMMERCIALLY SENSITIVE,Revenue,LINKS TAXIS,100546
North East Lincolnshire Council,http://statistics.data.gov.uk/id/local-authority/00FC,People And Communities,Vulnerable Young People,School Access Governor Student,Contract Hire-Operating Leases,Vehicles - Contract Hire,JC101,16/10/2012,149352,REDACTED COMMERCIALLY SENSITIVE,Revenue,REDACTED PERSONAL INFORMATION,REDACTED PERSONAL INFORMATION
North East Lincolnshire Council,http://statistics.data.gov.uk/id/local-authority/00FC,People And Communities,Vulnerable Young People,School Access Governor Student,Contract Hire-Operating Leases,Vehicles - Contract Hire,JC101,16/10/2012,149408,REDACTED COMMERCIALLY SENSITIVE,Revenue,THE BUS RUN,101522
North East Lincolnshire Council,http://statistics.data.gov.uk/id/local-authority/00FC,People And Communities,Vulnerable Young People,School Access Governor Student,Contract Hire-Operating Leases,Vehicles - Contract Hire,JC101,18/10/2012,151180,REDACTED COMMERCIALLY SENSITIVE,Revenue,AMVALE LIMITED,101030
North East Lincolnshire Council,http://statistics.data.gov.uk/id/local-authority/00FC,People And Communities,Vulnerable Young People,School Access Governor Student,Contract Hire-Operating Leases,Vehicles - Contract Hire,JC101,18/10/2012,151181,REDACTED COMMERCIALLY SENSITIVE,Revenue,AMVALE LIMITED,101030
North East Lincolnshire Council,http://statistics.data.gov.uk/id/local-authority/00FC,People And Communities,Vulnerable Young People,School Access Governor Student,Contract Hire-Operating Leases,Vehicles - Contract Hire,JC101,18/10/2012,151182,REDACTED COMMERCIALLY SENSITIVE,Revenue,AMVALE LIMITED,101030
North East Lincolnshire Council,http://statistics.data.gov.uk/id/local-authority/00FC,People And Communities,Vulnerable Young People,School Access Governor Student,Contract Hire-Operating Leases,Vehicles - Contract Hire,JC101,25/10/2012,152420,REDACTED COMMERCIALLY SENSITIVE,Revenue,LINKS TAXIS,100546
North East Lincolnshire Council,http://statistics.data.gov.uk/id/local-authority/00FC,People And Communities,Vulnerable Young People,School Access Governor Student,Contract Hire-Operating Leases,Vehicles - Contract Hire,JC101,24/10/2012,152396,REDACTED COMMERCIALLY SENSITIVE,Revenue,LINKS TAXIS,100546
North East Lincolnshire Council,http://statistics.data.gov.uk/id/local-authority/00FC,People And Communities,Vulnerable Young People,School Access Governor Student,Contract Hire-Operating Leases,Vehicles - Contract Hire,JC101,18/10/2012,150593,REDACTED COMMERCIALLY SENSITIVE,Revenue,COXONS CARS LIMITED,100578
North East Lincolnshire Council,http://statistics.data.gov.uk/id/local-authority/00FC,People And Communities,Vulnerable Young People,School Access Governor Student,Contract Hire-Operating Leases,Vehicles - Contract Hire,JC101,17/10/2012,149991,REDACTED COMMERCIALLY SENSITIVE,Revenue,REDACTED PERSONAL INFORMATION,REDACTED PERSONAL INFORMATION
North East Lincolnshire Council,http://statistics.data.gov.uk/id/local-authority/00FC,People And Communities,Vulnerable Young People,School Access Governor Student,Contract Hire-Operating Leases,Vehicles - Contract Hire,JC101,18/10/2012,151194,REDACTED COMMERCIALLY SENSITIVE,Revenue,AMVALE LIMITED,101030
North East Lincolnshire Council,http://statistics.data.gov.uk/id/local-authority/00FC,People And Communities,Vulnerable Young People,School Access Governor Student,Contract Hire-Operating Leases,Vehicles - Contract Hire,JC101,18/10/2012,151193,REDACTED COMMERCIALLY SENSITIVE,Revenue,AMVALE LIMITED,101030
North East Lincolnshire Council,http://statistics.data.gov.uk/id/local-authority/00FC,People And Communities,Vulnerable Young People,School Access Governor Student,Contract Hire-Operating Leases,Vehicles - Contract Hire,JC101,16/10/2012,149365,REDACTED COMMERCIALLY SENSITIVE,Revenue,SHERWOOD TRAVEL,100868
North East Lincolnshire Council,http://statistics.data.gov.uk/id/local-authority/00FC,People And Communities,Vulnerable Young People,School Access Governor Student,Contract Hire-Operating Leases,Vehicles - Contract Hire,JC101,18/10/2012,150659,REDACTED COMMERCIALLY SENSITIVE,Revenue,COOPERS TOURS (LINCS) LTD,111878
North East Lincolnshire Council,http://statistics.data.gov.uk/id/local-authority/00FC,People And Communities,Vulnerable Young People,School Access Governor Student,Contract Hire-Operating Leases,Vehicles - Contract Hire,JC101,18/10/2012,151016,REDACTED COMMERCIALLY SENSITIVE,Revenue,FISHERS OF GRIMSBY,111965
North East Lincolnshire Council,http://statistics.data.gov.uk/id/local-authority/00FC,People And Communities,Vulnerable Young People,School Access Governor Student,Private Contractors,Concessionary Fares,PH104,31/10/2012,154610,REDACTED COMMERCIALLY SENSITIVE,Revenue,STAGECOACH SERVICES,101404
North East Lincolnshire Council,http://statistics.data.gov.uk/id/local-authority/00FC,People And Communities,Vulnerable Young People,School Access Governor Student,Contract Hire-Operating Leases,Vehicles - Contract Hire,JC101,16/10/2012,149357,REDACTED COMMERCIALLY SENSITIVE,Revenue,MILLMAN COACHES,100700
North East Lincolnshire Council,http://statistics.data.gov.uk/id/local-authority/00FC,People And Communities,Vulnerable Young People,School Access Governor Student,Contract Hire-Operating Leases,Vehicles - Contract Hire,JC101,24/10/2012,152258,REDACTED COMMERCIALLY SENSITIVE,Revenue,LINKS TAXIS,100546
North East Lincolnshire Council,http://statistics.data.gov.uk/id/local-authority/00FC,People And Communities,Vulnerable Young People,School Access Governor Student,Contract Hire-Operating Leases,Vehicles - Contract Hire,JC101,31/10/2012,154606,REDACTED COMMERCIALLY SENSITIVE,Revenue,REVELLS TAXIS (ED/SOC SERV),100559
North East Lincolnshire Council,http://statistics.data.gov.uk/id/local-authority/00FC,People And Communities,Vulnerable Young People,School Access Governor Student,Contract Hire-Operating Leases,Vehicles - Contract Hire,JC101,16/10/2012,149653,REDACTED COMMERCIALLY SENSITIVE,Revenue,COXONS CARS LIMITED,100578
North East Lincolnshire Council,http://statistics.data.gov.uk/id/local-authority/00FC,People And Communities,Vulnerable Young People,School Access Governor Student,Contract Hire-Operating Leases,Vehicles - Contract Hire,JC101,24/10/2012,152255,REDACTED COMMERCIALLY SENSITIVE,Revenue,LINKS TAXIS,100546
North East Lincolnshire Council,http://statistics.data.gov.uk/id/local-authority/00FC,People And Communities,Vulnerable Young People,School Access Governor Student,Contract Hire-Operating Leases,Vehicles - Contract Hire,JC101,25/10/2012,152421,REDACTED COMMERCIALLY SENSITIVE,Revenue,LINKS TAXIS,100546
North East Lincolnshire Council,http://statistics.data.gov.uk/id/local-authority/00FC,People And Communities,Vulnerable Young People,School Access Governor Student,Contract Hire-Operating Leases,Vehicles - Contract Hire,JC101,18/10/2012,150624,REDACTED COMMERCIALLY SENSITIVE,Revenue,COXONS CARS LIMITED,100578
North East Lincolnshire Council,http://statistics.data.gov.uk/id/local-authority/00FC,People And Communities,Vulnerable Young People,School Access Governor Student,Contract Hire-Operating Leases,Vehicles - Contract Hire,JC101,30/10/2012,154081,REDACTED COMMERCIALLY SENSITIVE,Revenue,LINKS TAXIS,100546
North East Lincolnshire Council,http://statistics.data.gov.uk/id/local-authority/00FC,People And Communities,Vulnerable Young People,School Access Governor Student,Contract Hire-Operating Leases,Vehicles - Contract Hire,JC101,24/10/2012,152395,REDACTED COMMERCIALLY SENSITIVE,Revenue,LINKS TAXIS,100546
North East Lincolnshire Council,http://statistics.data.gov.uk/id/local-authority/00FC,People And Communities,Vulnerable Young People,School Access Governor Student,Contract Hire-Operating Leases,Vehicles - Contract Hire,JC101,24/10/2012,152397,REDACTED COMMERCIALLY SENSITIVE,Revenue,LINKS TAXIS,100546
North East Lincolnshire Council,http://statistics.data.gov.uk/id/local-authority/00FC,People And Communities,Vulnerable Young People,School Access Governor Student,Contract Hire-Operating Leases,Vehicles - Contract Hire,JC101,30/10/2012,154110,REDACTED COMMERCIALLY SENSITIVE,Revenue,LINKS TAXIS,100546
North East Lincolnshire Council,http://statistics.data.gov.uk/id/local-authority/00FC,People And Communities,Vulnerable Young People,School Access Governor Student,Contract Hire-Operating Leases,Vehicles - Contract Hire,JC101,18/10/2012,150599,REDACTED COMMERCIALLY SENSITIVE,Revenue,COXONS CARS LIMITED,100578
North East Lincolnshire Council,http://statistics.data.gov.uk/id/local-authority/00FC,People And Communities,Vulnerable Young People,School Access Governor Student,Contract Hire-Operating Leases,Vehicles - Contract Hire,JC101,25/10/2012,152416,REDACTED COMMERCIALLY SENSITIVE,Revenue,LINKS TAXIS,100546
North East Lincolnshire Council,http://statistics.data.gov.uk/id/local-authority/00FC,People And Communities,Vulnerable Young People,School Access Governor Student,Contract Hire-Operating Leases,Vehicles - Contract Hire,JC101,24/10/2012,151793,REDACTED COMMERCIALLY SENSITIVE,Revenue,AMVALE LIMITED,101030
North East Lincolnshire Council,http://statistics.data.gov.uk/id/local-authority/00FC,People And Communities,Vulnerable Young People,School Access Governor Student,Contract Hire-Operating Leases,Vehicles - Contract Hire,JC101,24/10/2012,152100,REDACTED COMMERCIALLY SENSITIVE,Revenue,LINKS TAXIS,100546
North East Lincolnshire Council,http://statistics.data.gov.uk/id/local-authority/00FC,People And Communities,Vulnerable Young People,School Access Governor Student,Contract Hire-Operating Leases,Vehicles - Contract Hire,JC101,25/10/2012,152557,REDACTED COMMERCIALLY SENSITIVE,Revenue,AA RADIO CARS LTD,101222
North East Lincolnshire Council,http://statistics.data.gov.uk/id/local-authority/00FC,People And Communities,Vulnerable Young People,School Access Governor Student,Contract Hire-Operating Leases,Vehicles - Contract Hire,JC101,31/10/2012,154608,REDACTED COMMERCIALLY SENSITIVE,Revenue,REVELLS TAXIS (ED/SOC SERV),100559
North East Lincolnshire Council,http://statistics.data.gov.uk/id/local-authority/00FC,People And Communities,Vulnerable Young People,School Access Governor Student,Contract Hire-Operating Leases,Vehicles - Contract Hire,JC101,30/10/2012,153889,REDACTED COMMERCIALLY SENSITIVE,Revenue,LINKS TAXIS,100546
North East Lincolnshire Council,http://statistics.data.gov.uk/id/local-authority/00FC,People And Communities,Vulnerable Young People,School Access Governor Student,Contract Hire-Operating Leases,Vehicles - Contract Hire,JC101,18/10/2012,149891,REDACTED COMMERCIALLY SENSITIVE,Revenue,MINICABS CLEETHORPES (LINCS) LTD,102124
North East Lincolnshire Council,http://statistics.data.gov.uk/id/local-authority/00FC,People And Communities,Vulnerable Young People,School Access Governor Student,Contract Hire-Operating Leases,Vehicles - Contract Hire,JC101,25/10/2012,152558,REDACTED COMMERCIALLY SENSITIVE,Revenue,AA RADIO CARS LTD,101222
North East Lincolnshire Council,http://statistics.data.gov.uk/id/local-authority/00FC,People And Communities,Vulnerable Young People,School Access Governor Student,Contract Hire-Operating Leases,Vehicles - Contract Hire,JC101,16/10/2012,149649,REDACTED COMMERCIALLY SENSITIVE,Revenue,COXONS CARS LIMITED,100578
North East Lincolnshire Council,http://statistics.data.gov.uk/id/local-authority/00FC,People And Communities,Vulnerable Young People,School Access Governor Student,Contract Hire-Operating Leases,Vehicles - Contract Hire,JC101,30/10/2012,154106,REDACTED COMMERCIALLY SENSITIVE,Revenue,LINKS TAXIS,100546
North East Lincolnshire Council,http://statistics.data.gov.uk/id/local-authority/00FC,People And Communities,Vulnerable Young People,School Access Governor Student,Contract Hire-Operating Leases,Vehicles - Contract Hire,JC101,24/10/2012,152259,REDACTED COMMERCIALLY SENSITIVE,Revenue,LINKS TAXIS,100546
North East Lincolnshire Council,http://statistics.data.gov.uk/id/local-authority/00FC,People And Communities,Vulnerable Young People,School Access Governor Student,Contract Hire-Operating Leases,Vehicles - Contract Hire,JC101,24/10/2012,152260,REDACTED COMMERCIALLY SENSITIVE,Revenue,LINKS TAXIS,100546
North East Lincolnshire Council,http://statistics.data.gov.uk/id/local-authority/00FC,People And Communities,Vulnerable Young People,School Access Governor Student,Contract Hire-Operating Leases,Vehicles - Contract Hire,JC101,18/10/2012,149882,REDACTED COMMERCIALLY SENSITIVE,Revenue,MINICABS CLEETHORPES (LINCS) LTD,102124
North East Lincolnshire Council,http://statistics.data.gov.uk/id/local-authority/00FC,People And Communities,Vulnerable Young People,School Access Governor Student,Contract Hire-Operating Leases,Vehicles - Contract Hire,JC101,31/10/2012,154696,REDACTED COMMERCIALLY SENSITIVE,Revenue,LINKS TAXIS,100546
North East Lincolnshire Council,http://statistics.data.gov.uk/id/local-authority/00FC,People And Communities,Vulnerable Young People,School Access Governor Student,Contract Hire-Operating Leases,Vehicles - Contract Hire,JC101,24/10/2012,152264,REDACTED COMMERCIALLY SENSITIVE,Revenue,LINKS TAXIS,100546
North East Lincolnshire Council,http://statistics.data.gov.uk/id/local-authority/00FC,People And Communities,Vulnerable Young People,School Access Governor Student,Contract Hire-Operating Leases,Vehicles - Contract Hire,JC101,30/10/2012,154101,REDACTED COMMERCIALLY SENSITIVE,Revenue,LINKS TAXIS,100546
North East Lincolnshire Council,http://statistics.data.gov.uk/id/local-authority/00FC,People And Communities,Vulnerable Young People,School Access Governor Student,Contract Hire-Operating Leases,Vehicles - Contract Hire,JC101,24/10/2012,152263,REDACTED COMMERCIALLY SENSITIVE,Revenue,LINKS TAXIS,100546
North East Lincolnshire Council,http://statistics.data.gov.uk/id/local-authority/00FC,People And Communities,Vulnerable Young People,School Access Governor Student,Contract Hire-Operating Leases,Vehicles - Contract Hire,JC101,24/10/2012,152248,REDACTED COMMERCIALLY SENSITIVE,Revenue,LINKS TAXIS,100546
North East Lincolnshire Council,http://statistics.data.gov.uk/id/local-authority/00FC,People And Communities,Vulnerable Young People,School Access Governor Student,Contributions To Provisions,Contributions - Other,LK103,18/10/2012,113651,674.48,Revenue,REDACTED PERSONAL INFORMATION,REDACTED PERSONAL INFORMATION
North East Lincolnshire Council,http://statistics.data.gov.uk/id/local-authority/00FC,People And Communities,Vulnerable Young People,School Access Governor Student,Contract Hire-Operating Leases,Vehicles - Contract Hire,JC101,18/10/2012,150658,REDACTED COMMERCIALLY SENSITIVE,Revenue,COUNTRY CABS,101999
North East Lincolnshire Council,http://statistics.data.gov.uk/id/local-authority/00FC,People And Communities,Vulnerable Young People,School Access Governor Student,Contract Hire-Operating Leases,Vehicles - Contract Hire,JC101,16/10/2012,149651,REDACTED COMMERCIALLY SENSITIVE,Revenue,COXONS CARS LIMITED,100578
North East Lincolnshire Council,http://statistics.data.gov.uk/id/local-authority/00FC,People And Communities,Vulnerable Young People,School Access Governor Student,Contract Hire-Operating Leases,Vehicles - Contract Hire,JC101,25/10/2012,152427,REDACTED COMMERCIALLY SENSITIVE,Revenue,LINKS TAXIS,100546
North East Lincolnshire Council,http://statistics.data.gov.uk/id/local-authority/00FC,People And Communities,Vulnerable Young People,School Access Governor Student,Contract Hire-Operating Leases,Vehicles - Contract Hire,JC101,16/10/2012,149359,REDACTED COMMERCIALLY SENSITIVE,Revenue,WHEELCHAIR FRIENDLY TAXI SERVICE,101915
North East Lincolnshire Council,http://statistics.data.gov.uk/id/local-authority/00FC,People And Communities,Vulnerable Young People,School Access Governor Student,Contract Hire-Operating Leases,Vehicles - Contract Hire,JC101,25/10/2012,152419,REDACTED COMMERCIALLY SENSITIVE,Revenue,LINKS TAXIS,100546
North East Lincolnshire Council,http://statistics.data.gov.uk/id/local-authority/00FC,People And Communities,Vulnerable Young People,School Access Governor Student,Contract Hire-Operating Leases,Vehicles - Contract Hire,JC101,24/10/2012,152270,REDACTED COMMERCIALLY SENSITIVE,Revenue,LINKS TAXIS,100546
North East Lincolnshire Council,http://statistics.data.gov.uk/id/local-authority/00FC,People And Communities,Vulnerable Young People,School Access Governor Student,Contract Hire-Operating Leases,Vehicles - Contract Hire,JC101,18/10/2012,149885,REDACTED COMMERCIALLY SENSITIVE,Revenue,MINICABS CLEETHORPES (LINCS) LTD,102124
North East Lincolnshire Council,http://statistics.data.gov.uk/id/local-authority/00FC,People And Communities,Vulnerable Young People,School Access Governor Student,Contract Hire-Operating Leases,Vehicles - Contract Hire,JC101,16/10/2012,149345,REDACTED COMMERCIALLY SENSITIVE,Revenue,WHEELCHAIR FRIENDLY TAXI SERVICE,101915
North East Lincolnshire Council,http://statistics.data.gov.uk/id/local-authority/00FC,People And Communities,Vulnerable Young People,School Access Governor Student,Contract Hire-Operating Leases,Vehicles - Contract Hire,JC101,25/10/2012,152423,REDACTED COMMERCIALLY SENSITIVE,Revenue,LINKS TAXIS,100546
North East Lincolnshire Council,http://statistics.data.gov.uk/id/local-authority/00FC,People And Communities,Vulnerable Young People,School Access Governor Student,Contract Hire-Operating Leases,Vehicles - Contract Hire,JC101,24/10/2012,152262,REDACTED COMMERCIALLY SENSITIVE,Revenue,LINKS TAXIS,100546
North East Lincolnshire Council,http://statistics.data.gov.uk/id/local-authority/00FC,People And Communities,Vulnerable Young People,School Access Governor Student,Contract Hire-Operating Leases,Vehicles - Contract Hire,JC101,18/10/2012,150994,REDACTED COMMERCIALLY SENSITIVE,Revenue,AMVALE LIMITED,101030
North East Lincolnshire Council,http://statistics.data.gov.uk/id/local-authority/00FC,People And Communities,Vulnerable Young People,School Access Governor Student,Contract Hire-Operating Leases,Vehicles - Contract Hire,JC101,18/10/2012,150957,REDACTED COMMERCIALLY SENSITIVE,Revenue,AMVALE LIMITED,101030
North East Lincolnshire Council,http://statistics.data.gov.uk/id/local-authority/00FC,People And Communities,Vulnerable Young People,School Access Governor Student,Contract Hire-Operating Leases,Vehicles - Contract Hire,JC101,16/10/2012,149871,REDACTED COMMERCIALLY SENSITIVE,Revenue,AMVALE LIMITED,101030
North East Lincolnshire Council,http://statistics.data.gov.uk/id/local-authority/00FC,People And Communities,Vulnerable Young People,School Access Governor Student,Contract Hire-Operating Leases,Vehicles - Contract Hire,JC101,18/10/2012,149869,REDACTED COMMERCIALLY SENSITIVE,Revenue,AMVALE LIMITED,101030
North East Lincolnshire Council,http://statistics.data.gov.uk/id/local-authority/00FC,People And Communities,Vulnerable Young People,School Access Governor Student,Contract Hire-Operating Leases,Vehicles - Contract Hire,JC101,18/10/2012,149872,REDACTED COMMERCIALLY SENSITIVE,Revenue,AMVALE LIMITED,101030
North East Lincolnshire Council,http://statistics.data.gov.uk/id/local-authority/00FC,People And Communities,Vulnerable Young People,School Access Governor Student,Contract Hire-Operating Leases,Vehicles - Contract Hire,JC101,18/10/2012,149889,REDACTED COMMERCIALLY SENSITIVE,Revenue,MINICABS CLEETHORPES (LINCS) LTD,102124
North East Lincolnshire Council,http://statistics.data.gov.uk/id/local-authority/00FC,People And Communities,Vulnerable Young People,School Access Governor Student,Contract Hire-Operating Leases,Vehicles - Contract Hire,JC101,30/10/2012,154079,REDACTED COMMERCIALLY SENSITIVE,Revenue,LINKS TAXIS,100546
North East Lincolnshire Council,http://statistics.data.gov.uk/id/local-authority/00FC,People And Communities,Vulnerable Young People,School Access Governor Student,Contract Hire-Operating Leases,Vehicles - Contract Hire,JC101,30/10/2012,154083,REDACTED COMMERCIALLY SENSITIVE,Revenue,LINKS TAXIS,100546
North East Lincolnshire Council,http://statistics.data.gov.uk/id/local-authority/00FC,People And Communities,Vulnerable Young People,School Access Governor Student,Contract Hire-Operating Leases,Vehicles - Contract Hire,JC101,25/10/2012,152422,REDACTED COMMERCIALLY SENSITIVE,Revenue,LINKS TAXIS,100546
North East Lincolnshire Council,http://statistics.data.gov.uk/id/local-authority/00FC,People And Communities,Vulnerable Young People,School Access Governor Student,Contract Hire-Operating Leases,Vehicles - Contract Hire,JC101,18/10/2012,149879,REDACTED COMMERCIALLY SENSITIVE,Revenue,MINICABS CLEETHORPES (LINCS) LTD,102124
North East Lincolnshire Council,http://statistics.data.gov.uk/id/local-authority/00FC,People And Communities,Vulnerable Young People,School Access Governor Student,Contract Hire-Operating Leases,Vehicles - Contract Hire,JC101,24/10/2012,152268,REDACTED COMMERCIALLY SENSITIVE,Revenue,LINKS TAXIS,100546
North East Lincolnshire Council,http://statistics.data.gov.uk/id/local-authority/00FC,People And Communities,Vulnerable Young People,School Access Governor Student,Contract Hire-Operating Leases,Vehicles - Contract Hire,JC101,18/10/2012,150732,REDACTED COMMERCIALLY SENSITIVE,Revenue,REVELLS TAXIS (ED/SOC SERV),100559
North East Lincolnshire Council,http://statistics.data.gov.uk/id/local-authority/00FC,People And Communities,Vulnerable Young People,School Access Governor Student,Contract Hire-Operating Leases,Vehicles - Contract Hire,JC101,24/10/2012,151791,REDACTED COMMERCIALLY SENSITIVE,Revenue,REVELLS TAXIS (ED/SOC SERV),100559
North East Lincolnshire Council,http://statistics.data.gov.uk/id/local-authority/00FC,People And Communities,Vulnerable Young People,School Access Governor Student,Contract Hire-Operating Leases,Vehicles - Contract Hire,JC101,26/10/2012,153007,REDACTED COMMERCIALLY SENSITIVE,Revenue,M & J CARS,112068
North East Lincolnshire Council,http://statistics.data.gov.uk/id/local-authority/00FC,People And Communities,Vulnerable Young People,School Access Governor Student,Contract Hire-Operating Leases,Vehicles - Contract Hire,JC101,30/10/2012,153888,REDACTED COMMERCIALLY SENSITIVE,Revenue,LINKS TAXIS,100546
North East Lincolnshire Council,http://statistics.data.gov.uk/id/local-authority/00FC,People And Communities,Vulnerable Young People,School Access Governor Student,Contract Hire-Operating Leases,Vehicles - Contract Hire,JC101,25/10/2012,152425,REDACTED COMMERCIALLY SENSITIVE,Revenue,LINKS TAXIS,100546
North East Lincolnshire Council,http://statistics.data.gov.uk/id/local-authority/00FC,People And Communities,Vulnerable Young People,School Access Governor Student,Contract Hire-Operating Leases,Vehicles - Contract Hire,JC101,18/10/2012,150734,REDACTED COMMERCIALLY SENSITIVE,Revenue,LINKS TAXIS,100546
North East Lincolnshire Council,http://statistics.data.gov.uk/id/local-authority/00FC,People And Communities,Vulnerable Young People,School Access Governor Student,Contract Hire-Operating Leases,Vehicles - Contract Hire,JC101,25/10/2012,152417,REDACTED COMMERCIALLY SENSITIVE,Revenue,LINKS TAXIS,100546
North East Lincolnshire Council,http://statistics.data.gov.uk/id/local-authority/00FC,People And Communities,Vulnerable Young People,School Access Governor Student,Contract Hire-Operating Leases,Vehicles - Contract Hire,JC101,30/10/2012,154090,REDACTED COMMERCIALLY SENSITIVE,Revenue,LINKS TAXIS,100546
North East Lincolnshire Council,http://statistics.data.gov.uk/id/local-authority/00FC,People And Communities,Vulnerable Young People,School Access Governor Student,Contract Hire-Operating Leases,Vehicles - Contract Hire,JC101,18/10/2012,149886,REDACTED COMMERCIALLY SENSITIVE,Revenue,MINICABS CLEETHORPES (LINCS) LTD,102124
North East Lincolnshire Council,http://statistics.data.gov.uk/id/local-authority/00FC,People And Communities,Vulnerable Young People,School Access Governor Student,Contract Hire-Operating Leases,Vehicles - Contract Hire,JC101,30/10/2012,153875,REDACTED COMMERCIALLY SENSITIVE,Revenue,REDACTED PERSONAL INFORMATION,REDACTED PERSONAL INFORMATION
North East Lincolnshire Council,http://statistics.data.gov.uk/id/local-authority/00FC,People And Communities,Vulnerable Young People,School Access Governor Student,Contract Hire-Operating Leases,Vehicles - Contract Hire,JC101,24/10/2012,152261,REDACTED COMMERCIALLY SENSITIVE,Revenue,LINKS TAXIS,100546
North East Lincolnshire Council,http://statistics.data.gov.uk/id/local-authority/00FC,People And Communities,Vulnerable Young People,School Access Governor Student,Contract Hire-Operating Leases,Vehicles - Contract Hire,JC101,18/10/2012,149874,REDACTED COMMERCIALLY SENSITIVE,Revenue,HANSONS AIRPORT EXPRESS,111879
North East Lincolnshire Council,http://statistics.data.gov.uk/id/local-authority/00FC,People And Communities,Vulnerable Young People,School Access Governor Student,Contract Hire-Operating Leases,Vehicles - Contract Hire,JC101,18/10/2012,149887,REDACTED COMMERCIALLY SENSITIVE,Revenue,MINICABS CLEETHORPES (LINCS) LTD,102124
North East Lincolnshire Council,http://statistics.data.gov.uk/id/local-authority/00FC,People And Communities,Vulnerable Young People,School Access Governor Student,Contract Hire-Operating Leases,Vehicles - Contract Hire,JC101,16/10/2012,149361,REDACTED COMMERCIALLY SENSITIVE,Revenue,HUXMANOR LTD,101444
North East Lincolnshire Council,http://statistics.data.gov.uk/id/local-authority/00FC,People And Communities,Vulnerable Young People,School Access Governor Student,Contract Hire-Operating Leases,Vehicles - Contract Hire,JC101,30/10/2012,153887,REDACTED COMMERCIALLY SENSITIVE,Revenue,LINKS TAXIS,100546
North East Lincolnshire Council,http://statistics.data.gov.uk/id/local-authority/00FC,People And Communities,Vulnerable Young People,School Access Governor Student,Contract Hire-Operating Leases,Vehicles - Contract Hire,JC101,16/10/2012,148539,REDACTED COMMERCIALLY SENSITIVE,Revenue,CABBYCARS,100847
North East Lincolnshire Council,http://statistics.data.gov.uk/id/local-authority/00FC,People And Communities,Vulnerable Young People,School Access Governor Student,Contract Hire-Operating Leases,Vehicles - Contract Hire,JC101,16/10/2012,149364,REDACTED COMMERCIALLY SENSITIVE,Revenue,HUXMANOR LTD,101444
North East Lincolnshire Council,http://statistics.data.gov.uk/id/local-authority/00FC,People And Communities,Vulnerable Young People,School Access Governor Student,Contract Hire-Operating Leases,Vehicles - Contract Hire,JC101,25/10/2012,152428,REDACTED COMMERCIALLY SENSITIVE,Revenue,LINKS TAXIS,100546
North East Lincolnshire Council,http://statistics.data.gov.uk/id/local-authority/00FC,People And Communities,Vulnerable Young People,School Access Governor Student,Contract Hire-Operating Leases,Vehicles - Contract Hire,JC101,18/10/2012,149888,REDACTED COMMERCIALLY SENSITIVE,Revenue,MINICABS CLEETHORPES (LINCS) LTD,102124
North East Lincolnshire Council,http://statistics.data.gov.uk/id/local-authority/00FC,People And Communities,Vulnerable Young People,School Access Governor Student,Contract Hire-Operating Leases,Vehicles - Contract Hire,JC101,18/10/2012,150657,REDACTED COMMERCIALLY SENSITIVE,Revenue,MINICABS CLEETHORPES (LINCS) LTD,102124
North East Lincolnshire Council,http://statistics.data.gov.uk/id/local-authority/00FC,People And Communities,Vulnerable Young People,School Access Governor Student,Contract Hire-Operating Leases,Vehicles - Contract Hire,JC101,16/10/2012,149363,REDACTED COMMERCIALLY SENSITIVE,Revenue,HUXMANOR LTD,101444
North East Lincolnshire Council,http://statistics.data.gov.uk/id/local-authority/00FC,People And Communities,Vulnerable Young People,School Access Governor Student,Contract Hire-Operating Leases,Vehicles - Contract Hire,JC101,18/10/2012,151178,REDACTED COMMERCIALLY SENSITIVE,Revenue,AMVALE LIMITED,101030
North East Lincolnshire Council,http://statistics.data.gov.uk/id/local-authority/00FC,People And Communities,Vulnerable Young People,School Access Governor Student,Contract Hire-Operating Leases,Vehicles - Contract Hire,JC101,18/10/2012,151197,REDACTED COMMERCIALLY SENSITIVE,Revenue,AMVALE LIMITED,101030
North East Lincolnshire Council,http://statistics.data.gov.uk/id/local-authority/00FC,People And Communities,Vulnerable Young People,School Access Governor Student,Contract Hire-Operating Leases,Vehicles - Contract Hire,JC101,31/10/2012,154605,REDACTED COMMERCIALLY SENSITIVE,Revenue,REVELLS TAXIS (ED/SOC SERV),100559
North East Lincolnshire Council,http://statistics.data.gov.uk/id/local-authority/00FC,People And Communities,Vulnerable Young People,School Access Governor Student,Contract Hire-Operating Leases,Vehicles - Contract Hire,JC101,16/10/2012,149367,REDACTED COMMERCIALLY SENSITIVE,Revenue,THE BUS RUN,101522
North East Lincolnshire Council,http://statistics.data.gov.uk/id/local-authority/00FC,People And Communities,Vulnerable Young People,School Access Governor Student,Contract Hire-Operating Leases,Vehicles - Contract Hire,JC101,18/10/2012,151198,REDACTED COMMERCIALLY SENSITIVE,Revenue,AMVALE LIMITED,101030
North East Lincolnshire Council,http://statistics.data.gov.uk/id/local-authority/00FC,People And Communities,Vulnerable Young People,School Access Governor Student,Contract Hire-Operating Leases,Vehicles - Contract Hire,JC101,16/10/2012,149358,REDACTED COMMERCIALLY SENSITIVE,Revenue,MILLMAN COACHES,100700
North East Lincolnshire Council,http://statistics.data.gov.uk/id/local-authority/00FC,People And Communities,Vulnerable Young People,School Access Governor Student,Contract Hire-Operating Leases,Vehicles - Contract Hire,JC101,18/10/2012,151196,REDACTED COMMERCIALLY SENSITIVE,Revenue,AMVALE LIMITED,101030
North East Lincolnshire Council,http://statistics.data.gov.uk/id/local-authority/00FC,People And Communities,Vulnerable Young People,School Access Governor Student,Contract Hire-Operating Leases,Vehicles - Contract Hire,JC101,18/10/2012,151192,REDACTED COMMERCIALLY SENSITIVE,Revenue,AMVALE LIMITED,101030
North East Lincolnshire Council,http://statistics.data.gov.uk/id/local-authority/00FC,People And Communities,Vulnerable Young People,School Access Governor Student,Contract Hire-Operating Leases,Vehicles - Contract Hire,JC101,18/10/2012,151001,REDACTED COMMERCIALLY SENSITIVE,Revenue,AMVALE LIMITED,101030
North East Lincolnshire Council,http://statistics.data.gov.uk/id/local-authority/00FC,People And Communities,Vulnerable Young People,School Access Governor Student,Contract Hire-Operating Leases,Vehicles - Contract Hire,JC101,18/10/2012,150958,REDACTED COMMERCIALLY SENSITIVE,Revenue,AMVALE LIMITED,101030
North East Lincolnshire Council,http://statistics.data.gov.uk/id/local-authority/00FC,People And Communities,Vulnerable Young People,School Access Governor Student,Contract Hire-Operating Leases,Vehicles - Contract Hire,JC101,18/10/2012,151179,REDACTED COMMERCIALLY SENSITIVE,Revenue,AMVALE LIMITED,101030
North East Lincolnshire Council,http://statistics.data.gov.uk/id/local-authority/00FC,People And Communities,Vulnerable Young People,School Access Governor Student,Contract Hire-Operating Leases,Vehicles - Contract Hire,JC101,18/10/2012,151187,REDACTED COMMERCIALLY SENSITIVE,Revenue,AMVALE LIMITED,101030
North East Lincolnshire Council,http://statistics.data.gov.uk/id/local-authority/00FC,People And Communities,Vulnerable Young People,School Access Governor Student,Contract Hire-Operating Leases,Vehicles - Contract Hire,JC101,18/10/2012,151195,REDACTED COMMERCIALLY SENSITIVE,Revenue,AMVALE LIMITED,101030
North East Lincolnshire Council,http://statistics.data.gov.uk/id/local-authority/00FC,People And Communities,Vulnerable Young People,Strategic Management,Indirect Employee Expenses,Allowances - Employees,EB110,15/10/2012,149147,472.50,Revenue,GRIMSBY & DISTRICT TEACHERS ASSOCIATION,107358
North East Lincolnshire Council,http://statistics.data.gov.uk/id/local-authority/00FC,People And Communities,Vulnerable Young People,Strategic Management,Indirect Employee Expenses,Allowances - Employees,EB110,18/10/2012,150941,810.00,Revenue,NASUWT G76 GRIMSBY & DISTRICT,107363
North East Lincolnshire Council,http://statistics.data.gov.uk/id/local-authority/00FC,People And Communities,Vulnerable Young People,Strategic Management,Expenses,Course/Conf Accom - Members,LH104,24/10/2012,152376,400.00,Revenue,T & G EASTBOURNE CENTRE,112047
North East Lincolnshire Council,http://statistics.data.gov.uk/id/local-authority/00FC,People And Communities,Vulnerable Young People,Strategic Management,Expenses,Course/Conf Accom - Members,LH104,15/10/2012,149095,450.00,Revenue,ADASS,111987
North East Lincolnshire Council,http://statistics.data.gov.uk/id/local-authority/00FC,People And Communities,Vulnerable Young People,Strategic Management,Expenses,Course/Conf Accom - Members,LH104,11/10/2012,149090,450.00,Revenue,ADASS,106162
North East Lincolnshire Council,http://statistics.data.gov.uk/id/local-authority/00FC,People And Communities,Vulnerable Young People,Strategic Management,Expenses,Course/Conf Accom - Members,LH104,09/10/2012,148106,659.16,Revenue,THE ASSOCIATION OF DIRECTORS OF CHILDREN'S,101800
North East Lincolnshire Council,http://statistics.data.gov.uk/id/local-authority/00FC,People And Communities,Vulnerable Young People,Strategic Management,Direct Employee Expenses,Agency Staff,EA105,16/10/2012,149866,"13,237.75",Revenue,JD AND KM BLACKMORE PARTNERS,102197
North East Lincolnshire Council,http://statistics.data.gov.uk/id/local-authority/00FC,People And Communities,Vulnerable Young People,Sen/Inclusion,Consultancy,Consultancy,PL101,26/10/2012,153050,"1,060.97",Revenue,GLENN ALLGOOD,109255
North East Lincolnshire Council,http://statistics.data.gov.uk/id/local-authority/00FC,People And Communities,Vulnerable Young People,Sen/Inclusion,Direct Employee Expenses,Agency Staff,EA105,15/10/2012,149594,"1,779.75",Revenue,FOCUS PSYCHOLOGY LTD,112011
North East Lincolnshire Council,http://statistics.data.gov.uk/id/local-authority/00FC,People And Communities,Vulnerable Young People,Sen/Inclusion,Other Local Authorities,Third Pp - Other Local Auth,PC101,16/10/2012,149302,"1,000.00",Revenue,MR R G FLOWERDAY,107027
North East Lincolnshire Council,http://statistics.data.gov.uk/id/local-authority/00FC,People And Communities,Vulnerable Young People,Sen/Inclusion,Other Local Authorities,Third Pp - Other Local Auth,PC101,16/10/2012,149317,"3,683.00",Revenue,N LINCS & GOOLE HOSPITALS NHS,111074
North East Lincolnshire Council,http://statistics.data.gov.uk/id/local-authority/00FC,People And Communities,Vulnerable Young People,Sen/Inclusion,Other Local Authorities,Third Pp - Other Local Auth,PC101,12/10/2012,149638,"6,850.83",Revenue,SHEFFIELD CITY COUNCIL,101195
North East Lincolnshire Council,http://statistics.data.gov.uk/id/local-authority/00FC,People And Communities,Vulnerable Young People,Sen/Inclusion,Other Local Authorities,Third Pp - Other Local Auth,PC101,25/10/2012,153043,"40,144.07",Revenue,KINGSTON UPON HULL CITY COUNCIL,100541
North East Lincolnshire Council,http://statistics.data.gov.uk/id/local-authority/00FC,People And Communities,Vulnerable Young People,Sen/Inclusion,Other Local Authorities,Third Pp - Other Local Auth,PC101,25/10/2012,153043,"116,541.08",Revenue,KINGSTON UPON HULL CITY COUNCIL,100541
North East Lincolnshire Council,http://statistics.data.gov.uk/id/local-authority/00FC,People And Communities,Vulnerable Young People,Sen/Inclusion,Equip / Furniture / Materials,Teaching Materials,LA117,03/10/2012,147286,250.00,Revenue,LINGUASCOPE,104456
North East Lincolnshire Council,http://statistics.data.gov.uk/id/local-authority/00FC,People And Communities,Vulnerable Young People,Sen/Inclusion,Rep Alterations Maint Building,Security Alarms And Cctv,GA101,30/10/2012,153550,-387.62,Revenue,SECOM PLC,100771
North East Lincolnshire Council,http://statistics.data.gov.uk/id/local-authority/00FC,People And Communities,Vulnerable Young People,Sen/Inclusion,Miscellaneous Expenses,Exam Fees,LL115,22/10/2012,150688,266.40,Revenue,ASSESSMENT AND QUALIFICATIONS ALLIANCE,101139
North East Lincolnshire Council,http://statistics.data.gov.uk/id/local-authority/00FC,People And Communities,Vulnerable Young People,Sen/Inclusion,Direct Employee Expenses,Agency Supply Teachers,EA104,26/10/2012,152959,336.00,Revenue,RANDSTAD EDUCATION LTD,102465
North East Lincolnshire Council,http://statistics.data.gov.uk/id/local-authority/00FC,People And Communities,Vulnerable Young People,Sen/Inclusion,Direct Employee Expenses,Agency Supply Teachers,EA104,19/10/2012,151217,336.00,Revenue,RANDSTAD EDUCATION LTD,102465
North East Lincolnshire Council,http://statistics.data.gov.uk/id/local-authority/00FC,People And Communities,Vulnerable Young People,Sen/Inclusion,Print Stationery / Gen Off Exp,Photocopier - Running Costs,LD102,22/10/2012,150682,357.79,Revenue,UNITED CARLTON OFFICE SYSTEMS LTD,101652
North East Lincolnshire Council,http://statistics.data.gov.uk/id/local-authority/00FC,People And Communities,Vulnerable Young People,Sen/Inclusion,Direct Employee Expenses,Agency Supply Teachers,EA104,10/10/2012,147362,358.00,Revenue,RANDSTAD EDUCATION LTD,102465
North East Lincolnshire Council,http://statistics.data.gov.uk/id/local-authority/00FC,People And Communities,Vulnerable Young People,Sen/Inclusion,Print Stationery / Gen Off Exp,Photocopier - Running Costs,LD102,03/10/2012,147331,368.65,Revenue,UNITED CARLTON OFFICE SYSTEMS LTD,101652
North East Lincolnshire Council,http://statistics.data.gov.uk/id/local-authority/00FC,People And Communities,Vulnerable Young People,Sen/Inclusion,Direct Employee Expenses,Agency Supply Teachers,EA104,26/10/2012,152954,560.00,Revenue,RANDSTAD EDUCATION LTD,102465
North East Lincolnshire Council,http://statistics.data.gov.uk/id/local-authority/00FC,People And Communities,Vulnerable Young People,Sen/Inclusion,Direct Employee Expenses,Agency Supply Teachers,EA104,18/10/2012,149947,560.00,Revenue,RANDSTAD EDUCATION LTD,102465
North East Lincolnshire Council,http://statistics.data.gov.uk/id/local-authority/00FC,People And Communities,Vulnerable Young People,Sen/Inclusion,Direct Employee Expenses,Agency Supply Teachers,EA104,22/10/2012,151007,560.00,Revenue,RANDSTAD EDUCATION LTD,102465
North East Lincolnshire Council,http://statistics.data.gov.uk/id/local-authority/00FC,People And Communities,Vulnerable Young People,Sen/Inclusion,Direct Employee Expenses,Agency Supply Teachers,EA104,05/10/2012,147227,560.00,Revenue,RANDSTAD EDUCATION LTD,102465
North East Lincolnshire Council,http://statistics.data.gov.uk/id/local-authority/00FC,People And Communities,Vulnerable Young People,Sen/Inclusion,Direct Employee Expenses,Agency Supply Teachers,EA104,05/10/2012,147310,560.00,Revenue,RANDSTAD EDUCATION LTD,102465
North East Lincolnshire Council,http://statistics.data.gov.uk/id/local-authority/00FC,People And Communities,Vulnerable Young People,Sen/Inclusion,Private Contractors,Third Party Prov - Private,PH101,18/10/2012,149979,748.00,Revenue,NORTH EAST LINCS MOTOR PROJECT,101121
North East Lincolnshire Council,http://statistics.data.gov.uk/id/local-authority/00FC,People And Communities,Vulnerable Young People,Sen/Inclusion,Direct Employee Expenses,Agency Supply Teachers,EA104,26/10/2012,152958,895.00,Revenue,RANDSTAD EDUCATION LTD,102465
North East Lincolnshire Council,http://statistics.data.gov.uk/id/local-authority/00FC,People And Communities,Vulnerable Young People,Sen/Inclusion,Direct Employee Expenses,Agency Supply Teachers,EA104,26/10/2012,152956,895.00,Revenue,RANDSTAD EDUCATION LTD,102465
North East Lincolnshire Council,http://statistics.data.gov.uk/id/local-authority/00FC,People And Communities,Vulnerable Young People,Sen/Inclusion,Direct Employee Expenses,Agency Supply Teachers,EA104,26/10/2012,152955,895.00,Revenue,RANDSTAD EDUCATION LTD,102465
North East Lincolnshire Council,http://statistics.data.gov.uk/id/local-authority/00FC,People And Communities,Vulnerable Young People,Sen/Inclusion,Direct Employee Expenses,Agency Supply Teachers,EA104,05/10/2012,147315,895.00,Revenue,RANDSTAD EDUCATION LTD,102465
North East Lincolnshire Council,http://statistics.data.gov.uk/id/local-authority/00FC,People And Communities,Vulnerable Young People,Sen/Inclusion,Direct Employee Expenses,Agency Supply Teachers,EA104,18/10/2012,149956,895.00,Revenue,RANDSTAD EDUCATION LTD,102465
North East Lincolnshire Council,http://statistics.data.gov.uk/id/local-authority/00FC,People And Communities,Vulnerable Young People,Sen/Inclusion,Direct Employee Expenses,Agency Supply Teachers,EA104,18/10/2012,149949,895.00,Revenue,RANDSTAD EDUCATION LTD,102465
North East Lincolnshire Council,http://statistics.data.gov.uk/id/local-authority/00FC,People And Communities,Vulnerable Young People,Sen/Inclusion,Direct Employee Expenses,Agency Supply Teachers,EA104,18/10/2012,149950,895.00,Revenue,RANDSTAD EDUCATION LTD,102465
North East Lincolnshire Council,http://statistics.data.gov.uk/id/local-authority/00FC,People And Communities,Vulnerable Young People,Sen/Inclusion,Direct Employee Expenses,Agency Supply Teachers,EA104,19/10/2012,151218,895.00,Revenue,RANDSTAD EDUCATION LTD,102465
North East Lincolnshire Council,http://statistics.data.gov.uk/id/local-authority/00FC,People And Communities,Vulnerable Young People,Sen/Inclusion,Direct Employee Expenses,Agency Supply Teachers,EA104,19/10/2012,151219,895.00,Revenue,RANDSTAD EDUCATION LTD,102465
North East Lincolnshire Council,http://statistics.data.gov.uk/id/local-authority/00FC,People And Communities,Vulnerable Young People,Sen/Inclusion,Direct Employee Expenses,Agency Supply Teachers,EA104,22/10/2012,151005,895.00,Revenue,RANDSTAD EDUCATION LTD,102465
North East Lincolnshire Council,http://statistics.data.gov.uk/id/local-authority/00FC,People And Communities,Vulnerable Young People,Sen/Inclusion,Direct Employee Expenses,Agency Supply Teachers,EA104,05/10/2012,147307,895.00,Revenue,RANDSTAD EDUCATION LTD,102465
North East Lincolnshire Council,http://statistics.data.gov.uk/id/local-authority/00FC,People And Communities,Vulnerable Young People,Sen/Inclusion,Direct Employee Expenses,Agency Supply Teachers,EA104,05/10/2012,147344,895.00,Revenue,RANDSTAD EDUCATION LTD,102465
North East Lincolnshire Council,http://statistics.data.gov.uk/id/local-authority/00FC,People And Communities,Vulnerable Young People,Sen/Inclusion,Direct Employee Expenses,Agency Supply Teachers,EA104,05/10/2012,147318,895.00,Revenue,RANDSTAD EDUCATION LTD,102465
North East Lincolnshire Council,http://statistics.data.gov.uk/id/local-authority/00FC,People And Communities,Vulnerable Young People,Sen/Inclusion,Direct Employee Expenses,Agency Supply Teachers,EA104,05/10/2012,147314,895.00,Revenue,RANDSTAD EDUCATION LTD,102465
North East Lincolnshire Council,http://statistics.data.gov.uk/id/local-authority/00FC,People And Communities,Vulnerable Young People,Sen/Inclusion,Indirect Employee Expenses,Staff Training,EB122,05/10/2012,147321,900.00,Revenue,THE GRIMSBY INSTITUTE OF FURTHER,102742
North East Lincolnshire Council,http://statistics.data.gov.uk/id/local-authority/00FC,People And Communities,Vulnerable Young People,Sen/Inclusion,Equip / Furniture / Materials,Teaching Materials,LA117,19/10/2012,151230,360.00,Revenue,INCLUSIVE TECHNOLOGY,100865
North East Lincolnshire Council,http://statistics.data.gov.uk/id/local-authority/00FC,People And Communities,Vulnerable Young People,Sen/Inclusion,Indirect Employee Expenses,Staff Training,EB122,26/10/2012,153041,400.00,Revenue,FIONA MACAULAY EDUCATION CONSULTANT -SEN,112087
North East Lincolnshire Council,http://statistics.data.gov.uk/id/local-authority/00FC,People And Communities,Vulnerable Young People,Sen/Inclusion,Communications And Computing,Computer H/Ware - Purchases,LF105,18/10/2012,150719,402.13,Revenue,VIKING DIRECT,100590
North East Lincolnshire Council,http://statistics.data.gov.uk/id/local-authority/00FC,People And Communities,Vulnerable Young People,Sen/Inclusion,Indirect Employee Expenses,Staff Training,EB122,26/10/2012,153042,476.00,Revenue,FIONA MACAULAY EDUCATION CONSULTANT -SEN,112087
North East Lincolnshire Council,http://statistics.data.gov.uk/id/local-authority/00FC,People And Communities,Vulnerable Young People,Sen/Inclusion,Private Contractors,Concessionary Fares,PH104,18/10/2012,150703,380.00,Revenue,DKM ASSESSMENT & VERIFICATION LTD,101643
North East Lincolnshire Council,http://statistics.data.gov.uk/id/local-authority/00FC,People And Communities,Vulnerable Young People,Sen/Inclusion,Private Contractors,Concessionary Fares,PH104,18/10/2012,150704,380.00,Revenue,DKM ASSESSMENT & VERIFICATION LTD,101643
North East Lincolnshire Council,http://statistics.data.gov.uk/id/local-authority/00FC,People And Communities,Vulnerable Young People,Sen/Inclusion,Private Contractors,Concessionary Fares,PH104,18/10/2012,150707,380.00,Revenue,DKM ASSESSMENT & VERIFICATION LTD,101643
North East Lincolnshire Council,http://statistics.data.gov.uk/id/local-authority/00FC,People And Communities,Vulnerable Young People,Sen/Inclusion,Private Contractors,Concessionary Fares,PH104,18/10/2012,150702,380.00,Revenue,DKM ASSESSMENT & VERIFICATION LTD,101643
North East Lincolnshire Council,http://statistics.data.gov.uk/id/local-authority/00FC,People And Communities,Vulnerable Young People,Sen/Inclusion,Private Contractors,Concessionary Fares,PH104,18/10/2012,150706,380.00,Revenue,DKM ASSESSMENT & VERIFICATION LTD,101643
North East Lincolnshire Council,http://statistics.data.gov.uk/id/local-authority/00FC,People And Communities,Vulnerable Young People,Sen/Inclusion,Private Contractors,Concessionary Fares,PH104,18/10/2012,150711,380.00,Revenue,DKM ASSESSMENT & VERIFICATION LTD,101643
North East Lincolnshire Council,http://statistics.data.gov.uk/id/local-authority/00FC,People And Communities,Vulnerable Young People,Sen/Inclusion,Private Contractors,Concessionary Fares,PH104,18/10/2012,150714,380.00,Revenue,DKM ASSESSMENT & VERIFICATION LTD,101643
North East Lincolnshire Council,http://statistics.data.gov.uk/id/local-authority/00FC,People And Communities,Vulnerable Young People,Sen/Inclusion,Private Contractors,Concessionary Fares,PH104,18/10/2012,150708,380.00,Revenue,DKM ASSESSMENT & VERIFICATION LTD,101643
North East Lincolnshire Council,http://statistics.data.gov.uk/id/local-authority/00FC,People And Communities,Vulnerable Young People,Sen/Inclusion,Private Contractors,Concessionary Fares,PH104,18/10/2012,150710,380.00,Revenue,DKM ASSESSMENT & VERIFICATION LTD,101643
North East Lincolnshire Council,http://statistics.data.gov.uk/id/local-authority/00FC,People And Communities,Vulnerable Young People,Sen/Inclusion,Private Contractors,Concessionary Fares,PH104,31/10/2012,154601,REDACTED COMMERCIALLY SENSITIVE,Revenue,LINKS TAXIS,100546
North East Lincolnshire Council,http://statistics.data.gov.uk/id/local-authority/00FC,People And Communities,Vulnerable Young People,Sen/Inclusion,Private Contractors,Third Party Prov - Private,PH101,31/10/2012,154583,950.00,Revenue,DKM ASSESSMENT & VERIFICATION LTD,101643
North East Lincolnshire Council,http://statistics.data.gov.uk/id/local-authority/00FC,People And Communities,Vulnerable Young People,Sen/Inclusion,Private Contractors,Third Party Prov - Private,PH101,31/10/2012,154585,950.00,Revenue,DKM ASSESSMENT & VERIFICATION LTD,101643
North East Lincolnshire Council,http://statistics.data.gov.uk/id/local-authority/00FC,People And Communities,Vulnerable Young People,Sen/Inclusion,Private Contractors,Third Party Prov - Private,PH101,31/10/2012,154587,950.00,Revenue,DKM ASSESSMENT & VERIFICATION LTD,101643
North East Lincolnshire Council,http://statistics.data.gov.uk/id/local-authority/00FC,People And Communities,Vulnerable Young People,Sen/Inclusion,Private Contractors,Third Party Prov - Private,PH101,31/10/2012,154588,950.00,Revenue,DKM ASSESSMENT & VERIFICATION LTD,101643
North East Lincolnshire Council,http://statistics.data.gov.uk/id/local-authority/00FC,People And Communities,Vulnerable Young People,Sen/Inclusion,Private Contractors,Third Party Prov - Private,PH101,31/10/2012,154591,950.00,Revenue,DKM ASSESSMENT & VERIFICATION LTD,101643
North East Lincolnshire Council,http://statistics.data.gov.uk/id/local-authority/00FC,People And Communities,Vulnerable Young People,Sen/Inclusion,Private Contractors,Third Party Prov - Private,PH101,31/10/2012,154592,950.00,Revenue,DKM ASSESSMENT & VERIFICATION LTD,101643
North East Lincolnshire Council,http://statistics.data.gov.uk/id/local-authority/00FC,People And Communities,Vulnerable Young People,Sen/Inclusion,Private Contractors,Third Party Prov - Private,PH101,31/10/2012,154593,950.00,Revenue,DKM ASSESSMENT & VERIFICATION LTD,101643
North East Lincolnshire Council,http://statistics.data.gov.uk/id/local-authority/00FC,People And Communities,Vulnerable Young People,Sen/Inclusion,Private Contractors,Third Party Prov - Private,PH101,31/10/2012,154598,950.00,Revenue,DKM ASSESSMENT & VERIFICATION LTD,101643
North East Lincolnshire Council,http://statistics.data.gov.uk/id/local-authority/00FC,People And Communities,Vulnerable Young People,Sen/Inclusion,Private Contractors,Third Party Prov - Private,PH101,31/10/2012,154599,950.00,Revenue,DKM ASSESSMENT & VERIFICATION LTD,101643
North East Lincolnshire Council,http://statistics.data.gov.uk/id/local-authority/00FC,People And Communities,Vulnerable Young People,Sen/Inclusion,Private Contractors,Third Party Prov - Private,PH101,31/10/2012,154600,950.00,Revenue,DKM ASSESSMENT & VERIFICATION LTD,101643
North East Lincolnshire Council,http://statistics.data.gov.uk/id/local-authority/00FC,People And Communities,Vulnerable Young People,Sen/Inclusion,Private Contractors,Third Party Prov - Private,PH101,31/10/2012,154582,950.00,Revenue,DKM ASSESSMENT & VERIFICATION LTD,101643
North East Lincolnshire Council,http://statistics.data.gov.uk/id/local-authority/00FC,People And Communities,Vulnerable Young People,Sen/Inclusion,Private Contractors,Third Party Prov - Private,PH101,31/10/2012,154594,950.00,Revenue,DKM ASSESSMENT & VERIFICATION LTD,101643
North East Lincolnshire Council,http://statistics.data.gov.uk/id/local-authority/00FC,People And Communities,Vulnerable Young People,Sen/Inclusion,Private Contractors,Third Party Prov - Private,PH101,31/10/2012,154580,950.00,Revenue,DKM ASSESSMENT & VERIFICATION LTD,101643
North East Lincolnshire Council,http://statistics.data.gov.uk/id/local-authority/00FC,People And Communities,Vulnerable Young People,Sen/Inclusion,Private Contractors,Third Party Prov - Private,PH101,31/10/2012,154589,950.00,Revenue,DKM ASSESSMENT & VERIFICATION LTD,101643
North East Lincolnshire Council,http://statistics.data.gov.uk/id/local-authority/00FC,People And Communities,Vulnerable Young People,Sen/Inclusion,Private Contractors,Third Party Prov - Private,PH101,31/10/2012,154590,950.00,Revenue,DKM ASSESSMENT & VERIFICATION LTD,101643
North East Lincolnshire Council,http://statistics.data.gov.uk/id/local-authority/00FC,People And Communities,Vulnerable Young People,Sen/Inclusion,Direct Employee Expenses,Pay Teachers Supply Cover,EA106,31/10/2012,154576,"1,154.70",Revenue,TEACHING PERSONNEL LTD,101305
North East Lincolnshire Council,http://statistics.data.gov.uk/id/local-authority/00FC,People And Communities,Vulnerable Young People,Sen/Inclusion,Direct Employee Expenses,Pay Teachers Supply Cover,EA106,16/10/2012,149251,"1,311.25",Revenue,TEACHING PERSONNEL LTD,101305
North East Lincolnshire Council,http://statistics.data.gov.uk/id/local-authority/00FC,People And Communities,Vulnerable Young People,Sen/Inclusion,Direct Employee Expenses,Pay Teachers Supply Cover,EA106,18/10/2012,150712,"1,311.25",Revenue,TEACHING PERSONNEL LTD,101305
North East Lincolnshire Council,http://statistics.data.gov.uk/id/local-authority/00FC,People And Communities,Vulnerable Young People,Sen/Inclusion,Direct Employee Expenses,Pay Teachers Supply Cover,EA106,18/10/2012,150718,"1,311.25",Revenue,TEACHING PERSONNEL LTD,101305
North East Lincolnshire Council,http://statistics.data.gov.uk/id/local-authority/00FC,People And Communities,Vulnerable Young People,Sen/Inclusion,Direct Employee Expenses,Pay Teachers Supply Cover,EA106,31/10/2012,154602,"1,311.25",Revenue,TEACHING PERSONNEL LTD,101305
North East Lincolnshire Council,http://statistics.data.gov.uk/id/local-authority/00FC,People And Communities,Vulnerable Young People,Sen/Inclusion,Direct Employee Expenses,Agency Staff,EA105,31/10/2012,154617,"1,546.80",Revenue,IRWIN EDUCATION LTD,106910
North East Lincolnshire Council,http://statistics.data.gov.uk/id/local-authority/00FC,People And Communities,Vulnerable Young People,Sen/Inclusion,Direct Employee Expenses,Agency Staff,EA105,18/10/2012,151202,"1,546.80",Revenue,IRWIN EDUCATION LTD,106910
North East Lincolnshire Council,http://statistics.data.gov.uk/id/local-authority/00FC,People And Communities,Vulnerable Young People,Sen/Inclusion,Direct Employee Expenses,Agency Staff,EA105,18/10/2012,151203,"1,546.80",Revenue,IRWIN EDUCATION LTD,106910
North East Lincolnshire Council,http://statistics.data.gov.uk/id/local-authority/00FC,People And Communities,Vulnerable Young People,Sen/Inclusion,Private Contractors,Third Party Prov - Private,PH101,31/10/2012,154581,"2,660.00",Revenue,DKM ASSESSMENT & VERIFICATION LTD,101643
North East Lincolnshire Council,http://statistics.data.gov.uk/id/local-authority/00FC,People And Communities,Vulnerable Young People,Sen/Inclusion,Private Contractors,Third Party Prov - Private,PH101,31/10/2012,154595,"2,660.00",Revenue,DKM ASSESSMENT & VERIFICATION LTD,101643
North East Lincolnshire Council,http://statistics.data.gov.uk/id/local-authority/00FC,People And Communities,Vulnerable Young People,Sen/Inclusion,Private Contractors,Third Party Prov - Private,PH101,31/10/2012,154584,"3,135.00",Revenue,DKM ASSESSMENT & VERIFICATION LTD,101643
North East Lincolnshire Council,http://statistics.data.gov.uk/id/local-authority/00FC,People And Communities,Vulnerable Young People,Sen/Inclusion,Private Contractors,Third Party Prov - Private,PH101,30/10/2012,154055,"7,942.00",Revenue,A4E CONSULT LTD,101656
North East Lincolnshire Council,http://statistics.data.gov.uk/id/local-authority/00FC,People And Communities,Vulnerable Young People,Standards & Effectiveness,Other Agencies,Nursery Educ Fund - Standard,PJ139,30/10/2012,154282,"39,579.50",Revenue,BARNARDO SERVICES LTD,101050
North East Lincolnshire Council,http://statistics.data.gov.uk/id/local-authority/00FC,People And Communities,Vulnerable Young People,Placement & Support,Direct Transport Costs,Vehicles - Running Costs,JA104,30/10/2012,154520,-208.27,Revenue,ALLSTAR BUSINESS SOLUTIONS LTD,108278
North East Lincolnshire Council,http://statistics.data.gov.uk/id/local-authority/00FC,People And Communities,Vulnerable Young People,Placement & Support,Indirect Employee Expenses,Staff Training,EB122,18/10/2012,150020,286.80,Revenue,ASSESSMENT AND QUALIFICATIONS ALLIANCE,101139
North East Lincolnshire Council,http://statistics.data.gov.uk/id/local-authority/00FC,People And Communities,Vulnerable Young People,Placement & Support,Indirect Employee Expenses,Staff Training,EB122,31/10/2012,151978,"2,495.00",Revenue,THE GRIMSBY INSTITUTE OF FURTHER,102742
North East Lincolnshire Council,http://statistics.data.gov.uk/id/local-authority/00FC,People And Communities,Vulnerable Young People,Placement & Support,Equip / Furniture / Materials,Equipment - Purchase,LA101,24/10/2012,152004,290.00,Revenue,FAIR DEAL CARPETS,110806
North East Lincolnshire Council,http://statistics.data.gov.uk/id/local-authority/00FC,People And Communities,Vulnerable Young People,Placement & Support,Other Agencies,Child Care Payments,PJ104,31/10/2012,152096,"6,500.00",Revenue,TJS SELF DRIVE LEEDS,109519
North East Lincolnshire Council,http://statistics.data.gov.uk/id/local-authority/00FC,People And Communities,Vulnerable Young People,Placement & Support,Other Agencies,Child Care Payments,PJ104,02/10/2012,109733,-147.43,Revenue,REDACTED PERSONAL INFORMATION,REDACTED PERSONAL INFORMATION
North East Lincolnshire Council,http://statistics.data.gov.uk/id/local-authority/00FC,People And Communities,Vulnerable Young People,Placement & Support,Other Agencies,Child Care Payments,PJ104,23/10/2012,114363,-129.00,Revenue,REDACTED PERSONAL INFORMATION,REDACTED PERSONAL INFORMATION
North East Lincolnshire Council,http://statistics.data.gov.uk/id/local-authority/00FC,People And Communities,Vulnerable Young People,Placement & Support,Other Agencies,Child Care Payments,PJ104,23/10/2012,114363,-112.29,Revenue,REDACTED PERSONAL INFORMATION,REDACTED PERSONAL INFORMATION
North East Lincolnshire Council,http://statistics.data.gov.uk/id/local-authority/00FC,People And Communities,Vulnerable Young People,Placement & Support,Other Agencies,Child Care Payments,PJ104,02/10/2012,109780,-74.00,Revenue,REDACTED PERSONAL INFORMATION,REDACTED PERSONAL INFORMATION
North East Lincolnshire Council,http://statistics.data.gov.uk/id/local-authority/00FC,People And Communities,Vulnerable Young People,Placement & Support,Other Agencies,Child Care Payments,PJ104,02/10/2012,109780,-74.00,Revenue,REDACTED PERSONAL INFORMATION,REDACTED PERSONAL INFORMATION
North East Lincolnshire Council,http://statistics.data.gov.uk/id/local-authority/00FC,People And Communities,Vulnerable Young People,Placement & Support,Other Agencies,Child Care Payments,PJ104,09/10/2012,110817,-74.00,Revenue,REDACTED PERSONAL INFORMATION,REDACTED PERSONAL INFORMATION
North East Lincolnshire Council,http://statistics.data.gov.uk/id/local-authority/00FC,People And Communities,Vulnerable Young People,Placement & Support,Other Agencies,Child Care Payments,PJ104,23/10/2012,114363,-73.71,Revenue,REDACTED PERSONAL INFORMATION,REDACTED PERSONAL INFORMATION
North East Lincolnshire Council,http://statistics.data.gov.uk/id/local-authority/00FC,People And Communities,Vulnerable Young People,Placement & Support,Other Agencies,Child Care Payments,PJ104,09/10/2012,110817,-64.50,Revenue,REDACTED PERSONAL INFORMATION,REDACTED PERSONAL INFORMATION
North East Lincolnshire Council,http://statistics.data.gov.uk/id/local-authority/00FC,People And Communities,Vulnerable Young People,Placement & Support,Other Agencies,Child Care Payments,PJ104,16/10/2012,112114,-52.00,Revenue,REDACTED PERSONAL INFORMATION,REDACTED PERSONAL INFORMATION
North East Lincolnshire Council,http://statistics.data.gov.uk/id/local-authority/00FC,People And Communities,Vulnerable Young People,Placement & Support,Other Agencies,Child Care Payments,PJ104,23/10/2012,114355,-50.14,Revenue,REDACTED PERSONAL INFORMATION,REDACTED PERSONAL INFORMATION
North East Lincolnshire Council,http://statistics.data.gov.uk/id/local-authority/00FC,People And Communities,Vulnerable Young People,Placement & Support,Other Agencies,Child Care Payments,PJ104,23/10/2012,114355,-50.14,Revenue,REDACTED PERSONAL INFORMATION,REDACTED PERSONAL INFORMATION
North East Lincolnshire Council,http://statistics.data.gov.uk/id/local-authority/00FC,People And Communities,Vulnerable Young People,Placement & Support,Other Agencies,Child Care Payments,PJ104,16/10/2012,112143,-47.14,Revenue,REDACTED PERSONAL INFORMATION,REDACTED PERSONAL INFORMATION
North East Lincolnshire Council,http://statistics.data.gov.uk/id/local-authority/00FC,People And Communities,Vulnerable Young People,Placement & Support,Other Agencies,Child Care Payments,PJ104,16/10/2012,112143,-44.43,Revenue,REDACTED PERSONAL INFORMATION,REDACTED PERSONAL INFORMATION
North East Lincolnshire Council,http://statistics.data.gov.uk/id/local-authority/00FC,People And Communities,Vulnerable Young People,Placement & Support,Other Agencies,Child Care Payments,PJ104,16/10/2012,112143,-42.29,Revenue,REDACTED PERSONAL INFORMATION,REDACTED PERSONAL INFORMATION
North East Lincolnshire Council,http://statistics.data.gov.uk/id/local-authority/00FC,People And Communities,Vulnerable Young People,Placement & Support,Other Agencies,Child Care Payments,PJ104,16/10/2012,112143,-36.86,Revenue,REDACTED PERSONAL INFORMATION,REDACTED PERSONAL INFORMATION
North East Lincolnshire Council,http://statistics.data.gov.uk/id/local-authority/00FC,People And Communities,Vulnerable Young People,Placement & Support,Other Agencies,Child Care Payments,PJ104,30/10/2012,115449,-36.86,Revenue,REDACTED PERSONAL INFORMATION,REDACTED PERSONAL INFORMATION
North East Lincolnshire Council,http://statistics.data.gov.uk/id/local-authority/00FC,People And Communities,Vulnerable Young People,Placement & Support,Other Agencies,Child Care Payments,PJ104,30/10/2012,115449,-33.43,Revenue,REDACTED PERSONAL INFORMATION,REDACTED PERSONAL INFORMATION
North East Lincolnshire Council,http://statistics.data.gov.uk/id/local-authority/00FC,People And Communities,Vulnerable Young People,Placement & Support,Other Agencies,Child Care Payments,PJ104,30/10/2012,115449,-33.43,Revenue,REDACTED PERSONAL INFORMATION,REDACTED PERSONAL INFORMATION
North East Lincolnshire Council,http://statistics.data.gov.uk/id/local-authority/00FC,People And Communities,Vulnerable Young People,Placement & Support,Other Agencies,Child Care Payments,PJ104,02/10/2012,109760,-31.71,Revenue,REDACTED PERSONAL INFORMATION,REDACTED PERSONAL INFORMATION
North East Lincolnshire Council,http://statistics.data.gov.uk/id/local-authority/00FC,People And Communities,Vulnerable Young People,Placement & Support,Other Agencies,Additional Cost,PJ114,16/10/2012,112144,-28.57,Revenue,REDACTED PERSONAL INFORMATION,REDACTED PERSONAL INFORMATION
North East Lincolnshire Council,http://statistics.data.gov.uk/id/local-authority/00FC,People And Communities,Vulnerable Young People,Placement & Support,Other Agencies,Child Care Payments,PJ104,02/10/2012,109760,-27.64,Revenue,REDACTED PERSONAL INFORMATION,REDACTED PERSONAL INFORMATION
North East Lincolnshire Council,http://statistics.data.gov.uk/id/local-authority/00FC,People And Communities,Vulnerable Young People,Placement & Support,Other Agencies,Child Care Payments,PJ104,02/10/2012,109814,-27.64,Revenue,REDACTED PERSONAL INFORMATION,REDACTED PERSONAL INFORMATION
North East Lincolnshire Council,http://statistics.data.gov.uk/id/local-authority/00FC,People And Communities,Vulnerable Young People,Placement & Support,Other Agencies,Child Care Payments,PJ104,02/10/2012,109814,-25.07,Revenue,REDACTED PERSONAL INFORMATION,REDACTED PERSONAL INFORMATION
North East Lincolnshire Council,http://statistics.data.gov.uk/id/local-authority/00FC,People And Communities,Vulnerable Young People,Placement & Support,Other Agencies,Child Care Payments,PJ104,02/10/2012,109826,-25.00,Revenue,REDACTED PERSONAL INFORMATION,REDACTED PERSONAL INFORMATION
North East Lincolnshire Council,http://statistics.data.gov.uk/id/local-authority/00FC,People And Communities,Vulnerable Young People,Placement & Support,Other Agencies,Child Care Payments,PJ104,09/10/2012,110884,-24.38,Revenue,REDACTED PERSONAL INFORMATION,REDACTED PERSONAL INFORMATION
North East Lincolnshire Council,http://statistics.data.gov.uk/id/local-authority/00FC,People And Communities,Vulnerable Young People,Placement & Support,Other Agencies,Child Care Payments,PJ104,16/10/2012,112248,-16.71,Revenue,REDACTED PERSONAL INFORMATION,REDACTED PERSONAL INFORMATION
North East Lincolnshire Council,http://statistics.data.gov.uk/id/local-authority/00FC,People And Communities,Vulnerable Young People,Placement & Support,Other Agencies,Child Care Payments,PJ104,30/10/2012,115584,-16.71,Revenue,REDACTED PERSONAL INFORMATION,REDACTED PERSONAL INFORMATION
North East Lincolnshire Council,http://statistics.data.gov.uk/id/local-authority/00FC,People And Communities,Vulnerable Young People,Placement & Support,Other Agencies,Child Care Payments,PJ104,16/10/2012,112136,-10.57,Revenue,REDACTED PERSONAL INFORMATION,REDACTED PERSONAL INFORMATION
North East Lincolnshire Council,http://statistics.data.gov.uk/id/local-authority/00FC,People And Communities,Vulnerable Young People,Placement & Support,Other Agencies,Child Care Payments,PJ104,23/10/2012,114253,-10.57,Revenue,REDACTED PERSONAL INFORMATION,REDACTED PERSONAL INFORMATION
North East Lincolnshire Council,http://statistics.data.gov.uk/id/local-authority/00FC,People And Communities,Vulnerable Young People,Placement & Support,Other Agencies,Child Care Payments,PJ104,09/10/2012,110838,-10.57,Revenue,REDACTED PERSONAL INFORMATION,REDACTED PERSONAL INFORMATION
North East Lincolnshire Council,http://statistics.data.gov.uk/id/local-authority/00FC,People And Communities,Vulnerable Young People,Placement & Support,Other Agencies,Child Care Payments,PJ104,09/10/2012,110838,-10.57,Revenue,REDACTED PERSONAL INFORMATION,REDACTED PERSONAL INFORMATION
North East Lincolnshire Council,http://statistics.data.gov.uk/id/local-authority/00FC,People And Communities,Vulnerable Young People,Placement & Support,Other Agencies,Child Care Payments,PJ104,16/10/2012,112230,-10.57,Revenue,REDACTED PERSONAL INFORMATION,REDACTED PERSONAL INFORMATION
North East Lincolnshire Council,http://statistics.data.gov.uk/id/local-authority/00FC,People And Communities,Vulnerable Young People,Placement & Support,Other Agencies,Child Care Payments,PJ104,16/10/2012,112144,-10.57,Revenue,REDACTED PERSONAL INFORMATION,REDACTED PERSONAL INFORMATION
North East Lincolnshire Council,http://statistics.data.gov.uk/id/local-authority/00FC,People And Communities,Vulnerable Young People,Placement & Support,Other Agencies,Child Care Payments,PJ104,16/10/2012,112136,-9.21,Revenue,REDACTED PERSONAL INFORMATION,REDACTED PERSONAL INFORMATION
North East Lincolnshire Council,http://statistics.data.gov.uk/id/local-authority/00FC,People And Communities,Vulnerable Young People,Placement & Support,Other Agencies,Child Care Payments,PJ104,23/10/2012,114253,-9.21,Revenue,REDACTED PERSONAL INFORMATION,REDACTED PERSONAL INFORMATION
North East Lincolnshire Council,http://statistics.data.gov.uk/id/local-authority/00FC,People And Communities,Vulnerable Young People,Placement & Support,Other Agencies,Additional Cost,PJ114,16/10/2012,112131,250.00,Revenue,REDACTED PERSONAL INFORMATION,REDACTED PERSONAL INFORMATION
North East Lincolnshire Council,http://statistics.data.gov.uk/id/local-authority/00FC,People And Communities,Vulnerable Young People,Placement & Support,Other Agencies,Child Care Payments,PJ104,09/10/2012,110872,256.29,Revenue,REDACTED PERSONAL INFORMATION,REDACTED PERSONAL INFORMATION
North East Lincolnshire Council,http://statistics.data.gov.uk/id/local-authority/00FC,People And Communities,Vulnerable Young People,Placement & Support,Other Agencies,Child Care Payments,PJ104,30/10/2012,115467,256.29,Revenue,REDACTED PERSONAL INFORMATION,REDACTED PERSONAL INFORMATION
North East Lincolnshire Council,http://statistics.data.gov.uk/id/local-authority/00FC,People And Communities,Vulnerable Young People,Placement & Support,Other Agencies,Exceptional Task,PJ113,16/10/2012,112232,257.14,Revenue,REDACTED PERSONAL INFORMATION,REDACTED PERSONAL INFORMATION
North East Lincolnshire Council,http://statistics.data.gov.uk/id/local-authority/00FC,People And Communities,Vulnerable Young People,Placement & Support,Other Agencies,Child Care Payments,PJ104,09/10/2012,110853,266.57,Revenue,REDACTED PERSONAL INFORMATION,REDACTED PERSONAL INFORMATION
North East Lincolnshire Council,http://statistics.data.gov.uk/id/local-authority/00FC,People And Communities,Vulnerable Young People,Placement & Support,Other Agencies,Child Care Payments,PJ104,09/10/2012,110872,266.57,Revenue,REDACTED PERSONAL INFORMATION,REDACTED PERSONAL INFORMATION
North East Lincolnshire Council,http://statistics.data.gov.uk/id/local-authority/00FC,People And Communities,Vulnerable Young People,Placement & Support,Other Agencies,Child Care Payments,PJ104,09/10/2012,110875,266.57,Revenue,REDACTED PERSONAL INFORMATION,REDACTED PERSONAL INFORMATION
North East Lincolnshire Council,http://statistics.data.gov.uk/id/local-authority/00FC,People And Communities,Vulnerable Young People,Placement & Support,Other Agencies,Child Care Payments,PJ104,16/10/2012,112116,266.57,Revenue,REDACTED PERSONAL INFORMATION,REDACTED PERSONAL INFORMATION
North East Lincolnshire Council,http://statistics.data.gov.uk/id/local-authority/00FC,People And Communities,Vulnerable Young People,Placement & Support,Other Agencies,Child Care Payments,PJ104,30/10/2012,115467,266.57,Revenue,REDACTED PERSONAL INFORMATION,REDACTED PERSONAL INFORMATION
North East Lincolnshire Council,http://statistics.data.gov.uk/id/local-authority/00FC,People And Communities,Vulnerable Young People,Placement & Support,Other Agencies,Child Care Payments,PJ104,02/10/2012,109750,282.86,Revenue,REDACTED PERSONAL INFORMATION,REDACTED PERSONAL INFORMATION
North East Lincolnshire Council,http://statistics.data.gov.uk/id/local-authority/00FC,People And Communities,Vulnerable Young People,Placement & Support,Other Agencies,Child Care Payments,PJ104,09/10/2012,110877,282.86,Revenue,REDACTED PERSONAL INFORMATION,REDACTED PERSONAL INFORMATION
North East Lincolnshire Council,http://statistics.data.gov.uk/id/local-authority/00FC,People And Communities,Vulnerable Young People,Placement & Support,Other Agencies,Child Care Payments,PJ104,16/10/2012,112116,282.86,Revenue,REDACTED PERSONAL INFORMATION,REDACTED PERSONAL INFORMATION
North East Lincolnshire Council,http://statistics.data.gov.uk/id/local-authority/00FC,People And Communities,Vulnerable Young People,Placement & Support,Other Agencies,Additional Cost,PJ114,17/10/2012,139964,291.37,Revenue,TOOLED-UP.COM,105244
North East Lincolnshire Council,http://statistics.data.gov.uk/id/local-authority/00FC,People And Communities,Vulnerable Young People,Placement & Support,Other Agencies,Child Care Payments,PJ104,02/10/2012,109724,299.00,Revenue,REDACTED PERSONAL INFORMATION,REDACTED PERSONAL INFORMATION
North East Lincolnshire Council,http://statistics.data.gov.uk/id/local-authority/00FC,People And Communities,Vulnerable Young People,Placement & Support,Other Agencies,Child Care Payments,PJ104,02/10/2012,109736,299.00,Revenue,REDACTED PERSONAL INFORMATION,REDACTED PERSONAL INFORMATION
North East Lincolnshire Council,http://statistics.data.gov.uk/id/local-authority/00FC,People And Communities,Vulnerable Young People,Placement & Support,Other Agencies,Child Care Payments,PJ104,02/10/2012,109744,299.00,Revenue,REDACTED PERSONAL INFORMATION,REDACTED PERSONAL INFORMATION
North East Lincolnshire Council,http://statistics.data.gov.uk/id/local-authority/00FC,People And Communities,Vulnerable Young People,Placement & Support,Other Agencies,Child Care Payments,PJ104,02/10/2012,109748,299.00,Revenue,REDACTED PERSONAL INFORMATION,REDACTED PERSONAL INFORMATION
North East Lincolnshire Council,http://statistics.data.gov.uk/id/local-authority/00FC,People And Communities,Vulnerable Young People,Placement & Support,Other Agencies,Child Care Payments,PJ104,02/10/2012,109764,299.00,Revenue,REDACTED PERSONAL INFORMATION,REDACTED PERSONAL INFORMATION
North East Lincolnshire Council,http://statistics.data.gov.uk/id/local-authority/00FC,People And Communities,Vulnerable Young People,Placement & Support,Other Agencies,Child Care Payments,PJ104,02/10/2012,109774,299.00,Revenue,REDACTED PERSONAL INFORMATION,REDACTED PERSONAL INFORMATION
North East Lincolnshire Council,http://statistics.data.gov.uk/id/local-authority/00FC,People And Communities,Vulnerable Young People,Placement & Support,Other Agencies,Child Care Payments,PJ104,02/10/2012,109782,299.00,Revenue,REDACTED PERSONAL INFORMATION,REDACTED PERSONAL INFORMATION
North East Lincolnshire Council,http://statistics.data.gov.uk/id/local-authority/00FC,People And Communities,Vulnerable Young People,Placement & Support,Other Agencies,Child Care Payments,PJ104,02/10/2012,109785,299.00,Revenue,REDACTED PERSONAL INFORMATION,REDACTED PERSONAL INFORMATION
North East Lincolnshire Council,http://statistics.data.gov.uk/id/local-authority/00FC,People And Communities,Vulnerable Young People,Placement & Support,Other Agencies,Child Care Payments,PJ104,02/10/2012,109818,299.00,Revenue,REDACTED PERSONAL INFORMATION,REDACTED PERSONAL INFORMATION
North East Lincolnshire Council,http://statistics.data.gov.uk/id/local-authority/00FC,People And Communities,Vulnerable Young People,Placement & Support,Other Agencies,Child Care Payments,PJ104,02/10/2012,109839,299.00,Revenue,REDACTED PERSONAL INFORMATION,REDACTED PERSONAL INFORMATION
North East Lincolnshire Council,http://statistics.data.gov.uk/id/local-authority/00FC,People And Communities,Vulnerable Young People,Placement & Support,Other Agencies,Child Care Payments,PJ104,02/10/2012,109857,299.00,Revenue,REDACTED PERSONAL INFORMATION,REDACTED PERSONAL INFORMATION
North East Lincolnshire Council,http://statistics.data.gov.uk/id/local-authority/00FC,People And Communities,Vulnerable Young People,Placement & Support,Other Agencies,Child Care Payments,PJ104,02/10/2012,109875,299.00,Revenue,REDACTED PERSONAL INFORMATION,REDACTED PERSONAL INFORMATION
North East Lincolnshire Council,http://statistics.data.gov.uk/id/local-authority/00FC,People And Communities,Vulnerable Young People,Placement & Support,Other Agencies,Child Care Payments,PJ104,02/10/2012,109897,299.00,Revenue,REDACTED PERSONAL INFORMATION,REDACTED PERSONAL INFORMATION
North East Lincolnshire Council,http://statistics.data.gov.uk/id/local-authority/00FC,People And Communities,Vulnerable Young People,Placement & Support,Other Agencies,Child Care Payments,PJ104,09/10/2012,110897,299.00,Revenue,REDACTED PERSONAL INFORMATION,REDACTED PERSONAL INFORMATION
North East Lincolnshire Council,http://statistics.data.gov.uk/id/local-authority/00FC,People And Communities,Vulnerable Young People,Placement & Support,Other Agencies,Child Care Payments,PJ104,09/10/2012,110916,299.00,Revenue,REDACTED PERSONAL INFORMATION,REDACTED PERSONAL INFORMATION
North East Lincolnshire Council,http://statistics.data.gov.uk/id/local-authority/00FC,People And Communities,Vulnerable Young People,Placement & Support,Other Agencies,Child Care Payments,PJ104,09/10/2012,110934,299.00,Revenue,REDACTED PERSONAL INFORMATION,REDACTED PERSONAL INFORMATION
North East Lincolnshire Council,http://statistics.data.gov.uk/id/local-authority/00FC,People And Communities,Vulnerable Young People,Placement & Support,Other Agencies,Child Care Payments,PJ104,09/10/2012,110957,299.00,Revenue,REDACTED PERSONAL INFORMATION,REDACTED PERSONAL INFORMATION
North East Lincolnshire Council,http://statistics.data.gov.uk/id/local-authority/00FC,People And Communities,Vulnerable Young People,Placement & Support,Other Agencies,Child Care Payments,PJ104,09/10/2012,110779,299.00,Revenue,REDACTED PERSONAL INFORMATION,REDACTED PERSONAL INFORMATION
North East Lincolnshire Council,http://statistics.data.gov.uk/id/local-authority/00FC,People And Communities,Vulnerable Young People,Placement & Support,Other Agencies,Child Care Payments,PJ104,09/10/2012,110791,299.00,Revenue,REDACTED PERSONAL INFORMATION,REDACTED PERSONAL INFORMATION
North East Lincolnshire Council,http://statistics.data.gov.uk/id/local-authority/00FC,People And Communities,Vulnerable Young People,Placement & Support,Other Agencies,Child Care Payments,PJ104,09/10/2012,110803,299.00,Revenue,REDACTED PERSONAL INFORMATION,REDACTED PERSONAL INFORMATION
North East Lincolnshire Council,http://statistics.data.gov.uk/id/local-authority/00FC,People And Communities,Vulnerable Young People,Placement & Support,Other Agencies,Child Care Payments,PJ104,09/10/2012,110821,299.00,Revenue,REDACTED PERSONAL INFORMATION,REDACTED PERSONAL INFORMATION
North East Lincolnshire Council,http://statistics.data.gov.uk/id/local-authority/00FC,People And Communities,Vulnerable Young People,Placement & Support,Other Agencies,Child Care Payments,PJ104,09/10/2012,110832,299.00,Revenue,REDACTED PERSONAL INFORMATION,REDACTED PERSONAL INFORMATION
North East Lincolnshire Council,http://statistics.data.gov.uk/id/local-authority/00FC,People And Communities,Vulnerable Young People,Placement & Support,Other Agencies,Child Care Payments,PJ104,09/10/2012,110840,299.00,Revenue,REDACTED PERSONAL INFORMATION,REDACTED PERSONAL INFORMATION
North East Lincolnshire Council,http://statistics.data.gov.uk/id/local-authority/00FC,People And Communities,Vulnerable Young People,Placement & Support,Other Agencies,Child Care Payments,PJ104,09/10/2012,110843,299.00,Revenue,REDACTED PERSONAL INFORMATION,REDACTED PERSONAL INFORMATION
North East Lincolnshire Council,http://statistics.data.gov.uk/id/local-authority/00FC,People And Communities,Vulnerable Young People,Placement & Support,Other Agencies,Child Care Payments,PJ104,09/10/2012,110876,299.00,Revenue,REDACTED PERSONAL INFORMATION,REDACTED PERSONAL INFORMATION
North East Lincolnshire Council,http://statistics.data.gov.uk/id/local-authority/00FC,People And Communities,Vulnerable Young People,Placement & Support,Other Agencies,Child Care Payments,PJ104,16/10/2012,112108,299.00,Revenue,REDACTED PERSONAL INFORMATION,REDACTED PERSONAL INFORMATION
North East Lincolnshire Council,http://statistics.data.gov.uk/id/local-authority/00FC,People And Communities,Vulnerable Young People,Placement & Support,Other Agencies,Child Care Payments,PJ104,16/10/2012,112120,299.00,Revenue,REDACTED PERSONAL INFORMATION,REDACTED PERSONAL INFORMATION
North East Lincolnshire Council,http://statistics.data.gov.uk/id/local-authority/00FC,People And Communities,Vulnerable Young People,Placement & Support,Other Agencies,Child Care Payments,PJ104,16/10/2012,112131,299.00,Revenue,REDACTED PERSONAL INFORMATION,REDACTED PERSONAL INFORMATION
North East Lincolnshire Council,http://statistics.data.gov.uk/id/local-authority/00FC,People And Communities,Vulnerable Young People,Placement & Support,Other Agencies,Child Care Payments,PJ104,16/10/2012,112159,299.00,Revenue,REDACTED PERSONAL INFORMATION,REDACTED PERSONAL INFORMATION
North East Lincolnshire Council,http://statistics.data.gov.uk/id/local-authority/00FC,People And Communities,Vulnerable Young People,Placement & Support,Other Agencies,Child Care Payments,PJ104,16/10/2012,112167,299.00,Revenue,REDACTED PERSONAL INFORMATION,REDACTED PERSONAL INFORMATION
North East Lincolnshire Council,http://statistics.data.gov.uk/id/local-authority/00FC,People And Communities,Vulnerable Young People,Placement & Support,Other Agencies,Child Care Payments,PJ104,16/10/2012,112171,299.00,Revenue,REDACTED PERSONAL INFORMATION,REDACTED PERSONAL INFORMATION
North East Lincolnshire Council,http://statistics.data.gov.uk/id/local-authority/00FC,People And Communities,Vulnerable Young People,Placement & Support,Other Agencies,Child Care Payments,PJ104,16/10/2012,112199,299.00,Revenue,REDACTED PERSONAL INFORMATION,REDACTED PERSONAL INFORMATION
North East Lincolnshire Council,http://statistics.data.gov.uk/id/local-authority/00FC,People And Communities,Vulnerable Young People,Placement & Support,Other Agencies,Child Care Payments,PJ104,16/10/2012,112223,299.00,Revenue,REDACTED PERSONAL INFORMATION,REDACTED PERSONAL INFORMATION
North East Lincolnshire Council,http://statistics.data.gov.uk/id/local-authority/00FC,People And Communities,Vulnerable Young People,Placement & Support,Other Agencies,Child Care Payments,PJ104,16/10/2012,112241,299.00,Revenue,REDACTED PERSONAL INFORMATION,REDACTED PERSONAL INFORMATION
North East Lincolnshire Council,http://statistics.data.gov.uk/id/local-authority/00FC,People And Communities,Vulnerable Young People,Placement & Support,Other Agencies,Child Care Payments,PJ104,16/10/2012,112259,299.00,Revenue,REDACTED PERSONAL INFORMATION,REDACTED PERSONAL INFORMATION
North East Lincolnshire Council,http://statistics.data.gov.uk/id/local-authority/00FC,People And Communities,Vulnerable Young People,Placement & Support,Other Agencies,Child Care Payments,PJ104,16/10/2012,112282,299.00,Revenue,REDACTED PERSONAL INFORMATION,REDACTED PERSONAL INFORMATION
North East Lincolnshire Council,http://statistics.data.gov.uk/id/local-authority/00FC,People And Communities,Vulnerable Young People,Placement & Support,Other Agencies,Child Care Payments,PJ104,23/10/2012,114287,299.00,Revenue,REDACTED PERSONAL INFORMATION,REDACTED PERSONAL INFORMATION
North East Lincolnshire Council,http://statistics.data.gov.uk/id/local-authority/00FC,People And Communities,Vulnerable Young People,Placement & Support,Other Agencies,Child Care Payments,PJ104,23/10/2012,114315,299.00,Revenue,REDACTED PERSONAL INFORMATION,REDACTED PERSONAL INFORMATION
North East Lincolnshire Council,http://statistics.data.gov.uk/id/local-authority/00FC,People And Communities,Vulnerable Young People,Placement & Support,Other Agencies,Child Care Payments,PJ104,23/10/2012,114337,299.00,Revenue,REDACTED PERSONAL INFORMATION,REDACTED PERSONAL INFORMATION
North East Lincolnshire Council,http://statistics.data.gov.uk/id/local-authority/00FC,People And Communities,Vulnerable Young People,Placement & Support,Other Agencies,Child Care Payments,PJ104,23/10/2012,114355,299.00,Revenue,REDACTED PERSONAL INFORMATION,REDACTED PERSONAL INFORMATION
North East Lincolnshire Council,http://statistics.data.gov.uk/id/local-authority/00FC,People And Communities,Vulnerable Young People,Placement & Support,Other Agencies,Child Care Payments,PJ104,23/10/2012,114373,299.00,Revenue,REDACTED PERSONAL INFORMATION,REDACTED PERSONAL INFORMATION
North East Lincolnshire Council,http://statistics.data.gov.uk/id/local-authority/00FC,People And Communities,Vulnerable Young People,Placement & Support,Other Agencies,Child Care Payments,PJ104,23/10/2012,114227,299.00,Revenue,REDACTED PERSONAL INFORMATION,REDACTED PERSONAL INFORMATION
North East Lincolnshire Council,http://statistics.data.gov.uk/id/local-authority/00FC,People And Communities,Vulnerable Young People,Placement & Support,Other Agencies,Child Care Payments,PJ104,23/10/2012,114397,299.00,Revenue,REDACTED PERSONAL INFORMATION,REDACTED PERSONAL INFORMATION
North East Lincolnshire Council,http://statistics.data.gov.uk/id/local-authority/00FC,People And Communities,Vulnerable Young People,Placement & Support,Other Agencies,Child Care Payments,PJ104,23/10/2012,114239,299.00,Revenue,REDACTED PERSONAL INFORMATION,REDACTED PERSONAL INFORMATION
North East Lincolnshire Council,http://statistics.data.gov.uk/id/local-authority/00FC,People And Communities,Vulnerable Young People,Placement & Support,Other Agencies,Child Care Payments,PJ104,23/10/2012,114248,299.00,Revenue,REDACTED PERSONAL INFORMATION,REDACTED PERSONAL INFORMATION
North East Lincolnshire Council,http://statistics.data.gov.uk/id/local-authority/00FC,People And Communities,Vulnerable Young People,Placement & Support,Other Agencies,Child Care Payments,PJ104,23/10/2012,114275,299.00,Revenue,REDACTED PERSONAL INFORMATION,REDACTED PERSONAL INFORMATION
North East Lincolnshire Council,http://statistics.data.gov.uk/id/local-authority/00FC,People And Communities,Vulnerable Young People,Placement & Support,Other Agencies,Child Care Payments,PJ104,23/10/2012,114284,299.00,Revenue,REDACTED PERSONAL INFORMATION,REDACTED PERSONAL INFORMATION
North East Lincolnshire Council,http://statistics.data.gov.uk/id/local-authority/00FC,People And Communities,Vulnerable Young People,Placement & Support,Other Agencies,Child Care Payments,PJ104,30/10/2012,115576,299.00,Revenue,REDACTED PERSONAL INFORMATION,REDACTED PERSONAL INFORMATION
North East Lincolnshire Council,http://statistics.data.gov.uk/id/local-authority/00FC,People And Communities,Vulnerable Young People,Placement & Support,Other Agencies,Child Care Payments,PJ104,30/10/2012,115594,299.00,Revenue,REDACTED PERSONAL INFORMATION,REDACTED PERSONAL INFORMATION
North East Lincolnshire Council,http://statistics.data.gov.uk/id/local-authority/00FC,People And Communities,Vulnerable Young People,Placement & Support,Other Agencies,Child Care Payments,PJ104,30/10/2012,115618,299.00,Revenue,REDACTED PERSONAL INFORMATION,REDACTED PERSONAL INFORMATION
North East Lincolnshire Council,http://statistics.data.gov.uk/id/local-authority/00FC,People And Communities,Vulnerable Young People,Placement & Support,Other Agencies,Child Care Payments,PJ104,30/10/2012,115448,299.00,Revenue,REDACTED PERSONAL INFORMATION,REDACTED PERSONAL INFORMATION
North East Lincolnshire Council,http://statistics.data.gov.uk/id/local-authority/00FC,People And Communities,Vulnerable Young People,Placement & Support,Other Agencies,Child Care Payments,PJ104,30/10/2012,115460,299.00,Revenue,REDACTED PERSONAL INFORMATION,REDACTED PERSONAL INFORMATION
North East Lincolnshire Council,http://statistics.data.gov.uk/id/local-authority/00FC,People And Communities,Vulnerable Young People,Placement & Support,Other Agencies,Child Care Payments,PJ104,30/10/2012,115470,299.00,Revenue,REDACTED PERSONAL INFORMATION,REDACTED PERSONAL INFORMATION
North East Lincolnshire Council,http://statistics.data.gov.uk/id/local-authority/00FC,People And Communities,Vulnerable Young People,Placement & Support,Other Agencies,Child Care Payments,PJ104,30/10/2012,115498,299.00,Revenue,REDACTED PERSONAL INFORMATION,REDACTED PERSONAL INFORMATION
North East Lincolnshire Council,http://statistics.data.gov.uk/id/local-authority/00FC,People And Communities,Vulnerable Young People,Placement & Support,Other Agencies,Child Care Payments,PJ104,30/10/2012,115506,299.00,Revenue,REDACTED PERSONAL INFORMATION,REDACTED PERSONAL INFORMATION
North East Lincolnshire Council,http://statistics.data.gov.uk/id/local-authority/00FC,People And Communities,Vulnerable Young People,Placement & Support,Other Agencies,Child Care Payments,PJ104,30/10/2012,115509,299.00,Revenue,REDACTED PERSONAL INFORMATION,REDACTED PERSONAL INFORMATION
North East Lincolnshire Council,http://statistics.data.gov.uk/id/local-authority/00FC,People And Communities,Vulnerable Young People,Placement & Support,Other Agencies,Child Care Payments,PJ104,30/10/2012,115537,299.00,Revenue,REDACTED PERSONAL INFORMATION,REDACTED PERSONAL INFORMATION
North East Lincolnshire Council,http://statistics.data.gov.uk/id/local-authority/00FC,People And Communities,Vulnerable Young People,Placement & Support,Other Agencies,Child Care Payments,PJ104,30/10/2012,115559,299.00,Revenue,REDACTED PERSONAL INFORMATION,REDACTED PERSONAL INFORMATION
North East Lincolnshire Council,http://statistics.data.gov.uk/id/local-authority/00FC,People And Communities,Vulnerable Young People,Placement & Support,Other Agencies,Child Care Payments,PJ104,30/10/2012,115498,303.43,Revenue,REDACTED PERSONAL INFORMATION,REDACTED PERSONAL INFORMATION
North East Lincolnshire Council,http://statistics.data.gov.uk/id/local-authority/00FC,People And Communities,Vulnerable Young People,Placement & Support,Other Agencies,Child Care Payments,PJ104,16/10/2012,112147,307.57,Revenue,REDACTED PERSONAL INFORMATION,REDACTED PERSONAL INFORMATION
North East Lincolnshire Council,http://statistics.data.gov.uk/id/local-authority/00FC,People And Communities,Vulnerable Young People,Placement & Support,Other Agencies,Child Care Payments,PJ104,02/10/2012,109733,311.00,Revenue,REDACTED PERSONAL INFORMATION,REDACTED PERSONAL INFORMATION
North East Lincolnshire Council,http://statistics.data.gov.uk/id/local-authority/00FC,People And Communities,Vulnerable Young People,Placement & Support,Other Agencies,Child Care Payments,PJ104,02/10/2012,109744,311.00,Revenue,REDACTED PERSONAL INFORMATION,REDACTED PERSONAL INFORMATION
North East Lincolnshire Council,http://statistics.data.gov.uk/id/local-authority/00FC,People And Communities,Vulnerable Young People,Placement & Support,Other Agencies,Child Care Payments,PJ104,02/10/2012,109748,311.00,Revenue,REDACTED PERSONAL INFORMATION,REDACTED PERSONAL INFORMATION
North East Lincolnshire Council,http://statistics.data.gov.uk/id/local-authority/00FC,People And Communities,Vulnerable Young People,Placement & Support,Other Agencies,Child Care Payments,PJ104,02/10/2012,109760,311.00,Revenue,REDACTED PERSONAL INFORMATION,REDACTED PERSONAL INFORMATION
North East Lincolnshire Council,http://statistics.data.gov.uk/id/local-authority/00FC,People And Communities,Vulnerable Young People,Placement & Support,Other Agencies,Child Care Payments,PJ104,02/10/2012,109774,311.00,Revenue,REDACTED PERSONAL INFORMATION,REDACTED PERSONAL INFORMATION
North East Lincolnshire Council,http://statistics.data.gov.uk/id/local-authority/00FC,People And Communities,Vulnerable Young People,Placement & Support,Other Agencies,Child Care Payments,PJ104,02/10/2012,109787,311.00,Revenue,REDACTED PERSONAL INFORMATION,REDACTED PERSONAL INFORMATION
North East Lincolnshire Council,http://statistics.data.gov.uk/id/local-authority/00FC,People And Communities,Vulnerable Young People,Placement & Support,Other Agencies,Child Care Payments,PJ104,02/10/2012,109795,311.00,Revenue,REDACTED PERSONAL INFORMATION,REDACTED PERSONAL INFORMATION
North East Lincolnshire Council,http://statistics.data.gov.uk/id/local-authority/00FC,People And Communities,Vulnerable Young People,Placement & Support,Other Agencies,Child Care Payments,PJ104,02/10/2012,109817,311.00,Revenue,REDACTED PERSONAL INFORMATION,REDACTED PERSONAL INFORMATION
North East Lincolnshire Council,http://statistics.data.gov.uk/id/local-authority/00FC,People And Communities,Vulnerable Young People,Placement & Support,Other Agencies,Child Care Payments,PJ104,02/10/2012,109834,311.00,Revenue,REDACTED PERSONAL INFORMATION,REDACTED PERSONAL INFORMATION
North East Lincolnshire Council,http://statistics.data.gov.uk/id/local-authority/00FC,People And Communities,Vulnerable Young People,Placement & Support,Other Agencies,Child Care Payments,PJ104,02/10/2012,109841,311.00,Revenue,REDACTED PERSONAL INFORMATION,REDACTED PERSONAL INFORMATION
